Workbook

Sheet Compiled_06_2018 (hidden)
A1: PracName | B1: Locality | C1: NACS | D1: Worksheet | E1: [00-00] | F1: [08-CKD] | G1: NIS08-CKD01 | H1: NIS08-CKD01% | I1: NIS08-CKD02 | J1: NIS08-CKD02% | K1: NIS08-CKD03 | L1: NIS08-CKD03% | M1: NIS08-CKD08
D2: Seach Code: | E2: [00-00] | F2: [08-CKD] | G2: NIS08-CKD01 | H2: NIS08-CKD01% | I2: NIS08-CKD02 | J2: NIS08-CKD02% | K2: NIS08-CKD03 | L2: NIS08-CKD03% | M2: NIS08-CKD08
A3: 2018-06-01 | D3: Found EMISweb Search: | E3: [00-00] Listsize | F3: [08-CKD] eGFR evidence of CKD | G3: NIS08-CKD01: evidence of CKD coded CKD (QOF v33) | I3: NIS08-CKD02: evidence of CKD with appropriate BP | K3: NIS08-CKD03: evidence of CKD on Statins | M3: NIS08-CKD08: Referrals to community renal clinic
D4: Relative Run Date: | E4: 2018-06-01 | F4: 2018-06-01 | G4: 2018-06-01 | I4: 2018-06-01 | K4: 2018-06-01 | M4: 2018-06-01
D5: Top Left EMISweb Data: | E5: $A$9 | F5: $A$45 | G5: $A$81 | I5: $A$117 | K5: $A$153 | M5: $A$225
A6: 2018-06-01 | D6: EMISweb Array Start: | E6: $B$9 | F6: $B$45 | G6: $B$81 | I6: $B$117 | K6: $B$153 | M6: $B$225
D7: Top Left EMISweb Data +1 Row: | E7: $A$10 | F7: $A$46 | G7: $A$82 | I7: $A$118 | K7: $A$154 | M7: $A$226
D8: EMISweb Array End: | E8: $C$44 | F8: $C$80 | G8: $C$116 | I8: $C$152 | K8: $C$188 | M8: $C$237
A9: Payment | C9: Payment
A10: Dr Zamora-Eguiluz - Leyton Green Neighbourhood H S | B10: LC1 | C10: F86073 | D10: 'CKD AR 06 18'! | E10: 3695 | F10: 70 | G10: 54 | H10: 0.7714285714 | I10: 38 | J10: 0.5428571429 | K10: 41 | L10: 0.5857142857 | M10: 0
A11: Addison Road Medical Practice | B11: LC1 | C11: F86607 | D11: 'CKD AR 06 18'! | E11: 14040 | F11: 216 | G11: 82 | H11: 0.3796296296 | I11: 124 | J11: 0.5740740741 | K11: 138 | L11: 0.6388888889 | M11: 0
A12: Dr Shantir Practice | B12: LC1 | C12: F86626 | D12: 'CKD AR 06 18'! | E12: 5257 | F12: 72 | G12: 63 | H12: 0.875 | I12: 49 | J12: 0.6805555556 | K12: 43 | L12: 0.5972222222 | M12: 0
A13: Lime Tree Surgery | B13: LC1 | C13: F86650 | D13: 'CKD AR 06 18'! | E13: 8088 | F13: 120 | G13: 61 | H13: 0.5083333333 | I13: 49 | J13: 0.4083333333 | K13: 78 | L13: 0.65 | M13: 0
A14: Francis Road Medical Centre | B14: LC1 | C14: F86696 | D14: 'CKD AR 06 18'! | E14: 4851 | F14: 123 | G14: 94 | H14: 0.7642276423 | I14: 67 | J14: 0.5447154472 | K14: 88 | L14: 0.7154471545 | M14: 1
A15: The Vicarage Road Practice | B15: LC1 | C15: Y00092 | D15: 'CKD AR 06 18'! | E15: 0 | F15: 0 | G15: 0 | H15: N/A | I15: 0 | J15: N/A | K15: 0 | L15: N/A | M15: 0
A16: Dr S Phillips & Dr M Patel | B16: LC2 | C16: F86006 | D16: 'CKD AR 06 18'! | E16: 6053 | F16: 126 | G16: 76 | H16: 0.6031746032 | I16: 60 | J16: 0.4761904762 | K16: 71 | L16: 0.5634920635 | M16: 0
A17: Dr Sheikh & Partners - Queens Road Medical Centre | B17: LC2 | C17: F86030 | D17: 'CKD AR 06 18'! | E17: 7753 | F17: 157 | G17: 93 | H17: 0.5923566879 | I17: 90 | J17: 0.5732484076 | K17: 132 | L17: 0.8407643312 | M17: 1
A18: Dr K Aswani - The Allum Medical Centre | B18: LC2 | C18: F86036 | D18: 'CKD AR 06 18'! | E18: 15560 | F18: 292 | G18: 104 | H18: 0.3561643836 | I18: 170 | J18: 0.5821917808 | K18: 184 | L18: 0.6301369863 | M18: 3
A19: Dr Sm Ali - Sma Medical Centre | B19: LC2 | C19: F86038 | D19: 'CKD AR 06 18'! | E19: 10744 | F19: 171 | G19: 60 | H19: 0.350877193 | I19: 109 | J19: 0.6374269006 | K19: 122 | L19: 0.7134502924 | M19: 1
A20: Dr T Kalra - Crawley Road Medical Centre | B20: LC2 | C20: F86044 | D20: 'CKD AR 06 18'! | E20: 7990 | F20: 108 | G20: 93 | H20: 0.8611111111 | I20: 61 | J20: 0.5648148148 | K20: 78 | L20: 0.7222222222 | M20: 0
A21: Grove Surgery | B21: LC2 | C21: F86062 | D21: 'CKD AR 06 18'! | E21: 6580 | F21: 153 | G21: 98 | H21: 0.6405228758 | I21: 86 | J21: 0.5620915033 | K21: 116 | L21: 0.7581699346 | M21: 0
A22: Dr Rp Dhital - Dr Dhital Practice | B22: LC2 | C22: F86086 | D22: 'CKD AR 06 18'! | E22: 5852 | F22: 86 | G22: 28 | H22: 0.3255813953 | I22: 49 | J22: 0.5697674419 | K22: 59 | L22: 0.6860465116 | M22: 0
A23: Old Church Surgery | B23: LC2 | C23: F86616 | D23: 'CKD AR 06 18'! | E23: 5955 | F23: 230 | G23: 105 | H23: 0.4565217391 | I23: 151 | J23: 0.6565217391 | K23: 134 | L23: 0.5826086957 | M23: 2
A24: Green Man Medical Centre | B24: LC2 | C24: F86621 | D24: 'CKD AR 06 18'! | E24: 5443 | F24: 148 | G24: 50 | H24: 0.3378378378 | I24: 112 | J24: 0.7567567568 | K24: 88 | L24: 0.5945945946 | M24: 0
A25: Churchill Medical Centre | B25: LC2 | C25: F86627 | D25: 'CKD AR 06 18'! | E25: 14118 | F25: 549 | G25: 250 | H25: 0.4553734062 | I25: 261 | J25: 0.4754098361 | K25: 350 | L25: 0.6375227687 | M25: 4
A26: Waltham Forest Community & Family Health Services Ltd | B26: LC2 | C26: F86644 | D26: 'CKD AR 06 18'! | E26: 10901 | F26: 230 | G26: 78 | H26: 0.3391304348 | I26: 141 | J26: 0.6130434783 | K26: 131 | L26: 0.5695652174 | M26: 0
A27: Larkshall Medical Centre | B27: LC2 | C27: F86664 | D27: 'CKD AR 06 18'! | E27: 8162 | F27: 186 | G27: 29 | H27: 0.1559139785 | I27: 102 | J27: 0.5483870968 | K27: 112 | L27: 0.6021505376 | M27: 0
A28: The Bailey Practice | B28: LC2 | C28: F86689 | D28: 'CKD AR 06 18'! | E28: 3826 | F28: 51 | G28: 26 | H28: 0.5098039216 | I28: 21 | J28: 0.4117647059 | K28: 32 | L28: 0.6274509804 | M28: 0
A29: Kings Head Medical Practice | B29: LC2 | C29: F86700 | D29: 'CKD AR 06 18'! | E29: 3751 | F29: 199 | G29: 198 | H29: 0.9949748744 | I29: 116 | J29: 0.5829145729 | K29: 137 | L29: 0.6884422111 | M29: 0
A30: Kiyani Medical Practice | B30: LC2 | C30: F86701 | D30: 'CKD AR 06 18'! | E30: 3134 | F30: 80 | G30: 54 | H30: 0.675 | I30: 58 | J30: 0.725 | K30: 55 | L30: 0.6875 | M30: 0
A31: Claremont Medical Centre | B31: LC2 | C31: F86708 | D31: 'CKD AR 06 18'! | E31: 2872 | F31: 48 | G31: 18 | H31: 0.375 | I31: 32 | J31: 0.6666666667 | K31: 35 | L31: 0.7291666667 | M31: 0
A32: Hampton Medical Centre | B32: LC2 | C32: F86712 | D32: 'CKD AR 06 18'! | E32: 2978 | F32: 81 | G32: 78 | H32: 0.962962963 | I32: 56 | J32: 0.6913580247 | K32: 61 | L32: 0.7530864198 | M32: 0
A33: Lime Tree & Sinnott Healthcare Ltd | B33: LC2 | C33: Y01839 | D33: 'CKD AR 06 18'! | E33: 6530 | F33: 124 | G33: 25 | H33: 0.2016129032 | I33: 88 | J33: 0.7096774194 | K33: 78 | L33: 0.6290322581 | M33: 1
A34: Dr John & Partners - The Firs | B34: LC3 | C34: F86001 | D34: 'CKD AR 06 18'! | E34: 8118 | F34: 174 | G34: 81 | H34: 0.4655172414 | I34: 73 | J34: 0.4195402299 | K34: 111 | L34: 0.6379310345 | M34: 0
A35: Dr Lindall & Partners - The Penryhn Surgery | B35: LC3 | C35: F86005 | D35: 'CKD AR 06 18'! | E35: 7742 | F35: 211 | G35: 157 | H35: 0.7440758294 | I35: 136 | J35: 0.644549763 | K35: 137 | L35: 0.6492890995 | M35: 5
A36: Dr Huddart - The Manor Practice | B36: LC3 | C36: F86011 | D36: 'CKD AR 06 18'! | E36: 9093 | F36: 212 | G36: 100 | H36: 0.4716981132 | I36: 129 | J36: 0.608490566 | K36: 129 | L36: 0.608490566 | M36: 0
A37: High Road Surgery | B37: LC3 | C37: F86045 | D37: 'CKD AR 06 18'! | E37: 1895 | F37: 47 | G37: 35 | H37: 0.7446808511 | I37: 15 | J37: 0.3191489362 | K37: 33 | L37: 0.7021276596 | M37: 1
A38: Brunner Road Medical Centre | B38: LC3 | C38: F86049 | D38: 'CKD AR 06 18'! | E38: 0 | F38: 0 | G38: 0 | H38: N/A | I38: 0 | J38: N/A | K38: 0 | L38: N/A | M38: 0
A39: St James Medical Practice Ltd | B39: LC3 | C39: F86058 | D39: 'CKD AR 06 18'! | E39: 14437 | F39: 207 | G39: 152 | H39: 0.7342995169 | I39: 137 | J39: 0.6618357488 | K39: 152 | L39: 0.7342995169 | M39: 0
A40: Dr Cave & Partners - The Ridgeway Surgery | B40: LC3 | C40: F86078 | D40: 'CKD AR 06 18'! | E40: 7436 | F40: 364 | G40: 97 | H40: 0.2664835165 | I40: 171 | J40: 0.4697802198 | K40: 224 | L40: 0.6153846154 | M40: 1
A41: The Lyndhurst Surgery | B41: LC3 | C41: F86088 | D41: 'CKD AR 06 18'! | E41: 4380 | F41: 96 | G41: 73 | H41: 0.7604166667 | I41: 69 | J41: 0.71875 | K41: 73 | L41: 0.7604166667 | M41: 1
A42: LL Medical Care (Agarwal & Agrwal Practice) | B42: LC3 | C42: F86625 | D42: 'CKD AR 06 18'! | E42: 5980 | F42: 127 | G42: 46 | H42: 0.3622047244 | I42: 75 | J42: 0.5905511811 | K42: 80 | L42: 0.6299212598 | M42: 0
A43: Thatched House Medical Centre | B43: LC3 | C43: F86639 | D43: 'CKD AR 06 18'! | E43: 0 | F43: 0 | G43: 0 | H43: N/A | I43: 0 | J43: N/A | K43: 0 | L43: N/A | M43: 0
A44: The Harrow Road Surgery | B44: LC3 | C44: F86666 | D44: 'CKD AR 06 18'! | E44: 13757 | F44: 231 | G44: 147 | H44: 0.6363636364 | I44: 129 | J44: 0.5584415584 | K44: 156 | L44: 0.6753246753 | M44: 1
A45: Higham Hill Medical Centre | B45: LC3 | C45: F86679 | D45: 'CKD AR 06 18'! | E45: 5435 | F45: 77 | G45: 21 | H45: 0.2727272727 | I45: 56 | J45: 0.7272727273 | K45: 44 | L45: 0.5714285714 | M45: 0
A46: The Langthorne Sharma Family Practice | B46: LC3 | C46: F86705 | D46: 'CKD AR 06 18'! | E46: 2895 | F46: 50 | G46: 8 | H46: 0.16 | I46: 33 | J46: 0.66 | K46: 32 | L46: 0.64 | M46: 0
A47: Chingford Medical Practice | B47: LC3 | C47: Y01291 | D47: 'CKD AR 06 18'! | E47: 8697 | F47: 363 | G47: 249 | H47: 0.6859504132 | I47: 197 | J47: 0.5426997245 | K47: 203 | L47: 0.5592286501 | M47: 1
A48: The Orient Practice | B48: LC3 | C48: Y02585 | D48: 'CKD AR 06 18'! | E48: 8203 | F48: 41 | G48: 26 | H48: 0.6341463415 | I48: 24 | J48: 0.5853658537 | K48: 28 | L48: 0.6829268293 | M48: 0
D49: Found EMISweb Search: | E49: [00-00] Listsize | F49: [08-CKD] eGFR evidence of CKD | G49: NIS08-CKD01: evidence of CKD coded CKD (QOF v33) | I49: NIS08-CKD02: evidence of CKD with appropriate BP | K49: NIS08-CKD03: evidence of CKD on Statins | M49: NIS08-CKD08: Referrals to community renal clinic
D50: Top Left EMISweb Data: | E50: $A$9 | F50: $A$45 | G50: $A$81 | I50: $A$117 | K50: $A$153 | M50: $A$225
D51: EMISweb Array Start: | E51: $B$9 | F51: $B$45 | G51: $B$81 | I51: $B$117 | K51: $B$153 | M51: $B$225
D52: Top Left EMISweb Data +1 Row: | E52: $A$10 | F52: $A$46 | G52: $A$82 | I52: $A$118 | K52: $A$154 | M52: $A$226
D53: EMISweb Array End: | E53: $C$44 | F53: $C$80 | G53: $C$116 | I53: $C$152 | K53: $C$188 | M53: $C$237
A54: Chingford | C54: LC1 | E54: 35931 | F54: 601 | G54: 354 | H54: 0.5890183028 | I54: 327 | J54: 0.544093178 | K54: 388 | L54: 0.6455906822 | M54: 1
A55: Leyton & Leytonstone | C55: LC2 | E55: 128202 | F55: 3019 | G55: 1463 | H55: 0.4845975489 | I55: 1763 | J55: 0.5839682014 | K55: 1975 | L55: 0.6541901292 | M55: 12
A56: Walthamstow | C56: LC3 | E56: 98068 | F56: 2200 | G56: 1192 | H56: 0.5418181818 | I56: 1244 | J56: 0.5654545455 | K56: 1402 | L56: 0.6372727273 | M56: 10
A57: Waltham Forest Average | C57: Ave | H57: 0.539752878 | J57: 0.5850053801 | L57: 0.6574845663
C58: Total | D58: Networks | E58: 262201 | F58: 5820 | G58: 3009 | H58: 0.5170103093 | I58: 3334 | J58: 0.5728522337 | K58: 3765 | L58: 0.6469072165 | M58: 23
D59: Practices | E59: 245301 | F59: 5416 | G59: 2734 | H59: 0.5048005908 | I59: 3113 | J59: 0.5747784343 | K59: 3534 | L59: 0.6525110783 | M59: 22
C60: - | D60: - | E60: - | F60: - | G60: - | H60: - | I60: - | J60: - | K60: - | L60: - | M60: -
A61: Target3 | C61: Target3
A62: Target4 | C62: Target4

Sheet Homepage
C2: WF CKD MANAGEMENT 2021-2022 | G2: SELECT DATE >> | J2: SELECT PRACTICE >> | M2: SELECT KPI >>
C5: =UPPER(CHART!B1) -> EVIDENCE OF CKD WITH ACR | F5: PROGRESS TO TARGET | L5: MONTHLY ACHIEVEMENT TREND
C7: ELIGIBLE | E7: =IF(CHART!C8="#N/A","-",CHART!C8) -> 275
C9: AIM% | E9: =IFERROR(CHART!D12,"-") -> 0.5
C11: TOTAL REMAINING | E11: =IF(ISNA(CHART!C10), "-", CHART!C10) -> -
C13: MIN REMAINING | E13: =CHART!E9 -> -
C15: COMPLETED | E15: =IF(ISNA(CHART!C9), "-", CHART!C9) -> -
C17: ACHIEVED% | E17: =IF(ISNA(CHART!C12),"-",CHART!C12) -> -
C19: WF AVERAGE% | E19: =IF(ISNA(CHART!B14), "-", CHART!B14) -> 0.3212794696
C24: *Data is cumulative
C29: Version: 10.0 | E29: CEG Website: | F29: Visit CEG website | G29: CEG WF Facilitator: | H29: Fae Wilkins | I29: Email: | J29: Contact Fae

Sheet Summary
B1: Waltham Forest: CKD - Summary
F2: << SELECT DATE
D4: [00-00] | E4: [08-CKD] | F4: NIS08-CKD01 | G4: NIS08-CKD01% | H4: NIS08-CKD02 | I4: NIS08-CKD02% | J4: NIS08-CKD03 | K4: NIS08-CKD03% | M4: NIS08-CKD03%
D5: Listsize | E5: eGFR evidence of CKD | F5: evidence of CKD coded CKD | G5: % evidence of CKD coded CKD | H5: evidence of CKD with BP below 140/90 | I5: % evidence of CKD with BP below 140/90 | J5: evidence of CKD on Statins | K5: % evidence of CKD on Statins | L5: evidence of CKD to have ACR | M5: % evidence of CKD to have ACR
B6: Select a Practice >> | C6: Leyton Healthcare (Oliver Road) ** | D6: =IF(COUNTIFS(WF_CKD_DATA[[#All],[OrgID]],PRACTICE!$F$11,WF_CKD_DATA[[#All],[Rel_D]],Locations!$E$17)=0,"-",(SUMIFS(WF_CKD_DATA[[#All],[00-00]],WF_CKD_DATA[[#All],[OrgID]],PRACTICE!F11,WF_CKD_DATA[[#All],[Rel_D]],Locations!$E$17))) -> 15084 | E6: =IF(COUNTIFS(WF_CKD_DATA[[#All],[OrgID]],PRACTICE!$F$11,WF_CKD_DATA[[#All],[Rel_D]],Locations!$E$17)=0,"-",(SUMIFS(WF_CKD_DATA[[#All],[08-CKD]],WF_CKD_DATA[[#All],[OrgID]],PRACTICE!F11,WF_CKD_DATA[[#All],[Rel_D]],Locations!$E$17))) -> 372 | F6: =IF(COUNTIFS(WF_CKD_DATA[[#All],[OrgID]],PRACTICE!$F$11,WF_CKD_DATA[[#All],[Rel_D]],Locations!$E$17)=0,"-",(SUMIFS(WF_CKD_DATA[[#All],[NIS08-CKD01]],WF_CKD_DATA[[#All],[OrgID]],PRACTICE!F11,WF_CKD_DATA[[#All],[Rel_D]],Locations!$E$17))) -> 260 | G6: =IFERROR(F6/E6,"-") -> 0.6989247312 | H6: =IF(COUNTIFS(WF_CKD_DATA[[#All],[OrgID]],PRACTICE!$F$11,WF_CKD_DATA[[#All],[Rel_D]],Locations!$E$17)=0,"-",(SUMIFS(WF_CKD_DATA[[#All],[NIS08-CKD02]],WF_CKD_DATA[[#All],[OrgID]],PRACTICE!F11,WF_CKD_DATA[[#All],[Rel_D]],Locations!$E$17))) -> 189 | I6: =IFERROR(H6/E6,"-") -> 0.5080645161 | J6: =IF(COUNTIFS(WF_CKD_DATA[[#All],[OrgID]],PRACTICE!$F$11,WF_CKD_DATA[[#All],[Rel_D]],Locations!$E$17)=0,"-",(SUMIFS(WF_CKD_DATA[[#All],[NIS08-CKD03]],WF_CKD_DATA[[#All],[OrgID]],PRACTICE!F11,WF_CKD_DATA[[#All],[Rel_D]],Locations!$E$17))) -> 242 | K6: =IFERROR(J6/E6,"-") -> 0.6505376344 | L6: =IF(COUNTIFS(WF_CKD_DATA[[#All],[OrgID]],PRACTICE!$F$11,WF_CKD_DATA[[#All],[Rel_D]],Locations!$E$17)=0,"-",(SUMIFS(WF_CKD_DATA[[#All],[NIS08-CKD04]],WF_CKD_DATA[[#All],[OrgID]],PRACTICE!F11,WF_CKD_DATA[[#All],[Rel_D]],Locations!$E$17))) -> 0 | M6: =IFERROR(L6/E6,"-") -> 0
B7: Network | C7: =VLOOKUP($C$6,PRACTICE!$B$2:$C$40,2,0) -> Leyton Collaborative | D7: =SUMIFS(WF_CKD_DATA[[#All],[00-00]],WF_CKD_DATA[[#All],[SubLocality]],$C$7,WF_CKD_DATA[[#All],[Rel_D]],Locations!$E$17) -> 35883 | E7: =SUMIFS(WF_CKD_DATA[[#All],[08-CKD]],WF_CKD_DATA[[#All],[SubLocality]],$C$7,WF_CKD_DATA[[#All],[Rel_D]],Locations!$E$17) -> 779 | F7: =SUMIFS(WF_CKD_DATA[[#All],[NIS08-CKD01]],WF_CKD_DATA[[#All],[SubLocality]],$C$7,WF_CKD_DATA[[#All],[Rel_D]],Locations!$E$17) -> 581 | G7: =IFERROR(F7/E7, "-") -> 0.7458279846 | H7: =SUMIFS(WF_CKD_DATA[[#All],[NIS08-CKD02]],WF_CKD_DATA[[#All],[SubLocality]],$C$7,WF_CKD_DATA[[#All],[Rel_D]],Locations!$E$17) -> 449 | I7: =IFERROR(H7/E7, "-") -> 0.5763799743 | J7: =SUMIFS(WF_CKD_DATA[[#All],[NIS08-CKD03]],WF_CKD_DATA[[#All],[SubLocality]],$C$7,WF_CKD_DATA[[#All],[Rel_D]],Locations!$E$17) -> 531 | K7: =IFERROR(J7/E7, "-") -> 0.6816431322 | L7: =SUMIFS(WF_CKD_DATA[[#All],[NIS08-CKD04]],WF_CKD_DATA[[#All],[SubLocality]],$C$7,WF_CKD_DATA[[#All],[Rel_D]],Locations!$E$17) -> 156 | M7: =IFERROR(L7/E7, "-") -> 0.2002567394
B8: Waltham Forest Total | C8: Total | D8: =SUMIFS(WF_CKD_DATA[[#All],[00-00]],WF_CKD_DATA[[#All],[Rel_D]],Locations!$E$17) -> 323029 | E8: =SUMIFS(WF_CKD_DATA[[#All],[08-CKD]],WF_CKD_DATA[[#All],[Rel_D]],Locations!$E$17) -> 8222 | F8: =SUMIFS(WF_CKD_DATA[[#All],[NIS08-CKD01]],WF_CKD_DATA[[#All],[Rel_D]],Locations!$E$17) -> 6643 | G8: =IFERROR(F8/E8, "-") -> 0.807954269 | H8: =SUMIFS(WF_CKD_DATA[[#All],[NIS08-CKD02]],WF_CKD_DATA[[#All],[Rel_D]],Locations!$E$17) -> 4457 | I8: =IFERROR(H8/E8,"-") -> 0.5420822184 | J8: =SUMIFS(WF_CKD_DATA[[#All],[NIS08-CKD03]],WF_CKD_DATA[[#All],[Rel_D]],Locations!$E$17) -> 5512 | K8: =IFERROR(J8/E8, "-") -> 0.6703964972 | L8: =SUMIFS(WF_CKD_DATA[[#All],[NIS08-CKD04]],WF_CKD_DATA[[#All],[Rel_D]],Locations!$E$17) -> 2153 | M8: =IFERROR(L8/E8, "-") -> 0.2618584286
D11: ** | E11: SystmOne practices

Sheet Detail
E2: =MATCH(C6,HEADERINFO2!D:D,0)-1 -> 2 | F2: A | G2: 0 | H2: 1 | I2: 2 | J2: 3 | K2: 4 | L2: 5 | M2: 6 | N2: 5 | O2: 6
C3: CKD DETAIL | F3: [00-00] | G3: =OFFSET(HEADERINFO2!$B$1,$E$2+G2,0) -> [08-CKD] | H3: =OFFSET(HEADERINFO2!$B$1,$E$2+H2,0) -> NIS08-CKD01 | I3: =OFFSET(HEADERINFO2!$B$1,$E$2+I2,0) -> NIS08-CKD01% | J3: =OFFSET(HEADERINFO2!$B$1,$E$2+J2,0) -> NIS08-CKD02 | K3: =OFFSET(HEADERINFO2!$B$1,$E$2+K2,0) -> NIS08-CKD02% | L3: =OFFSET(HEADERINFO2!$B$1,$E$2+L2,0) -> NIS08-CKD03 | M3: =OFFSET(HEADERINFO2!$B$1,$E$2+M2,0) -> NIS08-CKD03% | N3: NIS08-CKD04 | O3: NIS08-CKD04%
C5: Practice | D5: NACS | E5: Locality | F5: Listsize | G5: =VLOOKUP(G$3,INDIRECT(Locations!$B$39),2,0) -> Complex Care
C6: =F2&HEADERTOGGLE!$J$2 -> A | G6: =VLOOKUP(G$3,INDIRECT(Locations!$B$39),4,0) -> eGFR evidence of CKD | H6: =VLOOKUP(H$3,INDIRECT(Locations!$B$39),4,0) -> evidence of CKD coded CKD | I6: =VLOOKUP(I$3,INDIRECT(Locations!$B$39),4,0) -> % evidence of CKD coded CKD | J6: =VLOOKUP(J$3,INDIRECT(Locations!$B$39),4,0) -> evidence of CKD with BP below 140/90 | K6: =VLOOKUP(K$3,INDIRECT(Locations!$B$39),4,0) -> % evidence of CKD with BP below 140/90 | L6: =VLOOKUP(L$3,INDIRECT(Locations!$B$39),4,0) -> evidence of CKD on Statins | M6: =VLOOKUP(M$3,INDIRECT(Locations!$B$39),4,0) -> % evidence of CKD on Statins | N6: =VLOOKUP(N$3,INDIRECT(Locations!$B$39),4,0) -> evidence of CKD to have ACR | O6: =VLOOKUP(O$3,INDIRECT(Locations!$B$39),4,0) -> % evidence of CKD to have ACR
C7: Kings Head Medical Practice | D7: F86700 | E7: WF-1 | F7: =SUMIFS(WF_CKD_DATA[[#All],[00-00]],WF_CKD_DATA[[#All],[OrgID]],$D7,WF_CKD_DATA[[#All],[Rel_D]],Locations!$E$17) -> 3901 | G7: =SUMIFS(WF_CKD_DATA[[#All],[08-CKD]],WF_CKD_DATA[[#All],[OrgID]],$D7,WF_CKD_DATA[[#All],[Rel_D]],Locations!$E$17) -> 172 | H7: =SUMIFS(WF_CKD_DATA[[#All],[NIS08-CKD01]],WF_CKD_DATA[[#All],[OrgID]],$D7,WF_CKD_DATA[[#All],[Rel_D]],Locations!$E$17) -> 172 | I7: =H7/G7 -> 1 | J7: =SUMIFS(WF_CKD_DATA[[#All],[NIS08-CKD02]],WF_CKD_DATA[[#All],[OrgID]],$D7,WF_CKD_DATA[[#All],[Rel_D]],Locations!$E$17) -> 124 | K7: =J7/G7 -> 0.7209302326 | L7: =SUMIFS(WF_CKD_DATA[[#All],[NIS08-CKD03]],WF_CKD_DATA[[#All],[OrgID]],$D7,WF_CKD_DATA[[#All],[Rel_D]],Locations!$E$17) -> 115 | M7: =L7/G7 -> 0.6686046512 | N7: =SUMIFS(WF_CKD_DATA[[#All],[NIS08-CKD04]],WF_CKD_DATA[[#All],[OrgID]],$D7,WF_CKD_DATA[[#All],[Rel_D]],Locations!$E$17) -> 49 | O7: =N7/G7 -> 0.2848837209
C8: Larkshall Medical Centre | D8: F86664 | E8: WF-1 | F8: =SUMIFS(WF_CKD_DATA[[#All],[00-00]],WF_CKD_DATA[[#All],[OrgID]],$D8,WF_CKD_DATA[[#All],[Rel_D]],Locations!$E$17) -> 8471 | G8: =SUMIFS(WF_CKD_DATA[[#All],[08-CKD]],WF_CKD_DATA[[#All],[OrgID]],$D8,WF_CKD_DATA[[#All],[Rel_D]],Locations!$E$17) -> 209 | H8: =SUMIFS(WF_CKD_DATA[[#All],[NIS08-CKD01]],WF_CKD_DATA[[#All],[OrgID]],$D8,WF_CKD_DATA[[#All],[Rel_D]],Locations!$E$17) -> 165 | I8: =H8/G8 -> 0.7894736842 | J8: =SUMIFS(WF_CKD_DATA[[#All],[NIS08-CKD02]],WF_CKD_DATA[[#All],[OrgID]],$D8,WF_CKD_DATA[[#All],[Rel_D]],Locations!$E$17) -> 105 | K8: =J8/G8 -> 0.5023923445 | L8: =SUMIFS(WF_CKD_DATA[[#All],[NIS08-CKD03]],WF_CKD_DATA[[#All],[OrgID]],$D8,WF_CKD_DATA[[#All],[Rel_D]],Locations!$E$17) -> 148 | M8: =L8/G8 -> 0.7081339713 | N8: =SUMIFS(WF_CKD_DATA[[#All],[NIS08-CKD04]],WF_CKD_DATA[[#All],[OrgID]],$D8,WF_CKD_DATA[[#All],[Rel_D]],Locations!$E$17) -> 38 | O8: =N8/G8 -> 0.1818181818
C9: The Microfaculty ** | D9: F86638 | E9: WF-1 | F9: =SUMIFS(WF_CKD_DATA[[#All],[00-00]],WF_CKD_DATA[[#All],[OrgID]],$D9,WF_CKD_DATA[[#All],[Rel_D]],Locations!$E$17) -> 5191 | G9: =SUMIFS(WF_CKD_DATA[[#All],[08-CKD]],WF_CKD_DATA[[#All],[OrgID]],$D9,WF_CKD_DATA[[#All],[Rel_D]],Locations!$E$17) -> 275 | H9: =SUMIFS(WF_CKD_DATA[[#All],[NIS08-CKD01]],WF_CKD_DATA[[#All],[OrgID]],$D9,WF_CKD_DATA[[#All],[Rel_D]],Locations!$E$17) -> 204 | I9: =IFERROR(H9/G9,"-") -> 0.7418181818 | J9: =SUMIFS(WF_CKD_DATA[[#All],[NIS08-CKD02]],WF_CKD_DATA[[#All],[OrgID]],$D9,WF_CKD_DATA[[#All],[Rel_D]],Locations!$E$17) -> 144 | K9: =IFERROR(J9/G9, "-") -> 0.5236363636 | L9: =SUMIFS(WF_CKD_DATA[[#All],[NIS08-CKD03]],WF_CKD_DATA[[#All],[OrgID]],$D9,WF_CKD_DATA[[#All],[Rel_D]],Locations!$E$17) -> 180 | M9: =IFERROR(L9/G9,"-") -> 0.6545454545 | N9: =SUMIFS(WF_CKD_DATA[[#All],[NIS08-CKD04]],WF_CKD_DATA[[#All],[OrgID]],$D9,WF_CKD_DATA[[#All],[Rel_D]],Locations!$E$17) -> 0 | O9: =IFERROR(N9/G9,"-") -> 0
C10: The Penryhn Surgery | D10: F86005 | E10: WF-1 | F10: =SUMIFS(WF_CKD_DATA[[#All],[00-00]],WF_CKD_DATA[[#All],[OrgID]],$D10,WF_CKD_DATA[[#All],[Rel_D]],Locations!$E$17) -> 9502 | G10: =SUMIFS(WF_CKD_DATA[[#All],[08-CKD]],WF_CKD_DATA[[#All],[OrgID]],$D10,WF_CKD_DATA[[#All],[Rel_D]],Locations!$E$17) -> 185 | H10: =SUMIFS(WF_CKD_DATA[[#All],[NIS08-CKD01]],WF_CKD_DATA[[#All],[OrgID]],$D10,WF_CKD_DATA[[#All],[Rel_D]],Locations!$E$17) -> 171 | I10: 0.9243243243 | J10: =SUMIFS(WF_CKD_DATA[[#All],[NIS08-CKD02]],WF_CKD_DATA[[#All],[OrgID]],$D10,WF_CKD_DATA[[#All],[Rel_D]],Locations!$E$17) -> 90 | K10: 0.4864864865 | L10: =SUMIFS(WF_CKD_DATA[[#All],[NIS08-CKD03]],WF_CKD_DATA[[#All],[OrgID]],$D10,WF_CKD_DATA[[#All],[Rel_D]],Locations!$E$17) -> 124 | M10: 0.6702702703 | N10: =SUMIFS(WF_CKD_DATA[[#All],[NIS08-CKD04]],WF_CKD_DATA[[#All],[OrgID]],$D10,WF_CKD_DATA[[#All],[Rel_D]],Locations!$E$17) -> 52 | O10: 0.2810810811
C11: Dr Shantir Practice | D11: F86626 | E11: WF-1 | F11: =SUMIFS(WF_CKD_DATA[[#All],[00-00]],WF_CKD_DATA[[#All],[OrgID]],$D11,WF_CKD_DATA[[#All],[Rel_D]],Locations!$E$17) -> 7013 | G11: =SUMIFS(WF_CKD_DATA[[#All],[08-CKD]],WF_CKD_DATA[[#All],[OrgID]],$D11,WF_CKD_DATA[[#All],[Rel_D]],Locations!$E$17) -> 103 | H11: =SUMIFS(WF_CKD_DATA[[#All],[NIS08-CKD01]],WF_CKD_DATA[[#All],[OrgID]],$D11,WF_CKD_DATA[[#All],[Rel_D]],Locations!$E$17) -> 86 | I11: 0.8349514563 | J11: =SUMIFS(WF_CKD_DATA[[#All],[NIS08-CKD02]],WF_CKD_DATA[[#All],[OrgID]],$D11,WF_CKD_DATA[[#All],[Rel_D]],Locations!$E$17) -> 47 | K11: 0.4563106796 | L11: =SUMIFS(WF_CKD_DATA[[#All],[NIS08-CKD03]],WF_CKD_DATA[[#All],[OrgID]],$D11,WF_CKD_DATA[[#All],[Rel_D]],Locations!$E$17) -> 64 | M11: 0.6213592233 | N11: =SUMIFS(WF_CKD_DATA[[#All],[NIS08-CKD04]],WF_CKD_DATA[[#All],[OrgID]],$D11,WF_CKD_DATA[[#All],[Rel_D]],Locations!$E$17) -> 20 | O11: 0.1941747573
C12: Lime Tree & Sinnott Healthcare Ltd | D12: Y01839 | E12: WF-1 | F12: =SUMIFS(WF_CKD_DATA[[#All],[00-00]],WF_CKD_DATA[[#All],[OrgID]],$D12,WF_CKD_DATA[[#All],[Rel_D]],Locations!$E$17) -> 6230 | G12: =SUMIFS(WF_CKD_DATA[[#All],[08-CKD]],WF_CKD_DATA[[#All],[OrgID]],$D12,WF_CKD_DATA[[#All],[Rel_D]],Locations!$E$17) -> 151 | H12: =SUMIFS(WF_CKD_DATA[[#All],[NIS08-CKD01]],WF_CKD_DATA[[#All],[OrgID]],$D12,WF_CKD_DATA[[#All],[Rel_D]],Locations!$E$17) -> 129 | I12: 0.8543046358 | J12: =SUMIFS(WF_CKD_DATA[[#All],[NIS08-CKD02]],WF_CKD_DATA[[#All],[OrgID]],$D12,WF_CKD_DATA[[#All],[Rel_D]],Locations!$E$17) -> 70 | K12: 0.4635761589 | L12: =SUMIFS(WF_CKD_DATA[[#All],[NIS08-CKD03]],WF_CKD_DATA[[#All],[OrgID]],$D12,WF_CKD_DATA[[#All],[Rel_D]],Locations!$E$17) -> 111 | M12: 0.7350993377 | N12: =SUMIFS(WF_CKD_DATA[[#All],[NIS08-CKD04]],WF_CKD_DATA[[#All],[OrgID]],$D12,WF_CKD_DATA[[#All],[Rel_D]],Locations!$E$17) -> 41 | O12: 0.2715231788
C13: The Bailey Practice | D13: F86689 | E13: WF-1 | F13: =SUMIFS(WF_CKD_DATA[[#All],[00-00]],WF_CKD_DATA[[#All],[OrgID]],$D13,WF_CKD_DATA[[#All],[Rel_D]],Locations!$E$17) -> 4395 | G13: =SUMIFS(WF_CKD_DATA[[#All],[08-CKD]],WF_CKD_DATA[[#All],[OrgID]],$D13,WF_CKD_DATA[[#All],[Rel_D]],Locations!$E$17) -> 82 | H13: =SUMIFS(WF_CKD_DATA[[#All],[NIS08-CKD01]],WF_CKD_DATA[[#All],[OrgID]],$D13,WF_CKD_DATA[[#All],[Rel_D]],Locations!$E$17) -> 70 | I13: 0.8536585366 | J13: =SUMIFS(WF_CKD_DATA[[#All],[NIS08-CKD02]],WF_CKD_DATA[[#All],[OrgID]],$D13,WF_CKD_DATA[[#All],[Rel_D]],Locations!$E$17) -> 41 | K13: 0.5 | L13: =SUMIFS(WF_CKD_DATA[[#All],[NIS08-CKD03]],WF_CKD_DATA[[#All],[OrgID]],$D13,WF_CKD_DATA[[#All],[Rel_D]],Locations!$E$17) -> 56 | M13: 0.6829268293 | N13: =SUMIFS(WF_CKD_DATA[[#All],[NIS08-CKD04]],WF_CKD_DATA[[#All],[OrgID]],$D13,WF_CKD_DATA[[#All],[Rel_D]],Locations!$E$17) -> 14 | O13: 0.1707317073
C14: Forest Surgery ** | D14: F86026 | E14: WF-1 | F14: =SUMIFS(WF_CKD_DATA[[#All],[00-00]],WF_CKD_DATA[[#All],[OrgID]],$D14,WF_CKD_DATA[[#All],[Rel_D]],Locations!$E$17) -> 7141 | G14: =SUMIFS(WF_CKD_DATA[[#All],[08-CKD]],WF_CKD_DATA[[#All],[OrgID]],$D14,WF_CKD_DATA[[#All],[Rel_D]],Locations!$E$17) -> 276 | H14: =SUMIFS(WF_CKD_DATA[[#All],[NIS08-CKD01]],WF_CKD_DATA[[#All],[OrgID]],$D14,WF_CKD_DATA[[#All],[Rel_D]],Locations!$E$17) -> 194 | I14: =IFERROR(H14/G14,"-") -> 0.7028985507 | J14: =SUMIFS(WF_CKD_DATA[[#All],[NIS08-CKD02]],WF_CKD_DATA[[#All],[OrgID]],$D14,WF_CKD_DATA[[#All],[Rel_D]],Locations!$E$17) -> 166 | K14: =IFERROR(J14/G14, "-") -> 0.6014492754 | L14: =SUMIFS(WF_CKD_DATA[[#All],[NIS08-CKD03]],WF_CKD_DATA[[#All],[OrgID]],$D14,WF_CKD_DATA[[#All],[Rel_D]],Locations!$E$17) -> 157 | M14: =IFERROR(L14/G14,"-") -> 0.5688405797 | N14: =SUMIFS(WF_CKD_DATA[[#All],[NIS08-CKD04]],WF_CKD_DATA[[#All],[OrgID]],$D14,WF_CKD_DATA[[#All],[Rel_D]],Locations!$E$17) -> 0 | O14: =IFERROR(N14/G14,"-") -> 0
C15: Chingford/ Walthamstow | D15: WF-1 | E15: WF-1 | F15: =SUM(F7:F14) -> 51844 | G15: =SUM(G7:G14) -> 1453 | H15: =SUM(H7:H14) -> 1191 | I15: =IFERROR(H15/G15,"-") -> 0.8196834136 | J15: =SUM(J7:J14) -> 787 | K15: =IFERROR(J15/G15,"-") -> 0.5416379904 | L15: =SUM(L7:L14) -> 955 | M15: =L15/G15 -> 0.6572608396 | N15: =SUM(N7:N14) -> 214 | O15: 0.1472814866
C16: Chingford Medical Practice | D16: Y01291 | E16: WF-2 | F16: =SUMIFS(WF_CKD_DATA[[#All],[00-00]],WF_CKD_DATA[[#All],[OrgID]],$D16,WF_CKD_DATA[[#All],[Rel_D]],Locations!$E$17) -> 9172 | G16: =SUMIFS(WF_CKD_DATA[[#All],[08-CKD]],WF_CKD_DATA[[#All],[OrgID]],$D16,WF_CKD_DATA[[#All],[Rel_D]],Locations!$E$17) -> 368 | H16: =SUMIFS(WF_CKD_DATA[[#All],[NIS08-CKD01]],WF_CKD_DATA[[#All],[OrgID]],$D16,WF_CKD_DATA[[#All],[Rel_D]],Locations!$E$17) -> 357 | I16: 0.9701086957 | J16: =SUMIFS(WF_CKD_DATA[[#All],[NIS08-CKD02]],WF_CKD_DATA[[#All],[OrgID]],$D16,WF_CKD_DATA[[#All],[Rel_D]],Locations!$E$17) -> 225 | K16: =IFERROR(J16/G16,"-") -> 0.6114130435 | L16: =SUMIFS(WF_CKD_DATA[[#All],[NIS08-CKD03]],WF_CKD_DATA[[#All],[OrgID]],$D16,WF_CKD_DATA[[#All],[Rel_D]],Locations!$E$17) -> 247 | M16: =L16/G16 -> 0.6711956522 | N16: =SUMIFS(WF_CKD_DATA[[#All],[NIS08-CKD04]],WF_CKD_DATA[[#All],[OrgID]],$D16,WF_CKD_DATA[[#All],[Rel_D]],Locations!$E$17) -> 206 | O16: 0.5597826087
C17: Churchill Medical Centre | D17: F86627 | E17: WF-2 | F17: =SUMIFS(WF_CKD_DATA[[#All],[00-00]],WF_CKD_DATA[[#All],[OrgID]],$D17,WF_CKD_DATA[[#All],[Rel_D]],Locations!$E$17) -> 13283 | G17: =SUMIFS(WF_CKD_DATA[[#All],[08-CKD]],WF_CKD_DATA[[#All],[OrgID]],$D17,WF_CKD_DATA[[#All],[Rel_D]],Locations!$E$17) -> 531 | H17: =SUMIFS(WF_CKD_DATA[[#All],[NIS08-CKD01]],WF_CKD_DATA[[#All],[OrgID]],$D17,WF_CKD_DATA[[#All],[Rel_D]],Locations!$E$17) -> 447 | I17: 0.8418079096 | J17: =SUMIFS(WF_CKD_DATA[[#All],[NIS08-CKD02]],WF_CKD_DATA[[#All],[OrgID]],$D17,WF_CKD_DATA[[#All],[Rel_D]],Locations!$E$17) -> 265 | K17: 0.4990583804 | L17: =SUMIFS(WF_CKD_DATA[[#All],[NIS08-CKD03]],WF_CKD_DATA[[#All],[OrgID]],$D17,WF_CKD_DATA[[#All],[Rel_D]],Locations!$E$17) -> 350 | M17: =L17/G17 -> 0.65913371 | N17: =SUMIFS(WF_CKD_DATA[[#All],[NIS08-CKD04]],WF_CKD_DATA[[#All],[OrgID]],$D17,WF_CKD_DATA[[#All],[Rel_D]],Locations!$E$17) -> 120 | O17: 0.2259887006
C18: Handsworth Medical Centre ** | D18: F86004 | E18: WF-2 | F18: =SUMIFS(WF_CKD_DATA[[#All],[00-00]],WF_CKD_DATA[[#All],[OrgID]],$D18,WF_CKD_DATA[[#All],[Rel_D]],Locations!$E$17) -> 15928 | G18: =SUMIFS(WF_CKD_DATA[[#All],[08-CKD]],WF_CKD_DATA[[#All],[OrgID]],$D18,WF_CKD_DATA[[#All],[Rel_D]],Locations!$E$17) -> 809 | H18: =SUMIFS(WF_CKD_DATA[[#All],[NIS08-CKD01]],WF_CKD_DATA[[#All],[OrgID]],$D18,WF_CKD_DATA[[#All],[Rel_D]],Locations!$E$17) -> 570 | I18: =IFERROR(H18/G18, "-") -> 0.7045735476 | J18: =SUMIFS(WF_CKD_DATA[[#All],[NIS08-CKD02]],WF_CKD_DATA[[#All],[OrgID]],$D18,WF_CKD_DATA[[#All],[Rel_D]],Locations!$E$17) -> 410 | K18: =IFERROR(J18/G18, "-") -> 0.5067985167 | L18: =SUMIFS(WF_CKD_DATA[[#All],[NIS08-CKD03]],WF_CKD_DATA[[#All],[OrgID]],$D18,WF_CKD_DATA[[#All],[Rel_D]],Locations!$E$17) -> 456 | M18: =IFERROR(L18/G18,"-") -> 0.5636588381 | N18: =SUMIFS(WF_CKD_DATA[[#All],[NIS08-CKD04]],WF_CKD_DATA[[#All],[OrgID]],$D18,WF_CKD_DATA[[#All],[Rel_D]],Locations!$E$17) -> 0 | O18: =IFERROR(N18/G18,"-") -> 0
C19: The Ridgeway Surgery | D19: F86078 | E19: WF-2 | F19: =SUMIFS(WF_CKD_DATA[[#All],[00-00]],WF_CKD_DATA[[#All],[OrgID]],$D19,WF_CKD_DATA[[#All],[Rel_D]],Locations!$E$17) -> 6869 | G19: =SUMIFS(WF_CKD_DATA[[#All],[08-CKD]],WF_CKD_DATA[[#All],[OrgID]],$D19,WF_CKD_DATA[[#All],[Rel_D]],Locations!$E$17) -> 316 | H19: =SUMIFS(WF_CKD_DATA[[#All],[NIS08-CKD01]],WF_CKD_DATA[[#All],[OrgID]],$D19,WF_CKD_DATA[[#All],[Rel_D]],Locations!$E$17) -> 113 | I19: 0.3575949367 | J19: =SUMIFS(WF_CKD_DATA[[#All],[NIS08-CKD02]],WF_CKD_DATA[[#All],[OrgID]],$D19,WF_CKD_DATA[[#All],[Rel_D]],Locations!$E$17) -> 128 | K19: 0.4050632911 | L19: =SUMIFS(WF_CKD_DATA[[#All],[NIS08-CKD03]],WF_CKD_DATA[[#All],[OrgID]],$D19,WF_CKD_DATA[[#All],[Rel_D]],Locations!$E$17) -> 190 | M19: 0.6012658228 | N19: =SUMIFS(WF_CKD_DATA[[#All],[NIS08-CKD04]],WF_CKD_DATA[[#All],[OrgID]],$D19,WF_CKD_DATA[[#All],[Rel_D]],Locations!$E$17) -> 49 | O19: 0.1550632911
C20: Old Church Surgery | D20: F86616 | E20: WF-2 | F20: =SUMIFS(WF_CKD_DATA[[#All],[00-00]],WF_CKD_DATA[[#All],[OrgID]],$D20,WF_CKD_DATA[[#All],[Rel_D]],Locations!$E$17) -> 7996 | G20: =SUMIFS(WF_CKD_DATA[[#All],[08-CKD]],WF_CKD_DATA[[#All],[OrgID]],$D20,WF_CKD_DATA[[#All],[Rel_D]],Locations!$E$17) -> 268 | H20: =SUMIFS(WF_CKD_DATA[[#All],[NIS08-CKD01]],WF_CKD_DATA[[#All],[OrgID]],$D20,WF_CKD_DATA[[#All],[Rel_D]],Locations!$E$17) -> 232 | I20: 0.8656716418 | J20: =SUMIFS(WF_CKD_DATA[[#All],[NIS08-CKD02]],WF_CKD_DATA[[#All],[OrgID]],$D20,WF_CKD_DATA[[#All],[Rel_D]],Locations!$E$17) -> 187 | K20: 0.697761194 | L20: =SUMIFS(WF_CKD_DATA[[#All],[NIS08-CKD03]],WF_CKD_DATA[[#All],[OrgID]],$D20,WF_CKD_DATA[[#All],[Rel_D]],Locations!$E$17) -> 164 | M20: 0.6119402985 | N20: =SUMIFS(WF_CKD_DATA[[#All],[NIS08-CKD04]],WF_CKD_DATA[[#All],[OrgID]],$D20,WF_CKD_DATA[[#All],[Rel_D]],Locations!$E$17) -> 90 | O20: 0.3358208955
C21: Chingford E4 | D21: WF-2 | E21: WF-2 | F21: =SUM(F16:F20) -> 53248 | G21: =SUM(G16:G20) -> 2292 | H21: 1719 | I21: 0.75 | J21: =SUM(J16:J20) -> 1215 | K21: =J21/G21 -> 0.530104712 | L21: =SUM(L16:L20) -> 1407 | M21: =L21/G21 -> 0.6138743455 | N21: =SUM(N16:N20) -> 465 | O21: =N21/G21 -> 0.2028795812
C22: The Manor Practice | D22: F86011 | E22: WF-3 | F22: =SUMIFS(WF_CKD_DATA[[#All],[00-00]],WF_CKD_DATA[[#All],[OrgID]],$D22,WF_CKD_DATA[[#All],[Rel_D]],Locations!$E$17) -> 9696 | G22: =SUMIFS(WF_CKD_DATA[[#All],[08-CKD]],WF_CKD_DATA[[#All],[OrgID]],$D22,WF_CKD_DATA[[#All],[Rel_D]],Locations!$E$17) -> 217 | H22: =SUMIFS(WF_CKD_DATA[[#All],[NIS08-CKD01]],WF_CKD_DATA[[#All],[OrgID]],$D22,WF_CKD_DATA[[#All],[Rel_D]],Locations!$E$17) -> 169 | I22: 0.7788018433 | J22: =SUMIFS(WF_CKD_DATA[[#All],[NIS08-CKD02]],WF_CKD_DATA[[#All],[OrgID]],$D22,WF_CKD_DATA[[#All],[Rel_D]],Locations!$E$17) -> 110 | K22: 0.5069124424 | L22: =SUMIFS(WF_CKD_DATA[[#All],[NIS08-CKD03]],WF_CKD_DATA[[#All],[OrgID]],$D22,WF_CKD_DATA[[#All],[Rel_D]],Locations!$E$17) -> 144 | M22: =L22/G22 -> 0.66359447 | N22: =SUMIFS(WF_CKD_DATA[[#All],[NIS08-CKD04]],WF_CKD_DATA[[#All],[OrgID]],$D22,WF_CKD_DATA[[#All],[Rel_D]],Locations!$E$17) -> 56 | O22: 0.2580645161
C23: Sma Medical Centre | D23: F86038 | E23: WF-3 | F23: =SUMIFS(WF_CKD_DATA[[#All],[00-00]],WF_CKD_DATA[[#All],[OrgID]],$D23,WF_CKD_DATA[[#All],[Rel_D]],Locations!$E$17) -> 11103 | G23: =SUMIFS(WF_CKD_DATA[[#All],[08-CKD]],WF_CKD_DATA[[#All],[OrgID]],$D23,WF_CKD_DATA[[#All],[Rel_D]],Locations!$E$17) -> 190 | H23: =SUMIFS(WF_CKD_DATA[[#All],[NIS08-CKD01]],WF_CKD_DATA[[#All],[OrgID]],$D23,WF_CKD_DATA[[#All],[Rel_D]],Locations!$E$17) -> 152 | I23: 0.8 | J23: =SUMIFS(WF_CKD_DATA[[#All],[NIS08-CKD02]],WF_CKD_DATA[[#All],[OrgID]],$D23,WF_CKD_DATA[[#All],[Rel_D]],Locations!$E$17) -> 150 | K23: 0.7894736842 | L23: =SUMIFS(WF_CKD_DATA[[#All],[NIS08-CKD03]],WF_CKD_DATA[[#All],[OrgID]],$D23,WF_CKD_DATA[[#All],[Rel_D]],Locations!$E$17) -> 145 | M23: =L23/G23 -> 0.7631578947 | N23: =SUMIFS(WF_CKD_DATA[[#All],[NIS08-CKD04]],WF_CKD_DATA[[#All],[OrgID]],$D23,WF_CKD_DATA[[#All],[Rel_D]],Locations!$E$17) -> 100 | O23: 0.5263157895
C24: Leyton Healthcare (Oliver Road) ** | D24: F86074 | E24: WF-3 | F24: =SUMIFS(WF_CKD_DATA[[#All],[00-00]],WF_CKD_DATA[[#All],[OrgID]],$D24,WF_CKD_DATA[[#All],[Rel_D]],Locations!$E$17) -> 15084 | G24: =SUMIFS(WF_CKD_DATA[[#All],[08-CKD]],WF_CKD_DATA[[#All],[OrgID]],$D24,WF_CKD_DATA[[#All],[Rel_D]],Locations!$E$17) -> 372 | H24: =SUMIFS(WF_CKD_DATA[[#All],[NIS08-CKD01]],WF_CKD_DATA[[#All],[OrgID]],$D24,WF_CKD_DATA[[#All],[Rel_D]],Locations!$E$17) -> 260 | I24: =IFERROR(H24/G24,"-") -> 0.6989247312 | J24: =SUMIFS(WF_CKD_DATA[[#All],[NIS08-CKD02]],WF_CKD_DATA[[#All],[OrgID]],$D24,WF_CKD_DATA[[#All],[Rel_D]],Locations!$E$17) -> 189 | K24: =IFERROR(J24/G24, "-") -> 0.5080645161 | L24: =SUMIFS(WF_CKD_DATA[[#All],[NIS08-CKD03]],WF_CKD_DATA[[#All],[OrgID]],$D24,WF_CKD_DATA[[#All],[Rel_D]],Locations!$E$17) -> 242 | M24: =IFERROR(L24/G24,"-") -> 0.6505376344 | N24: =SUMIFS(WF_CKD_DATA[[#All],[NIS08-CKD04]],WF_CKD_DATA[[#All],[OrgID]],$D24,WF_CKD_DATA[[#All],[Rel_D]],Locations!$E$17) -> 0 | O24: =IFERROR(N24/G24,"-") -> 0
C25: Leyton Collaborative | D25: WF-3 | E25: WF-3 | F25: =SUM(F22:F24) -> 35883 | G25: =SUM(G22:G24) -> 779 | H25: =SUM(H22:H24) -> 581 | I25: 0.7458279846 | J25: =SUM(J22:J24) -> 449 | K25: =J25/G25 -> 0.5763799743 | L25: =SUM(L22:L24) -> 531 | M25: =L25/G25 -> 0.6816431322 | N25: =SUM(N22:N24) -> 156 | O25: =N25/G25 -> 0.2002567394
C26: The Allum Medical Centre | D26: F86036 | E26: WF-4 | F26: =SUMIFS(WF_CKD_DATA[[#All],[00-00]],WF_CKD_DATA[[#All],[OrgID]],$D26,WF_CKD_DATA[[#All],[Rel_D]],Locations!$E$17) -> 14732 | G26: =SUMIFS(WF_CKD_DATA[[#All],[08-CKD]],WF_CKD_DATA[[#All],[OrgID]],$D26,WF_CKD_DATA[[#All],[Rel_D]],Locations!$E$17) -> 305 | H26: =SUMIFS(WF_CKD_DATA[[#All],[NIS08-CKD01]],WF_CKD_DATA[[#All],[OrgID]],$D26,WF_CKD_DATA[[#All],[Rel_D]],Locations!$E$17) -> 224 | I26: 0.7344262295 | J26: =SUMIFS(WF_CKD_DATA[[#All],[NIS08-CKD02]],WF_CKD_DATA[[#All],[OrgID]],$D26,WF_CKD_DATA[[#All],[Rel_D]],Locations!$E$17) -> 167 | K26: 0.5475409836 | L26: =SUMIFS(WF_CKD_DATA[[#All],[NIS08-CKD03]],WF_CKD_DATA[[#All],[OrgID]],$D26,WF_CKD_DATA[[#All],[Rel_D]],Locations!$E$17) -> 206 | M26: =L26/G26 -> 0.6754098361 | N26: =SUMIFS(WF_CKD_DATA[[#All],[NIS08-CKD04]],WF_CKD_DATA[[#All],[OrgID]],$D26,WF_CKD_DATA[[#All],[Rel_D]],Locations!$E$17) -> 98 | O26: 0.3213114754
C27: Crawley Road Medical Centre | D27: F86044 | E27: WF-4 | F27: =SUMIFS(WF_CKD_DATA[[#All],[00-00]],WF_CKD_DATA[[#All],[OrgID]],$D27,WF_CKD_DATA[[#All],[Rel_D]],Locations!$E$17) -> 10801 | G27: =SUMIFS(WF_CKD_DATA[[#All],[08-CKD]],WF_CKD_DATA[[#All],[OrgID]],$D27,WF_CKD_DATA[[#All],[Rel_D]],Locations!$E$17) -> 117 | H27: =SUMIFS(WF_CKD_DATA[[#All],[NIS08-CKD01]],WF_CKD_DATA[[#All],[OrgID]],$D27,WF_CKD_DATA[[#All],[Rel_D]],Locations!$E$17) -> 105 | I27: 0.8974358974 | J27: =SUMIFS(WF_CKD_DATA[[#All],[NIS08-CKD02]],WF_CKD_DATA[[#All],[OrgID]],$D27,WF_CKD_DATA[[#All],[Rel_D]],Locations!$E$17) -> 56 | K27: 0.4786324786 | L27: =SUMIFS(WF_CKD_DATA[[#All],[NIS08-CKD03]],WF_CKD_DATA[[#All],[OrgID]],$D27,WF_CKD_DATA[[#All],[Rel_D]],Locations!$E$17) -> 83 | M27: =L27/G27 -> 0.7094017094 | N27: =SUMIFS(WF_CKD_DATA[[#All],[NIS08-CKD04]],WF_CKD_DATA[[#All],[OrgID]],$D27,WF_CKD_DATA[[#All],[Rel_D]],Locations!$E$17) -> 28 | O27: 0.2393162393
C28: Francis Road Medical Centre | D28: F86696 | E28: WF-4 | F28: =SUMIFS(WF_CKD_DATA[[#All],[00-00]],WF_CKD_DATA[[#All],[OrgID]],$D28,WF_CKD_DATA[[#All],[Rel_D]],Locations!$E$17) -> 6873 | G28: =SUMIFS(WF_CKD_DATA[[#All],[08-CKD]],WF_CKD_DATA[[#All],[OrgID]],$D28,WF_CKD_DATA[[#All],[Rel_D]],Locations!$E$17) -> 117 | H28: =SUMIFS(WF_CKD_DATA[[#All],[NIS08-CKD01]],WF_CKD_DATA[[#All],[OrgID]],$D28,WF_CKD_DATA[[#All],[Rel_D]],Locations!$E$17) -> 109 | I28: 0.9316239316 | J28: =SUMIFS(WF_CKD_DATA[[#All],[NIS08-CKD02]],WF_CKD_DATA[[#All],[OrgID]],$D28,WF_CKD_DATA[[#All],[Rel_D]],Locations!$E$17) -> 62 | K28: 0.5299145299 | L28: =SUMIFS(WF_CKD_DATA[[#All],[NIS08-CKD03]],WF_CKD_DATA[[#All],[OrgID]],$D28,WF_CKD_DATA[[#All],[Rel_D]],Locations!$E$17) -> 92 | M28: 0.7863247863 | N28: =SUMIFS(WF_CKD_DATA[[#All],[NIS08-CKD04]],WF_CKD_DATA[[#All],[OrgID]],$D28,WF_CKD_DATA[[#All],[Rel_D]],Locations!$E$17) -> 50 | O28: 0.4273504274
C29: Hampton Medical Centre | D29: F86712 | E29: WF-4 | F29: =SUMIFS(WF_CKD_DATA[[#All],[00-00]],WF_CKD_DATA[[#All],[OrgID]],$D29,WF_CKD_DATA[[#All],[Rel_D]],Locations!$E$17) -> 3392 | G29: =SUMIFS(WF_CKD_DATA[[#All],[08-CKD]],WF_CKD_DATA[[#All],[OrgID]],$D29,WF_CKD_DATA[[#All],[Rel_D]],Locations!$E$17) -> 74 | H29: =SUMIFS(WF_CKD_DATA[[#All],[NIS08-CKD01]],WF_CKD_DATA[[#All],[OrgID]],$D29,WF_CKD_DATA[[#All],[Rel_D]],Locations!$E$17) -> 73 | I29: 0.9864864865 | J29: =SUMIFS(WF_CKD_DATA[[#All],[NIS08-CKD02]],WF_CKD_DATA[[#All],[OrgID]],$D29,WF_CKD_DATA[[#All],[Rel_D]],Locations!$E$17) -> 40 | K29: 0.5405405405 | L29: =SUMIFS(WF_CKD_DATA[[#All],[NIS08-CKD03]],WF_CKD_DATA[[#All],[OrgID]],$D29,WF_CKD_DATA[[#All],[Rel_D]],Locations!$E$17) -> 64 | M29: 0.8648648649 | N29: =SUMIFS(WF_CKD_DATA[[#All],[NIS08-CKD04]],WF_CKD_DATA[[#All],[OrgID]],$D29,WF_CKD_DATA[[#All],[Rel_D]],Locations!$E$17) -> 16 | O29: 0.2162162162
C30: Lime Tree Surgery | D30: F86650 | E30: WF-4 | F30: =SUMIFS(WF_CKD_DATA[[#All],[00-00]],WF_CKD_DATA[[#All],[OrgID]],$D30,WF_CKD_DATA[[#All],[Rel_D]],Locations!$E$17) -> 8077 | G30: =SUMIFS(WF_CKD_DATA[[#All],[08-CKD]],WF_CKD_DATA[[#All],[OrgID]],$D30,WF_CKD_DATA[[#All],[Rel_D]],Locations!$E$17) -> 144 | H30: =SUMIFS(WF_CKD_DATA[[#All],[NIS08-CKD01]],WF_CKD_DATA[[#All],[OrgID]],$D30,WF_CKD_DATA[[#All],[Rel_D]],Locations!$E$17) -> 131 | I30: 0.9097222222 | J30: =SUMIFS(WF_CKD_DATA[[#All],[NIS08-CKD02]],WF_CKD_DATA[[#All],[OrgID]],$D30,WF_CKD_DATA[[#All],[Rel_D]],Locations!$E$17) -> 67 | K30: 0.4652777778 | L30: =SUMIFS(WF_CKD_DATA[[#All],[NIS08-CKD03]],WF_CKD_DATA[[#All],[OrgID]],$D30,WF_CKD_DATA[[#All],[Rel_D]],Locations!$E$17) -> 96 | M30: 0.6666666667 | N30: =SUMIFS(WF_CKD_DATA[[#All],[NIS08-CKD04]],WF_CKD_DATA[[#All],[OrgID]],$D30,WF_CKD_DATA[[#All],[Rel_D]],Locations!$E$17) -> 100 | O30: 0.6944444444
C31: The Lyndhurst Surgery | D31: F86088 | E31: WF-4 | F31: =SUMIFS(WF_CKD_DATA[[#All],[00-00]],WF_CKD_DATA[[#All],[OrgID]],$D31,WF_CKD_DATA[[#All],[Rel_D]],Locations!$E$17) -> 5027 | G31: =SUMIFS(WF_CKD_DATA[[#All],[08-CKD]],WF_CKD_DATA[[#All],[OrgID]],$D31,WF_CKD_DATA[[#All],[Rel_D]],Locations!$E$17) -> 109 | H31: =SUMIFS(WF_CKD_DATA[[#All],[NIS08-CKD01]],WF_CKD_DATA[[#All],[OrgID]],$D31,WF_CKD_DATA[[#All],[Rel_D]],Locations!$E$17) -> 93 | I31: 0.8532110092 | J31: =SUMIFS(WF_CKD_DATA[[#All],[NIS08-CKD02]],WF_CKD_DATA[[#All],[OrgID]],$D31,WF_CKD_DATA[[#All],[Rel_D]],Locations!$E$17) -> 46 | K31: 0.4220183486 | L31: =SUMIFS(WF_CKD_DATA[[#All],[NIS08-CKD03]],WF_CKD_DATA[[#All],[OrgID]],$D31,WF_CKD_DATA[[#All],[Rel_D]],Locations!$E$17) -> 86 | M31: 0.7889908257 | N31: =SUMIFS(WF_CKD_DATA[[#All],[NIS08-CKD04]],WF_CKD_DATA[[#All],[OrgID]],$D31,WF_CKD_DATA[[#All],[Rel_D]],Locations!$E$17) -> 56 | O31: 0.5137614679
C32: The Ecclesbourne Practice ** | D32: F86018 | E32: WF-4 | F32: =SUMIFS(WF_CKD_DATA[[#All],[00-00]],WF_CKD_DATA[[#All],[OrgID]],$D32,WF_CKD_DATA[[#All],[Rel_D]],Locations!$E$17) -> 9931 | G32: =SUMIFS(WF_CKD_DATA[[#All],[08-CKD]],WF_CKD_DATA[[#All],[OrgID]],$D32,WF_CKD_DATA[[#All],[Rel_D]],Locations!$E$17) -> 490 | H32: =SUMIFS(WF_CKD_DATA[[#All],[NIS08-CKD01]],WF_CKD_DATA[[#All],[OrgID]],$D32,WF_CKD_DATA[[#All],[Rel_D]],Locations!$E$17) -> 369 | I32: =IFERROR(H32/G32, "-") -> 0.7530612245 | J32: =SUMIFS(WF_CKD_DATA[[#All],[NIS08-CKD02]],WF_CKD_DATA[[#All],[OrgID]],$D32,WF_CKD_DATA[[#All],[Rel_D]],Locations!$E$17) -> 255 | K32: =IFERROR(J32/G32, "-") -> 0.5204081633 | L32: =SUMIFS(WF_CKD_DATA[[#All],[NIS08-CKD03]],WF_CKD_DATA[[#All],[OrgID]],$D32,WF_CKD_DATA[[#All],[Rel_D]],Locations!$E$17) -> 268 | M32: =IFERROR(L32/G32,"-") -> 0.5469387755 | N32: =SUMIFS(WF_CKD_DATA[[#All],[NIS08-CKD04]],WF_CKD_DATA[[#All],[OrgID]],$D32,WF_CKD_DATA[[#All],[Rel_D]],Locations!$E$17) -> 0 | O32: =IFERROR(N32/G32,"-") -> 0
C33: Forest Integrated Health | D33: WF-4 | E33: WF-4 | F33: =SUM(F26:F32) -> 58833 | G33: =SUM(G26:G32) -> 1356 | H33: =SUM(H26:H32) -> 1104 | I33: 0.814159292 | J33: =SUM(J26:J32) -> 693 | K33: =J33/G33 -> 0.5110619469 | L33: =SUM(L26:L32) -> 895 | M33: =L33/G33 -> 0.6600294985 | N33: =SUM(N26:N32) -> 348 | O33: =N33/G33 -> 0.2566371681
C34: Green Man Medical Centre | D34: F86621 | E34: WF-5 | F34: =SUMIFS(WF_CKD_DATA[[#All],[00-00]],WF_CKD_DATA[[#All],[OrgID]],$D34,WF_CKD_DATA[[#All],[Rel_D]],Locations!$E$17) -> 6444 | G34: =SUMIFS(WF_CKD_DATA[[#All],[08-CKD]],WF_CKD_DATA[[#All],[OrgID]],$D34,WF_CKD_DATA[[#All],[Rel_D]],Locations!$E$17) -> 158 | H34: =SUMIFS(WF_CKD_DATA[[#All],[NIS08-CKD01]],WF_CKD_DATA[[#All],[OrgID]],$D34,WF_CKD_DATA[[#All],[Rel_D]],Locations!$E$17) -> 138 | I34: 0.8734177215 | J34: =SUMIFS(WF_CKD_DATA[[#All],[NIS08-CKD02]],WF_CKD_DATA[[#All],[OrgID]],$D34,WF_CKD_DATA[[#All],[Rel_D]],Locations!$E$17) -> 88 | K34: 0.5569620253 | L34: =SUMIFS(WF_CKD_DATA[[#All],[NIS08-CKD03]],WF_CKD_DATA[[#All],[OrgID]],$D34,WF_CKD_DATA[[#All],[Rel_D]],Locations!$E$17) -> 131 | M34: =L34/G34 -> 0.8291139241 | N34: =SUMIFS(WF_CKD_DATA[[#All],[NIS08-CKD04]],WF_CKD_DATA[[#All],[OrgID]],$D34,WF_CKD_DATA[[#All],[Rel_D]],Locations!$E$17) -> 50 | O34: 0.3164556962
C35: High Road Surgery | D35: F86045 | E35: WF-5 | F35: =SUMIFS(WF_CKD_DATA[[#All],[00-00]],WF_CKD_DATA[[#All],[OrgID]],$D35,WF_CKD_DATA[[#All],[Rel_D]],Locations!$E$17) -> 2025 | G35: =SUMIFS(WF_CKD_DATA[[#All],[08-CKD]],WF_CKD_DATA[[#All],[OrgID]],$D35,WF_CKD_DATA[[#All],[Rel_D]],Locations!$E$17) -> 50 | H35: =SUMIFS(WF_CKD_DATA[[#All],[NIS08-CKD01]],WF_CKD_DATA[[#All],[OrgID]],$D35,WF_CKD_DATA[[#All],[Rel_D]],Locations!$E$17) -> 45 | I35: 0.9 | J35: =SUMIFS(WF_CKD_DATA[[#All],[NIS08-CKD02]],WF_CKD_DATA[[#All],[OrgID]],$D35,WF_CKD_DATA[[#All],[Rel_D]],Locations!$E$17) -> 35 | K35: 0.7 | L35: =SUMIFS(WF_CKD_DATA[[#All],[NIS08-CKD03]],WF_CKD_DATA[[#All],[OrgID]],$D35,WF_CKD_DATA[[#All],[Rel_D]],Locations!$E$17) -> 39 | M35: =L35/G35 -> 0.78 | N35: =SUMIFS(WF_CKD_DATA[[#All],[NIS08-CKD04]],WF_CKD_DATA[[#All],[OrgID]],$D35,WF_CKD_DATA[[#All],[Rel_D]],Locations!$E$17) -> 37 | O35: 0.74
C36: Kiyani Medical Practice | D36: F86701 | E36: WF-5 | F36: =SUMIFS(WF_CKD_DATA[[#All],[00-00]],WF_CKD_DATA[[#All],[OrgID]],$D36,WF_CKD_DATA[[#All],[Rel_D]],Locations!$E$17) -> 3853 | G36: =SUMIFS(WF_CKD_DATA[[#All],[08-CKD]],WF_CKD_DATA[[#All],[OrgID]],$D36,WF_CKD_DATA[[#All],[Rel_D]],Locations!$E$17) -> 84 | H36: =SUMIFS(WF_CKD_DATA[[#All],[NIS08-CKD01]],WF_CKD_DATA[[#All],[OrgID]],$D36,WF_CKD_DATA[[#All],[Rel_D]],Locations!$E$17) -> 80 | I36: 0.9523809524 | J36: =SUMIFS(WF_CKD_DATA[[#All],[NIS08-CKD02]],WF_CKD_DATA[[#All],[OrgID]],$D36,WF_CKD_DATA[[#All],[Rel_D]],Locations!$E$17) -> 53 | K36: 0.630952381 | L36: =SUMIFS(WF_CKD_DATA[[#All],[NIS08-CKD03]],WF_CKD_DATA[[#All],[OrgID]],$D36,WF_CKD_DATA[[#All],[Rel_D]],Locations!$E$17) -> 77 | M36: 0.9166666667 | N36: =SUMIFS(WF_CKD_DATA[[#All],[NIS08-CKD04]],WF_CKD_DATA[[#All],[OrgID]],$D36,WF_CKD_DATA[[#All],[Rel_D]],Locations!$E$17) -> 55 | O36: 0.6547619048
C37: LL Medical Care (Agarwal & Agrwal Practice) | D37: F86625 | E37: WF-5 | F37: =SUMIFS(WF_CKD_DATA[[#All],[00-00]],WF_CKD_DATA[[#All],[OrgID]],$D37,WF_CKD_DATA[[#All],[Rel_D]],Locations!$E$17) -> 5880 | G37: =SUMIFS(WF_CKD_DATA[[#All],[08-CKD]],WF_CKD_DATA[[#All],[OrgID]],$D37,WF_CKD_DATA[[#All],[Rel_D]],Locations!$E$17) -> 148 | H37: =SUMIFS(WF_CKD_DATA[[#All],[NIS08-CKD01]],WF_CKD_DATA[[#All],[OrgID]],$D37,WF_CKD_DATA[[#All],[Rel_D]],Locations!$E$17) -> 129 | I37: 0.8716216216 | J37: =SUMIFS(WF_CKD_DATA[[#All],[NIS08-CKD02]],WF_CKD_DATA[[#All],[OrgID]],$D37,WF_CKD_DATA[[#All],[Rel_D]],Locations!$E$17) -> 76 | K37: 0.5135135135 | L37: =SUMIFS(WF_CKD_DATA[[#All],[NIS08-CKD03]],WF_CKD_DATA[[#All],[OrgID]],$D37,WF_CKD_DATA[[#All],[Rel_D]],Locations!$E$17) -> 112 | M37: 0.7567567568 | N37: =SUMIFS(WF_CKD_DATA[[#All],[NIS08-CKD04]],WF_CKD_DATA[[#All],[OrgID]],$D37,WF_CKD_DATA[[#All],[Rel_D]],Locations!$E$17) -> 47 | O37: 0.3175675676
C38: The Harrow Road Surgery | D38: F86666 | E38: WF-5 | F38: =SUMIFS(WF_CKD_DATA[[#All],[00-00]],WF_CKD_DATA[[#All],[OrgID]],$D38,WF_CKD_DATA[[#All],[Rel_D]],Locations!$E$17) -> 14976 | G38: =SUMIFS(WF_CKD_DATA[[#All],[08-CKD]],WF_CKD_DATA[[#All],[OrgID]],$D38,WF_CKD_DATA[[#All],[Rel_D]],Locations!$E$17) -> 263 | H38: =SUMIFS(WF_CKD_DATA[[#All],[NIS08-CKD01]],WF_CKD_DATA[[#All],[OrgID]],$D38,WF_CKD_DATA[[#All],[Rel_D]],Locations!$E$17) -> 251 | I38: 0.9543726236 | J38: =SUMIFS(WF_CKD_DATA[[#All],[NIS08-CKD02]],WF_CKD_DATA[[#All],[OrgID]],$D38,WF_CKD_DATA[[#All],[Rel_D]],Locations!$E$17) -> 172 | K38: 0.6539923954 | L38: =SUMIFS(WF_CKD_DATA[[#All],[NIS08-CKD03]],WF_CKD_DATA[[#All],[OrgID]],$D38,WF_CKD_DATA[[#All],[Rel_D]],Locations!$E$17) -> 194 | M38: 0.7376425856 | N38: =SUMIFS(WF_CKD_DATA[[#All],[NIS08-CKD04]],WF_CKD_DATA[[#All],[OrgID]],$D38,WF_CKD_DATA[[#All],[Rel_D]],Locations!$E$17) -> 144 | O38: 0.5475285171
C39: The Langthorne Sharma Family Practice | D39: F86705 | E39: WF-5 | F39: =SUMIFS(WF_CKD_DATA[[#All],[00-00]],WF_CKD_DATA[[#All],[OrgID]],$D39,WF_CKD_DATA[[#All],[Rel_D]],Locations!$E$17) -> 3507 | G39: =SUMIFS(WF_CKD_DATA[[#All],[08-CKD]],WF_CKD_DATA[[#All],[OrgID]],$D39,WF_CKD_DATA[[#All],[Rel_D]],Locations!$E$17) -> 59 | H39: =SUMIFS(WF_CKD_DATA[[#All],[NIS08-CKD01]],WF_CKD_DATA[[#All],[OrgID]],$D39,WF_CKD_DATA[[#All],[Rel_D]],Locations!$E$17) -> 54 | I39: 0.9152542373 | J39: =SUMIFS(WF_CKD_DATA[[#All],[NIS08-CKD02]],WF_CKD_DATA[[#All],[OrgID]],$D39,WF_CKD_DATA[[#All],[Rel_D]],Locations!$E$17) -> 35 | K39: 0.593220339 | L39: =SUMIFS(WF_CKD_DATA[[#All],[NIS08-CKD03]],WF_CKD_DATA[[#All],[OrgID]],$D39,WF_CKD_DATA[[#All],[Rel_D]],Locations!$E$17) -> 42 | M39: 0.7118644068 | N39: =SUMIFS(WF_CKD_DATA[[#All],[NIS08-CKD04]],WF_CKD_DATA[[#All],[OrgID]],$D39,WF_CKD_DATA[[#All],[Rel_D]],Locations!$E$17) -> 19 | O39: 0.3220338983
C40: South Leytonstone | D40: WF-5 | E40: WF-5 | F40: =SUM(F34:F39) -> 36685 | G40: =SUM(G34:G39) -> 762 | H40: =SUM(H34:H39) -> 697 | I40: 0.9146981627 | J40: =SUM(J34:J39) -> 459 | K40: =J40/G40 -> 0.6023622047 | L40: =SUM(L34:L39) -> 595 | M40: =L40/G40 -> 0.780839895 | N40: =SUM(N34:N39) -> 352 | O40: =N40/G40 -> 0.4619422572
C41: Addison Road Medical Practice | D41: F86607 | E41: WF-6 | F41: =SUMIFS(WF_CKD_DATA[[#All],[00-00]],WF_CKD_DATA[[#All],[OrgID]],$D41,WF_CKD_DATA[[#All],[Rel_D]],Locations!$E$17) -> 15518 | G41: =SUMIFS(WF_CKD_DATA[[#All],[08-CKD]],WF_CKD_DATA[[#All],[OrgID]],$D41,WF_CKD_DATA[[#All],[Rel_D]],Locations!$E$17) -> 263 | H41: =SUMIFS(WF_CKD_DATA[[#All],[NIS08-CKD01]],WF_CKD_DATA[[#All],[OrgID]],$D41,WF_CKD_DATA[[#All],[Rel_D]],Locations!$E$17) -> 238 | I41: 0.9049429658 | J41: =SUMIFS(WF_CKD_DATA[[#All],[NIS08-CKD02]],WF_CKD_DATA[[#All],[OrgID]],$D41,WF_CKD_DATA[[#All],[Rel_D]],Locations!$E$17) -> 138 | K41: 0.5247148289 | L41: =SUMIFS(WF_CKD_DATA[[#All],[NIS08-CKD03]],WF_CKD_DATA[[#All],[OrgID]],$D41,WF_CKD_DATA[[#All],[Rel_D]],Locations!$E$17) -> 202 | M41: =L41/G41 -> 0.7680608365 | N41: =SUMIFS(WF_CKD_DATA[[#All],[NIS08-CKD04]],WF_CKD_DATA[[#All],[OrgID]],$D41,WF_CKD_DATA[[#All],[Rel_D]],Locations!$E$17) -> 130 | O41: 0.4942965779
C42: Claremont Medical Centre | D42: F86708 | E42: WF-6 | F42: =SUMIFS(WF_CKD_DATA[[#All],[00-00]],WF_CKD_DATA[[#All],[OrgID]],$D42,WF_CKD_DATA[[#All],[Rel_D]],Locations!$E$17) -> 2782 | G42: =SUMIFS(WF_CKD_DATA[[#All],[08-CKD]],WF_CKD_DATA[[#All],[OrgID]],$D42,WF_CKD_DATA[[#All],[Rel_D]],Locations!$E$17) -> 56 | H42: =SUMIFS(WF_CKD_DATA[[#All],[NIS08-CKD01]],WF_CKD_DATA[[#All],[OrgID]],$D42,WF_CKD_DATA[[#All],[Rel_D]],Locations!$E$17) -> 52 | I42: 0.9285714286 | J42: =SUMIFS(WF_CKD_DATA[[#All],[NIS08-CKD02]],WF_CKD_DATA[[#All],[OrgID]],$D42,WF_CKD_DATA[[#All],[Rel_D]],Locations!$E$17) -> 30 | K42: 0.5357142857 | L42: =SUMIFS(WF_CKD_DATA[[#All],[NIS08-CKD03]],WF_CKD_DATA[[#All],[OrgID]],$D42,WF_CKD_DATA[[#All],[Rel_D]],Locations!$E$17) -> 42 | M42: =L42/G42 -> 0.75 | N42: =SUMIFS(WF_CKD_DATA[[#All],[NIS08-CKD04]],WF_CKD_DATA[[#All],[OrgID]],$D42,WF_CKD_DATA[[#All],[Rel_D]],Locations!$E$17) -> 22 | O42: 0.3928571429
C43: The Firs | D43: F86001 | E43: WF-6 | F43: =SUMIFS(WF_CKD_DATA[[#All],[00-00]],WF_CKD_DATA[[#All],[OrgID]],$D43,WF_CKD_DATA[[#All],[Rel_D]],Locations!$E$17) -> 7727 | G43: =SUMIFS(WF_CKD_DATA[[#All],[08-CKD]],WF_CKD_DATA[[#All],[OrgID]],$D43,WF_CKD_DATA[[#All],[Rel_D]],Locations!$E$17) -> 199 | H43: =SUMIFS(WF_CKD_DATA[[#All],[NIS08-CKD01]],WF_CKD_DATA[[#All],[OrgID]],$D43,WF_CKD_DATA[[#All],[Rel_D]],Locations!$E$17) -> 179 | I43: 0.8994974874 | J43: =SUMIFS(WF_CKD_DATA[[#All],[NIS08-CKD02]],WF_CKD_DATA[[#All],[OrgID]],$D43,WF_CKD_DATA[[#All],[Rel_D]],Locations!$E$17) -> 98 | K43: 0.4924623116 | L43: =SUMIFS(WF_CKD_DATA[[#All],[NIS08-CKD03]],WF_CKD_DATA[[#All],[OrgID]],$D43,WF_CKD_DATA[[#All],[Rel_D]],Locations!$E$17) -> 126 | M43: 0.6331658291 | N43: =SUMIFS(WF_CKD_DATA[[#All],[NIS08-CKD04]],WF_CKD_DATA[[#All],[OrgID]],$D43,WF_CKD_DATA[[#All],[Rel_D]],Locations!$E$17) -> 42 | O43: 0.2110552764
C44: Dr Dhital Practice | D44: F86086 | E44: WF-6 | F44: =SUMIFS(WF_CKD_DATA[[#All],[00-00]],WF_CKD_DATA[[#All],[OrgID]],$D44,WF_CKD_DATA[[#All],[Rel_D]],Locations!$E$17) -> 6237 | G44: =SUMIFS(WF_CKD_DATA[[#All],[08-CKD]],WF_CKD_DATA[[#All],[OrgID]],$D44,WF_CKD_DATA[[#All],[Rel_D]],Locations!$E$17) -> 84 | H44: =SUMIFS(WF_CKD_DATA[[#All],[NIS08-CKD01]],WF_CKD_DATA[[#All],[OrgID]],$D44,WF_CKD_DATA[[#All],[Rel_D]],Locations!$E$17) -> 63 | I44: 0.75 | J44: =SUMIFS(WF_CKD_DATA[[#All],[NIS08-CKD02]],WF_CKD_DATA[[#All],[OrgID]],$D44,WF_CKD_DATA[[#All],[Rel_D]],Locations!$E$17) -> 39 | K44: 0.4642857143 | L44: =SUMIFS(WF_CKD_DATA[[#All],[NIS08-CKD03]],WF_CKD_DATA[[#All],[OrgID]],$D44,WF_CKD_DATA[[#All],[Rel_D]],Locations!$E$17) -> 52 | M44: 0.619047619 | N44: =SUMIFS(WF_CKD_DATA[[#All],[NIS08-CKD04]],WF_CKD_DATA[[#All],[OrgID]],$D44,WF_CKD_DATA[[#All],[Rel_D]],Locations!$E$17) -> 18 | O44: 0.2142857143
C45: Waltham Forest Community & Family Health Services Ltd | D45: F86644 | E45: WF-6 | F45: =SUMIFS(WF_CKD_DATA[[#All],[00-00]],WF_CKD_DATA[[#All],[OrgID]],$D45,WF_CKD_DATA[[#All],[Rel_D]],Locations!$E$17) -> 9214 | G45: =SUMIFS(WF_CKD_DATA[[#All],[08-CKD]],WF_CKD_DATA[[#All],[OrgID]],$D45,WF_CKD_DATA[[#All],[Rel_D]],Locations!$E$17) -> 217 | H45: =SUMIFS(WF_CKD_DATA[[#All],[NIS08-CKD01]],WF_CKD_DATA[[#All],[OrgID]],$D45,WF_CKD_DATA[[#All],[Rel_D]],Locations!$E$17) -> 205 | I45: 0.9447004608 | J45: =SUMIFS(WF_CKD_DATA[[#All],[NIS08-CKD02]],WF_CKD_DATA[[#All],[OrgID]],$D45,WF_CKD_DATA[[#All],[Rel_D]],Locations!$E$17) -> 101 | K45: 0.465437788 | L45: =SUMIFS(WF_CKD_DATA[[#All],[NIS08-CKD03]],WF_CKD_DATA[[#All],[OrgID]],$D45,WF_CKD_DATA[[#All],[Rel_D]],Locations!$E$17) -> 137 | M45: 0.6313364055 | N45: =SUMIFS(WF_CKD_DATA[[#All],[NIS08-CKD04]],WF_CKD_DATA[[#All],[OrgID]],$D45,WF_CKD_DATA[[#All],[Rel_D]],Locations!$E$17) -> 68 | O45: 0.3133640553
C46: Central Walthamstow | D46: WF-6 | E46: WF-6 | F46: =SUM(F41:F45) -> 41478 | G46: =SUM(G41:G45) -> 819 | H46: =SUM(H41:H45) -> 737 | I46: 0.8998778999 | J46: =SUM(J41:J45) -> 406 | K46: 0.4957264957 | L46: =SUM(L41:L45) -> 559 | M46: =L46/G46 -> 0.6825396825 | N46: =SUM(N41:N45) -> 280 | O46: =N46/G46 -> 0.3418803419
C47: Seymour Medical Centre | D47: F86006 | E47: WF-7 | F47: =SUMIFS(WF_CKD_DATA[[#All],[00-00]],WF_CKD_DATA[[#All],[OrgID]],$D47,WF_CKD_DATA[[#All],[Rel_D]],Locations!$E$17) -> 6812 | G47: =SUMIFS(WF_CKD_DATA[[#All],[08-CKD]],WF_CKD_DATA[[#All],[OrgID]],$D47,WF_CKD_DATA[[#All],[Rel_D]],Locations!$E$17) -> 144 | H47: =SUMIFS(WF_CKD_DATA[[#All],[NIS08-CKD01]],WF_CKD_DATA[[#All],[OrgID]],$D47,WF_CKD_DATA[[#All],[Rel_D]],Locations!$E$17) -> 105 | I47: 0.7291666667 | J47: =SUMIFS(WF_CKD_DATA[[#All],[NIS08-CKD02]],WF_CKD_DATA[[#All],[OrgID]],$D47,WF_CKD_DATA[[#All],[Rel_D]],Locations!$E$17) -> 66 | K47: 0.4583333333 | L47: =SUMIFS(WF_CKD_DATA[[#All],[NIS08-CKD03]],WF_CKD_DATA[[#All],[OrgID]],$D47,WF_CKD_DATA[[#All],[Rel_D]],Locations!$E$17) -> 91 | M47: =L47/G47 -> 0.6319444444 | N47: =SUMIFS(WF_CKD_DATA[[#All],[NIS08-CKD04]],WF_CKD_DATA[[#All],[OrgID]],$D47,WF_CKD_DATA[[#All],[Rel_D]],Locations!$E$17) -> 47 | O47: 0.3263888889
C48: Queens Road Medical Centre | D48: F86030 | E48: WF-7 | F48: =SUMIFS(WF_CKD_DATA[[#All],[00-00]],WF_CKD_DATA[[#All],[OrgID]],$D48,WF_CKD_DATA[[#All],[Rel_D]],Locations!$E$17) -> 8160 | G48: =SUMIFS(WF_CKD_DATA[[#All],[08-CKD]],WF_CKD_DATA[[#All],[OrgID]],$D48,WF_CKD_DATA[[#All],[Rel_D]],Locations!$E$17) -> 165 | H48: =SUMIFS(WF_CKD_DATA[[#All],[NIS08-CKD01]],WF_CKD_DATA[[#All],[OrgID]],$D48,WF_CKD_DATA[[#All],[Rel_D]],Locations!$E$17) -> 140 | I48: 0.8484848485 | J48: =SUMIFS(WF_CKD_DATA[[#All],[NIS08-CKD02]],WF_CKD_DATA[[#All],[OrgID]],$D48,WF_CKD_DATA[[#All],[Rel_D]],Locations!$E$17) -> 106 | K48: 0.6424242424 | L48: =SUMIFS(WF_CKD_DATA[[#All],[NIS08-CKD03]],WF_CKD_DATA[[#All],[OrgID]],$D48,WF_CKD_DATA[[#All],[Rel_D]],Locations!$E$17) -> 129 | M48: =L48/G48 -> 0.7818181818 | N48: =SUMIFS(WF_CKD_DATA[[#All],[NIS08-CKD04]],WF_CKD_DATA[[#All],[OrgID]],$D48,WF_CKD_DATA[[#All],[Rel_D]],Locations!$E$17) -> 87 | O48: 0.5272727273
C49: Grove Surgery | D49: F86062 | E49: WF-7 | F49: =SUMIFS(WF_CKD_DATA[[#All],[00-00]],WF_CKD_DATA[[#All],[OrgID]],$D49,WF_CKD_DATA[[#All],[Rel_D]],Locations!$E$17) -> 7155 | G49: =SUMIFS(WF_CKD_DATA[[#All],[08-CKD]],WF_CKD_DATA[[#All],[OrgID]],$D49,WF_CKD_DATA[[#All],[Rel_D]],Locations!$E$17) -> 142 | H49: =SUMIFS(WF_CKD_DATA[[#All],[NIS08-CKD01]],WF_CKD_DATA[[#All],[OrgID]],$D49,WF_CKD_DATA[[#All],[Rel_D]],Locations!$E$17) -> 102 | I49: 0.7183098592 | J49: =SUMIFS(WF_CKD_DATA[[#All],[NIS08-CKD02]],WF_CKD_DATA[[#All],[OrgID]],$D49,WF_CKD_DATA[[#All],[Rel_D]],Locations!$E$17) -> 63 | K49: 0.4436619718 | L49: =SUMIFS(WF_CKD_DATA[[#All],[NIS08-CKD03]],WF_CKD_DATA[[#All],[OrgID]],$D49,WF_CKD_DATA[[#All],[Rel_D]],Locations!$E$17) -> 114 | M49: 0.8028169014 | N49: =SUMIFS(WF_CKD_DATA[[#All],[NIS08-CKD04]],WF_CKD_DATA[[#All],[OrgID]],$D49,WF_CKD_DATA[[#All],[Rel_D]],Locations!$E$17) -> 64 | O49: 0.4507042254
C50: Higham Hill Medical Centre | D50: F86679 | E50: WF-7 | F50: =SUMIFS(WF_CKD_DATA[[#All],[00-00]],WF_CKD_DATA[[#All],[OrgID]],$D50,WF_CKD_DATA[[#All],[Rel_D]],Locations!$E$17) -> 6371 | G50: =SUMIFS(WF_CKD_DATA[[#All],[08-CKD]],WF_CKD_DATA[[#All],[OrgID]],$D50,WF_CKD_DATA[[#All],[Rel_D]],Locations!$E$17) -> 74 | H50: =SUMIFS(WF_CKD_DATA[[#All],[NIS08-CKD01]],WF_CKD_DATA[[#All],[OrgID]],$D50,WF_CKD_DATA[[#All],[Rel_D]],Locations!$E$17) -> 67 | I50: 0.9054054054 | J50: =SUMIFS(WF_CKD_DATA[[#All],[NIS08-CKD02]],WF_CKD_DATA[[#All],[OrgID]],$D50,WF_CKD_DATA[[#All],[Rel_D]],Locations!$E$17) -> 51 | K50: 0.6891891892 | L50: =SUMIFS(WF_CKD_DATA[[#All],[NIS08-CKD03]],WF_CKD_DATA[[#All],[OrgID]],$D50,WF_CKD_DATA[[#All],[Rel_D]],Locations!$E$17) -> 58 | M50: 0.7837837838 | N50: =SUMIFS(WF_CKD_DATA[[#All],[NIS08-CKD04]],WF_CKD_DATA[[#All],[OrgID]],$D50,WF_CKD_DATA[[#All],[Rel_D]],Locations!$E$17) -> 27 | O50: 0.3648648649
C51: St James Medical Practice Ltd | D51: F86058 | E51: WF-7 | F51: =SUMIFS(WF_CKD_DATA[[#All],[00-00]],WF_CKD_DATA[[#All],[OrgID]],$D51,WF_CKD_DATA[[#All],[Rel_D]],Locations!$E$17) -> 16560 | G51: =SUMIFS(WF_CKD_DATA[[#All],[08-CKD]],WF_CKD_DATA[[#All],[OrgID]],$D51,WF_CKD_DATA[[#All],[Rel_D]],Locations!$E$17) -> 236 | H51: =SUMIFS(WF_CKD_DATA[[#All],[NIS08-CKD01]],WF_CKD_DATA[[#All],[OrgID]],$D51,WF_CKD_DATA[[#All],[Rel_D]],Locations!$E$17) -> 200 | I51: 0.8474576271 | J51: =SUMIFS(WF_CKD_DATA[[#All],[NIS08-CKD02]],WF_CKD_DATA[[#All],[OrgID]],$D51,WF_CKD_DATA[[#All],[Rel_D]],Locations!$E$17) -> 162 | K51: 0.686440678 | L51: =SUMIFS(WF_CKD_DATA[[#All],[NIS08-CKD03]],WF_CKD_DATA[[#All],[OrgID]],$D51,WF_CKD_DATA[[#All],[Rel_D]],Locations!$E$17) -> 178 | M51: 0.7542372881 | N51: =SUMIFS(WF_CKD_DATA[[#All],[NIS08-CKD04]],WF_CKD_DATA[[#All],[OrgID]],$D51,WF_CKD_DATA[[#All],[Rel_D]],Locations!$E$17) -> 113 | O51: 0.4788135593
C52: Walthamstow West | D52: WF-7 | E52: WF-7 | F52: =SUM(F47:F51) -> 45058 | G52: =SUM(G47:G51) -> 761 | H52: =SUM(H47:H51) -> 614 | I52: 0.8068331143 | J52: =SUM(J47:J51) -> 448 | K52: 0.5886990802 | L52: =SUM(L47:L51) -> 570 | M52: 0.7490144547 | N52: =SUM(N47:N51) -> 338 | O52: =N52/G52 -> 0.444152431
D53: Total | F53: =SUM(F15,F21,F25, F33, F40, F46, F52) -> 323029 | G53: =SUM(G15,G21,G25, G33, G40, G46, G52) -> 8222 | H53: =SUM(H15,H21,H25, H33, H40, H46, H52) -> 6643 | I53: 0.807954269 | J53: =SUM(J15,J21,J25, J33, J40, J46, J52) -> 4457 | K53: =J53/G53 -> 0.5420822184 | L53: =SUM(L15,L21,L25, L33, L40, L46, L52) -> 5512 | M53: =L53/G53 -> 0.6703964972 | N53: =SUM(N15,N21,N25, N33, N40, N46, N52) -> 2153 | O53: 0.2618584286
D54: Min Aim | K54: =VLOOKUP(J$3,TRENDS!$B$17:$C$19,2,0) -> 0.5 | M54: =VLOOKUP(L$3,TRENDS!$B$17:$C$19,2,0) -> 0.5 | O54: =VLOOKUP(N$3,TRENDS!$B$17:$C$19,2,0) -> 0.5
I55: =VLOOKUP(I$3,INDIRECT(Locations!$B$39),6,0) -> 0 | K55: =VLOOKUP(K$3,INDIRECT(Locations!$B$39),6,0) -> 0 | M55: =VLOOKUP(L$3,INDIRECT(Locations!$B$39),6,0) -> 0
C56: CKD v9.0 | D56: Target: % of evidence of CKD to have BP below 140/90 by 31/3/2020 | H56: Target: % of evidence of CKD to be prescribed Statins by 31/03/2020 | L56: Target: % of evidence of CKD to have ACR by 31/03/2020
C57: Red - | D57: Below 30% | H57: Red - | I57: Below 30% | L57: Red - | M57: Below 30%
C58: Brown | D58: Between 30% - 39% | H58: Brown | I58: Between 30% - 39% | L58: Brown | M58: Between 30% - 39%
C59: Amber - | D59: Between 40% - 49% | H59: Amber - | I59: Between 40% - 49% | L59: Amber - | M59: Between 40% - 49%
C60: Green - | D60: 50% - 100% | H60: Green - | I60: 50% - 100% | L60: Green - | M60: 50% - 100%
D62: ** | E62: SystmOne practices : No data available for evidnce of CKD to have ACR (01/04/2020 - 01/06/2020)

Sheet TRENDS (hidden)
A1: Practice Trend: Trend Chart
A2: =B2&"%" -> NIS08-CKD04% | B2: =CHART!C1 -> NIS08-CKD04 | C2: =Locations!E21 -> 01/04/2022
A3: Practice | B3: NACS | C3: Locality | E3: Listsize | F3: 2021-04-01 | G3: 2021-05-01 | H3: 2021-06-01 | I3: 2021-07-01 | J3: 2021-08-01 | K3: 2021-09-01 | L3: 2021-10-01 | M3: 2021-11-01 | N3: 2021-12-01 | O3: 2022-01-01 | P3: 2022-02-01 | Q3: 2022-03-01 | R3: 2022-04-01
A4: =PRACTICE!E1 -> The Microfaculty ** | B4: =PRACTICE!E2 -> F86638 | C4: =PRACTICE!E5 -> WF-1 | F4: =IF(TEXT(F3,0)<=TEXT($C$2,0),VLOOKUP(F3,$E$13:$H$25,3,0)/VLOOKUP(F3,$E$13:$H$25,2,0),#N/A) ->  | L4: 0.4657039711 | M4: 0.3527272727 | N4: 0.3163636364 | O4: 0.3247232472 | P4: 0.326007326 | Q4: =IF(TEXT(Q3,0)<=TEXT($C$2,0),VLOOKUP(Q3,$E$13:$H$25,3,0)/VLOOKUP(Q3,$E$13:$H$25,2,0),#N/A) -> 0.3222222222
A5: Target | F5: =VLOOKUP($B$2,$B$16:$C$19,2) -> 0.5 | G5: =VLOOKUP($B$2,$B$16:$C$19,2) -> 0.5 | H5: 0.5 | I5: 0.5 | J5: 0.5 | K5: 0.5 | L5: 0.5 | M5: 0.5 | N5: 0.5 | O5: 0.5 | P5: 0.5 | Q5: 0.5 | R5: 0.5
A7: Selected
A8: OrgID
U10: Practices | V10: OrgID | W10: [08-CKD] | X10: NIS08-CKD01 | Y10: NIS08-CKD01% | Z10: NIS08-CKD02 | AA10: NIS08-CKD02% | AB10: NIS08-CKD03 | AC10: NIS08-CKD03% | AD10: NIS08-CKD04 | AE10: NIS08-CKD04%
U11: Kings Head Medical Practice | V11: F86700 | W11: =SUMIFS(WF_CKD_DATA[[#All],[08-CKD]],WF_CKD_DATA[[#All],[OrgID]],V11,WF_CKD_DATA[[#All],[Rel_D]],Locations!$E$17) -> 172 | X11: =SUMIFS(WF_CKD_DATA[[#All],[NIS08-CKD01]],WF_CKD_DATA[[#All],[OrgID]],V11,WF_CKD_DATA[[#All],[Rel_D]],Locations!$E$17) -> 172 | Y11: =X11/W11 -> 1 | Z11: =SUMIFS(WF_CKD_DATA[[#All],[NIS08-CKD02]],WF_CKD_DATA[[#All],[OrgID]],V11,WF_CKD_DATA[[#All],[Rel_D]],Locations!$E$17) -> 124 | AA11: =IFERROR(Z11/W11,"-") -> 0.7209302326 | AB11: =SUMIFS(WF_CKD_DATA[[#All],[NIS08-CKD03]],WF_CKD_DATA[[#All],[OrgID]],V11,WF_CKD_DATA[[#All],[Rel_D]],Locations!$E$17) -> 115 | AC11: =IFERROR(AB11/W11,"-") -> 0.6686046512 | AD11: =SUMIFS(WF_CKD_DATA[[#All],[NIS08-CKD04]],WF_CKD_DATA[[#All],[OrgID]],V11,WF_CKD_DATA[[#All],[Rel_D]],Locations!$E$17) -> 49 | AE11: =IFERROR(AD11/W11, "-") -> 0.2848837209
E12: Date | F12: Denominator | G12: Numerator | U12: Larkshall Medical Centre | V12: F86664 | W12: =SUMIFS(WF_CKD_DATA[[#All],[08-CKD]],WF_CKD_DATA[[#All],[OrgID]],V12,WF_CKD_DATA[[#All],[Rel_D]],Locations!$E$17) -> 209 | X12: =SUMIFS(WF_CKD_DATA[[#All],[NIS08-CKD01]],WF_CKD_DATA[[#All],[OrgID]],V12,WF_CKD_DATA[[#All],[Rel_D]],Locations!$E$17) -> 165 | Y12: =X12/W12 -> 0.7894736842 | Z12: =SUMIFS(WF_CKD_DATA[[#All],[NIS08-CKD02]],WF_CKD_DATA[[#All],[OrgID]],V12,WF_CKD_DATA[[#All],[Rel_D]],Locations!$E$17) -> 105 | AA12: =IFERROR(Z12/W12,"-") -> 0.5023923445 | AB12: =SUMIFS(WF_CKD_DATA[[#All],[NIS08-CKD03]],WF_CKD_DATA[[#All],[OrgID]],V12,WF_CKD_DATA[[#All],[Rel_D]],Locations!$E$17) -> 148 | AC12: =IFERROR(AB12/W12,"-") -> 0.7081339713 | AD12: =SUMIFS(WF_CKD_DATA[[#All],[NIS08-CKD04]],WF_CKD_DATA[[#All],[OrgID]],V12,WF_CKD_DATA[[#All],[Rel_D]],Locations!$E$17) -> 38 | AE12: =IFERROR(AD12/W12, "-") -> 0.1818181818
E13: 2021-04-01 | F13: =IF(SUMIFS(WF_CKD_DATA[[#All],[08-CKD]],WF_CKD_DATA[[#All],[OrgID]],$B$4,WF_CKD_DATA[[#All],[Rel_D]],E13)=0,#N/A,(SUMIFS(WF_CKD_DATA[[#All],[08-CKD]],WF_CKD_DATA[[#All],[OrgID]],$B$4,WF_CKD_DATA[[#All],[Rel_D]],E13))) ->  | G13: =IF(SUMIFS(INDIRECT("WF_CKD_DATA[[#All],["&$B$2&"]]"),WF_CKD_DATA[[#All],[OrgID]],$B$4,WF_CKD_DATA[[#All],[Rel_D]],TRENDS!E13)=0,#N/A,(SUMIFS(INDIRECT("WF_CKD_DATA[[#All],["&$B$2&"]]"),WF_CKD_DATA[[#All],[OrgID]],$B$4,WF_CKD_DATA[[#All],[Rel_D]],TRENDS!E13))) ->  | H13: =SUMIFS(INDIRECT("WF_CKD_DATA[[#All],["&$B$2&"]]"),#REF!,$B$4,#REF!,TRENDS!C13) ->  | U13: The Microfaculty | V13: F86638 | W13: =SUMIFS(WF_CKD_DATA[[#All],[08-CKD]],WF_CKD_DATA[[#All],[OrgID]],V13,WF_CKD_DATA[[#All],[Rel_D]],Locations!$E$17) -> 275 | X13: =SUMIFS(WF_CKD_DATA[[#All],[NIS08-CKD01]],WF_CKD_DATA[[#All],[OrgID]],V13,WF_CKD_DATA[[#All],[Rel_D]],Locations!$E$17) -> 204 | Y13: =IFERROR(X13/W13,"-") -> 0.7418181818 | Z13: =SUMIFS(WF_CKD_DATA[[#All],[NIS08-CKD02]],WF_CKD_DATA[[#All],[OrgID]],V13,WF_CKD_DATA[[#All],[Rel_D]],Locations!$E$17) -> 144 | AA13: 0.5236363636 | AB13: =SUMIFS(WF_CKD_DATA[[#All],[NIS08-CKD03]],WF_CKD_DATA[[#All],[OrgID]],V13,WF_CKD_DATA[[#All],[Rel_D]],Locations!$E$17) -> 180 | AC13: =IFERROR(AB13/W13,"-") -> 0.6545454545 | AD13: =SUMIFS(WF_CKD_DATA[[#All],[NIS08-CKD04]],WF_CKD_DATA[[#All],[OrgID]],V13,WF_CKD_DATA[[#All],[Rel_D]],Locations!$E$17) -> 0 | AE13: 0
E14: 2021-05-01 | F14: =IF(SUMIFS(WF_CKD_DATA[[#All],[08-CKD]],WF_CKD_DATA[[#All],[OrgID]],$B$4,WF_CKD_DATA[[#All],[Rel_D]],E14)=0,#N/A,(SUMIFS(WF_CKD_DATA[[#All],[08-CKD]],WF_CKD_DATA[[#All],[OrgID]],$B$4,WF_CKD_DATA[[#All],[Rel_D]],E14))) ->  | G14: =IF(SUMIFS(INDIRECT("WF_CKD_DATA[[#All],["&$B$2&"]]"),WF_CKD_DATA[[#All],[OrgID]],$B$4,WF_CKD_DATA[[#All],[Rel_D]],TRENDS!E14)=0,#N/A,(SUMIFS(INDIRECT("WF_CKD_DATA[[#All],["&$B$2&"]]"),WF_CKD_DATA[[#All],[OrgID]],$B$4,WF_CKD_DATA[[#All],[Rel_D]],TRENDS!E14))) ->  | H14: =SUMIFS(INDIRECT("WF_CKD_DATA[[#All],["&$B$2&"]]"),#REF!,$B$4,#REF!,TRENDS!C14) ->  | U14: The Penryhn Surgery | V14: F86005 | W14: =SUMIFS(WF_CKD_DATA[[#All],[08-CKD]],WF_CKD_DATA[[#All],[OrgID]],V14,WF_CKD_DATA[[#All],[Rel_D]],Locations!$E$17) -> 185 | X14: =SUMIFS(WF_CKD_DATA[[#All],[NIS08-CKD01]],WF_CKD_DATA[[#All],[OrgID]],V14,WF_CKD_DATA[[#All],[Rel_D]],Locations!$E$17) -> 171 | Y14: 0.9243243243 | Z14: =SUMIFS(WF_CKD_DATA[[#All],[NIS08-CKD02]],WF_CKD_DATA[[#All],[OrgID]],V14,WF_CKD_DATA[[#All],[Rel_D]],Locations!$E$17) -> 90 | AA14: 0.4864864865 | AB14: =SUMIFS(WF_CKD_DATA[[#All],[NIS08-CKD03]],WF_CKD_DATA[[#All],[OrgID]],V14,WF_CKD_DATA[[#All],[Rel_D]],Locations!$E$17) -> 124 | AC14: 0.6702702703 | AD14: =SUMIFS(WF_CKD_DATA[[#All],[NIS08-CKD04]],WF_CKD_DATA[[#All],[OrgID]],V14,WF_CKD_DATA[[#All],[Rel_D]],Locations!$E$17) -> 52 | AE14: 0.2810810811
A15: Target table | E15: 2021-06-01 | F15: =IF(SUMIFS(WF_CKD_DATA[[#All],[08-CKD]],WF_CKD_DATA[[#All],[OrgID]],$B$4,WF_CKD_DATA[[#All],[Rel_D]],E15)=0,#N/A,(SUMIFS(WF_CKD_DATA[[#All],[08-CKD]],WF_CKD_DATA[[#All],[OrgID]],$B$4,WF_CKD_DATA[[#All],[Rel_D]],E15))) ->  | G15: =IF(SUMIFS(INDIRECT("WF_CKD_DATA[[#All],["&$B$2&"]]"),WF_CKD_DATA[[#All],[OrgID]],$B$4,WF_CKD_DATA[[#All],[Rel_D]],TRENDS!E15)=0,#N/A,(SUMIFS(INDIRECT("WF_CKD_DATA[[#All],["&$B$2&"]]"),WF_CKD_DATA[[#All],[OrgID]],$B$4,WF_CKD_DATA[[#All],[Rel_D]],TRENDS!E15))) ->  | H15: =SUMIFS(INDIRECT("WF_CKD_DATA[[#All],["&$B$2&"]]"),#REF!,$B$4,#REF!,TRENDS!C15) ->  | U15: Dr Shantir Practice | V15: F86626 | W15: =SUMIFS(WF_CKD_DATA[[#All],[08-CKD]],WF_CKD_DATA[[#All],[OrgID]],V15,WF_CKD_DATA[[#All],[Rel_D]],Locations!$E$17) -> 103 | X15: =SUMIFS(WF_CKD_DATA[[#All],[NIS08-CKD01]],WF_CKD_DATA[[#All],[OrgID]],V15,WF_CKD_DATA[[#All],[Rel_D]],Locations!$E$17) -> 86 | Y15: 0.8349514563 | Z15: =SUMIFS(WF_CKD_DATA[[#All],[NIS08-CKD02]],WF_CKD_DATA[[#All],[OrgID]],V15,WF_CKD_DATA[[#All],[Rel_D]],Locations!$E$17) -> 47 | AA15: 0.4563106796 | AB15: =SUMIFS(WF_CKD_DATA[[#All],[NIS08-CKD03]],WF_CKD_DATA[[#All],[OrgID]],V15,WF_CKD_DATA[[#All],[Rel_D]],Locations!$E$17) -> 64 | AC15: 0.6213592233 | AD15: =SUMIFS(WF_CKD_DATA[[#All],[NIS08-CKD04]],WF_CKD_DATA[[#All],[OrgID]],V15,WF_CKD_DATA[[#All],[Rel_D]],Locations!$E$17) -> 20 | AE15: 0.1941747573
C16: Targets | E16: 2021-07-01 | F16: =IF(SUMIFS(WF_CKD_DATA[[#All],[08-CKD]],WF_CKD_DATA[[#All],[OrgID]],$B$4,WF_CKD_DATA[[#All],[Rel_D]],E16)=0,#N/A,(SUMIFS(WF_CKD_DATA[[#All],[08-CKD]],WF_CKD_DATA[[#All],[OrgID]],$B$4,WF_CKD_DATA[[#All],[Rel_D]],E16))) ->  | G16: =IF(SUMIFS(INDIRECT("WF_CKD_DATA[[#All],["&$B$2&"]]"),WF_CKD_DATA[[#All],[OrgID]],$B$4,WF_CKD_DATA[[#All],[Rel_D]],TRENDS!E16)=0,#N/A,(SUMIFS(INDIRECT("WF_CKD_DATA[[#All],["&$B$2&"]]"),WF_CKD_DATA[[#All],[OrgID]],$B$4,WF_CKD_DATA[[#All],[Rel_D]],TRENDS!E16))) ->  | H16: =SUMIFS(INDIRECT("WF_CKD_DATA[[#All],["&$B$2&"]]"),#REF!,$B$4,#REF!,TRENDS!C16) ->  | U16: Lime Tree & Sinnott Healthcare Ltd | V16: Y01839 | W16: =SUMIFS(WF_CKD_DATA[[#All],[08-CKD]],WF_CKD_DATA[[#All],[OrgID]],V16,WF_CKD_DATA[[#All],[Rel_D]],Locations!$E$17) -> 151 | X16: =SUMIFS(WF_CKD_DATA[[#All],[NIS08-CKD01]],WF_CKD_DATA[[#All],[OrgID]],V16,WF_CKD_DATA[[#All],[Rel_D]],Locations!$E$17) -> 129 | Y16: 0.8543046358 | Z16: =SUMIFS(WF_CKD_DATA[[#All],[NIS08-CKD02]],WF_CKD_DATA[[#All],[OrgID]],V16,WF_CKD_DATA[[#All],[Rel_D]],Locations!$E$17) -> 70 | AA16: 0.4635761589 | AB16: =SUMIFS(WF_CKD_DATA[[#All],[NIS08-CKD03]],WF_CKD_DATA[[#All],[OrgID]],V16,WF_CKD_DATA[[#All],[Rel_D]],Locations!$E$17) -> 111 | AC16: 0.7350993377 | AD16: =SUMIFS(WF_CKD_DATA[[#All],[NIS08-CKD04]],WF_CKD_DATA[[#All],[OrgID]],V16,WF_CKD_DATA[[#All],[Rel_D]],Locations!$E$17) -> 41 | AE16: 0.2715231788
A17: evidence of CKD with BP below 140/90 | B17: NIS08-CKD02 | C17: 0.5 | E17: 2021-08-01 | F17: =IF(SUMIFS(WF_CKD_DATA[[#All],[08-CKD]],WF_CKD_DATA[[#All],[OrgID]],$B$4,WF_CKD_DATA[[#All],[Rel_D]],E17)=0,#N/A,(SUMIFS(WF_CKD_DATA[[#All],[08-CKD]],WF_CKD_DATA[[#All],[OrgID]],$B$4,WF_CKD_DATA[[#All],[Rel_D]],E17))) ->  | G17: =IF(SUMIFS(INDIRECT("WF_CKD_DATA[[#All],["&$B$2&"]]"),WF_CKD_DATA[[#All],[OrgID]],$B$4,WF_CKD_DATA[[#All],[Rel_D]],TRENDS!E17)=0,#N/A,(SUMIFS(INDIRECT("WF_CKD_DATA[[#All],["&$B$2&"]]"),WF_CKD_DATA[[#All],[OrgID]],$B$4,WF_CKD_DATA[[#All],[Rel_D]],TRENDS!E17))) ->  | H17: =SUMIFS(INDIRECT("WF_CKD_DATA[[#All],["&$B$2&"]]"),#REF!,$B$4,#REF!,TRENDS!C17) ->  | U17: The Bailey Practice | V17: F86689 | W17: =SUMIFS(WF_CKD_DATA[[#All],[08-CKD]],WF_CKD_DATA[[#All],[OrgID]],V17,WF_CKD_DATA[[#All],[Rel_D]],Locations!$E$17) -> 82 | X17: =SUMIFS(WF_CKD_DATA[[#All],[NIS08-CKD01]],WF_CKD_DATA[[#All],[OrgID]],V17,WF_CKD_DATA[[#All],[Rel_D]],Locations!$E$17) -> 70 | Y17: 0.8536585366 | Z17: =SUMIFS(WF_CKD_DATA[[#All],[NIS08-CKD02]],WF_CKD_DATA[[#All],[OrgID]],V17,WF_CKD_DATA[[#All],[Rel_D]],Locations!$E$17) -> 41 | AA17: 0.5 | AB17: =SUMIFS(WF_CKD_DATA[[#All],[NIS08-CKD03]],WF_CKD_DATA[[#All],[OrgID]],V17,WF_CKD_DATA[[#All],[Rel_D]],Locations!$E$17) -> 56 | AC17: 0.6829268293 | AD17: =SUMIFS(WF_CKD_DATA[[#All],[NIS08-CKD04]],WF_CKD_DATA[[#All],[OrgID]],V17,WF_CKD_DATA[[#All],[Rel_D]],Locations!$E$17) -> 14 | AE17: 0.1707317073
A18: evidence of CKD on Statins | B18: NIS08-CKD03 | C18: 0.5 | E18: 2021-09-01 | F18: =IF(SUMIFS(WF_CKD_DATA[[#All],[08-CKD]],WF_CKD_DATA[[#All],[OrgID]],$B$4,WF_CKD_DATA[[#All],[Rel_D]],E18)=0,#N/A,(SUMIFS(WF_CKD_DATA[[#All],[08-CKD]],WF_CKD_DATA[[#All],[OrgID]],$B$4,WF_CKD_DATA[[#All],[Rel_D]],E18))) ->  | G18: =IF(SUMIFS(INDIRECT("WF_CKD_DATA[[#All],["&$B$2&"]]"),WF_CKD_DATA[[#All],[OrgID]],$B$4,WF_CKD_DATA[[#All],[Rel_D]],TRENDS!E18)=0,#N/A,(SUMIFS(INDIRECT("WF_CKD_DATA[[#All],["&$B$2&"]]"),WF_CKD_DATA[[#All],[OrgID]],$B$4,WF_CKD_DATA[[#All],[Rel_D]],TRENDS!E18))) ->  | H18: =SUMIFS(INDIRECT("WF_CKD_DATA[[#All],["&$B$2&"]]"),#REF!,$B$4,#REF!,TRENDS!C18) ->  | U18: Forest Surgery | V18: F86026 | W18: =SUMIFS(WF_CKD_DATA[[#All],[08-CKD]],WF_CKD_DATA[[#All],[OrgID]],V18,WF_CKD_DATA[[#All],[Rel_D]],Locations!$E$17) -> 276 | X18: =SUMIFS(WF_CKD_DATA[[#All],[NIS08-CKD01]],WF_CKD_DATA[[#All],[OrgID]],V18,WF_CKD_DATA[[#All],[Rel_D]],Locations!$E$17) -> 194 | Y18: =IFERROR(X18/W18,"-") -> 0.7028985507 | Z18: =SUMIFS(WF_CKD_DATA[[#All],[NIS08-CKD02]],WF_CKD_DATA[[#All],[OrgID]],V18,WF_CKD_DATA[[#All],[Rel_D]],Locations!$E$17) -> 166 | AA18: 0.6014492754 | AB18: =SUMIFS(WF_CKD_DATA[[#All],[NIS08-CKD03]],WF_CKD_DATA[[#All],[OrgID]],V18,WF_CKD_DATA[[#All],[Rel_D]],Locations!$E$17) -> 157 | AC18: 0.5688405797 | AD18: =SUMIFS(WF_CKD_DATA[[#All],[NIS08-CKD04]],WF_CKD_DATA[[#All],[OrgID]],V18,WF_CKD_DATA[[#All],[Rel_D]],Locations!$E$17) -> 0 | AE18: 0
A19: evidence of CKD with ACR | B19: NIS08-CKD04 | C19: 0.5 | E19: 2021-10-01 | F19: =IF(SUMIFS(WF_CKD_DATA[[#All],[08-CKD]],WF_CKD_DATA[[#All],[OrgID]],$B$4,WF_CKD_DATA[[#All],[Rel_D]],E19)=0,#N/A,(SUMIFS(WF_CKD_DATA[[#All],[08-CKD]],WF_CKD_DATA[[#All],[OrgID]],$B$4,WF_CKD_DATA[[#All],[Rel_D]],E19))) -> 277 | G19: =IF(SUMIFS(INDIRECT("WF_CKD_DATA[[#All],["&$B$2&"]]"),WF_CKD_DATA[[#All],[OrgID]],$B$4,WF_CKD_DATA[[#All],[Rel_D]],TRENDS!E19)=0,#N/A,(SUMIFS(INDIRECT("WF_CKD_DATA[[#All],["&$B$2&"]]"),WF_CKD_DATA[[#All],[OrgID]],$B$4,WF_CKD_DATA[[#All],[Rel_D]],TRENDS!E19))) -> 129 | H19: =SUMIFS(INDIRECT("WF_CKD_DATA[[#All],["&$B$2&"]]"),#REF!,$B$4,#REF!,TRENDS!C19) ->  | U19: Handsworth Medical Centre | V19: F86004 | W19: =SUMIFS(WF_CKD_DATA[[#All],[08-CKD]],WF_CKD_DATA[[#All],[OrgID]],V19,WF_CKD_DATA[[#All],[Rel_D]],Locations!$E$17) -> 809 | X19: =SUMIFS(WF_CKD_DATA[[#All],[NIS08-CKD01]],WF_CKD_DATA[[#All],[OrgID]],V19,WF_CKD_DATA[[#All],[Rel_D]],Locations!$E$17) -> 570 | Y19: =IFERROR(X19/W19,"-") -> 0.7045735476 | Z19: =SUMIFS(WF_CKD_DATA[[#All],[NIS08-CKD02]],WF_CKD_DATA[[#All],[OrgID]],V19,WF_CKD_DATA[[#All],[Rel_D]],Locations!$E$17) -> 410 | AA19: 0.5067985167 | AB19: =SUMIFS(WF_CKD_DATA[[#All],[NIS08-CKD03]],WF_CKD_DATA[[#All],[OrgID]],V19,WF_CKD_DATA[[#All],[Rel_D]],Locations!$E$17) -> 456 | AC19: 0.5636588381 | AD19: =SUMIFS(WF_CKD_DATA[[#All],[NIS08-CKD04]],WF_CKD_DATA[[#All],[OrgID]],V19,WF_CKD_DATA[[#All],[Rel_D]],Locations!$E$17) -> 0 | AE19: 0
E20: 2021-11-01 | F20: =IF(SUMIFS(WF_CKD_DATA[[#All],[08-CKD]],WF_CKD_DATA[[#All],[OrgID]],$B$4,WF_CKD_DATA[[#All],[Rel_D]],E20)=0,#N/A,(SUMIFS(WF_CKD_DATA[[#All],[08-CKD]],WF_CKD_DATA[[#All],[OrgID]],$B$4,WF_CKD_DATA[[#All],[Rel_D]],E20))) -> 275 | G20: =IF(SUMIFS(INDIRECT("WF_CKD_DATA[[#All],["&$B$2&"]]"),WF_CKD_DATA[[#All],[OrgID]],$B$4,WF_CKD_DATA[[#All],[Rel_D]],TRENDS!E20)=0,#N/A,(SUMIFS(INDIRECT("WF_CKD_DATA[[#All],["&$B$2&"]]"),WF_CKD_DATA[[#All],[OrgID]],$B$4,WF_CKD_DATA[[#All],[Rel_D]],TRENDS!E20))) -> 97 | H20: =SUMIFS(INDIRECT("WF_CKD_DATA[[#All],["&$B$2&"]]"),#REF!,$B$4,#REF!,TRENDS!C20) ->  | U20: Chingford Medical Practice | V20: Y01291 | W20: =SUMIFS(WF_CKD_DATA[[#All],[08-CKD]],WF_CKD_DATA[[#All],[OrgID]],V20,WF_CKD_DATA[[#All],[Rel_D]],Locations!$E$17) -> 368 | X20: =SUMIFS(WF_CKD_DATA[[#All],[NIS08-CKD01]],WF_CKD_DATA[[#All],[OrgID]],V20,WF_CKD_DATA[[#All],[Rel_D]],Locations!$E$17) -> 357 | Y20: 0.9701086957 | Z20: =SUMIFS(WF_CKD_DATA[[#All],[NIS08-CKD02]],WF_CKD_DATA[[#All],[OrgID]],V20,WF_CKD_DATA[[#All],[Rel_D]],Locations!$E$17) -> 225 | AA20: 0.6114130435 | AB20: =SUMIFS(WF_CKD_DATA[[#All],[NIS08-CKD03]],WF_CKD_DATA[[#All],[OrgID]],V20,WF_CKD_DATA[[#All],[Rel_D]],Locations!$E$17) -> 247 | AC20: 0.6711956522 | AD20: =SUMIFS(WF_CKD_DATA[[#All],[NIS08-CKD04]],WF_CKD_DATA[[#All],[OrgID]],V20,WF_CKD_DATA[[#All],[Rel_D]],Locations!$E$17) -> 206 | AE20: 0.5597826087
E21: 2021-12-01 | F21: =IF(SUMIFS(WF_CKD_DATA[[#All],[08-CKD]],WF_CKD_DATA[[#All],[OrgID]],$B$4,WF_CKD_DATA[[#All],[Rel_D]],E21)=0,#N/A,(SUMIFS(WF_CKD_DATA[[#All],[08-CKD]],WF_CKD_DATA[[#All],[OrgID]],$B$4,WF_CKD_DATA[[#All],[Rel_D]],E21))) -> 275 | G21: =IF(SUMIFS(INDIRECT("WF_CKD_DATA[[#All],["&$B$2&"]]"),WF_CKD_DATA[[#All],[OrgID]],$B$4,WF_CKD_DATA[[#All],[Rel_D]],TRENDS!E21)=0,#N/A,(SUMIFS(INDIRECT("WF_CKD_DATA[[#All],["&$B$2&"]]"),WF_CKD_DATA[[#All],[OrgID]],$B$4,WF_CKD_DATA[[#All],[Rel_D]],TRENDS!E21))) -> 87 | H21: =SUMIFS(INDIRECT("WF_CKD_DATA[[#All],["&$B$2&"]]"),#REF!,$B$4,#REF!,TRENDS!C21) ->  | U21: Churchill Medical Centre | V21: F86627 | W21: =SUMIFS(WF_CKD_DATA[[#All],[08-CKD]],WF_CKD_DATA[[#All],[OrgID]],V21,WF_CKD_DATA[[#All],[Rel_D]],Locations!$E$17) -> 531 | X21: =SUMIFS(WF_CKD_DATA[[#All],[NIS08-CKD01]],WF_CKD_DATA[[#All],[OrgID]],V21,WF_CKD_DATA[[#All],[Rel_D]],Locations!$E$17) -> 447 | Y21: =X21/W21 -> 0.8418079096 | Z21: =SUMIFS(WF_CKD_DATA[[#All],[NIS08-CKD02]],WF_CKD_DATA[[#All],[OrgID]],V21,WF_CKD_DATA[[#All],[Rel_D]],Locations!$E$17) -> 265 | AA21: 0.4990583804 | AB21: =SUMIFS(WF_CKD_DATA[[#All],[NIS08-CKD03]],WF_CKD_DATA[[#All],[OrgID]],V21,WF_CKD_DATA[[#All],[Rel_D]],Locations!$E$17) -> 350 | AC21: 0.65913371 | AD21: =SUMIFS(WF_CKD_DATA[[#All],[NIS08-CKD04]],WF_CKD_DATA[[#All],[OrgID]],V21,WF_CKD_DATA[[#All],[Rel_D]],Locations!$E$17) -> 120 | AE21: 0.2259887006
E22: 2022-01-01 | F22: =IF(SUMIFS(WF_CKD_DATA[[#All],[08-CKD]],WF_CKD_DATA[[#All],[OrgID]],$B$4,WF_CKD_DATA[[#All],[Rel_D]],E22)=0,#N/A,(SUMIFS(WF_CKD_DATA[[#All],[08-CKD]],WF_CKD_DATA[[#All],[OrgID]],$B$4,WF_CKD_DATA[[#All],[Rel_D]],E22))) -> 271 | G22: =IF(SUMIFS(INDIRECT("WF_CKD_DATA[[#All],["&$B$2&"]]"),WF_CKD_DATA[[#All],[OrgID]],$B$4,WF_CKD_DATA[[#All],[Rel_D]],TRENDS!E22)=0,#N/A,(SUMIFS(INDIRECT("WF_CKD_DATA[[#All],["&$B$2&"]]"),WF_CKD_DATA[[#All],[OrgID]],$B$4,WF_CKD_DATA[[#All],[Rel_D]],TRENDS!E22))) -> 88 | H22: =SUMIFS(INDIRECT("WF_CKD_DATA[[#All],["&$B$2&"]]"),#REF!,$B$4,#REF!,TRENDS!C22) ->  | U22: The Ridgeway Surgery | V22: F86078 | W22: =SUMIFS(WF_CKD_DATA[[#All],[08-CKD]],WF_CKD_DATA[[#All],[OrgID]],V22,WF_CKD_DATA[[#All],[Rel_D]],Locations!$E$17) -> 316 | X22: =SUMIFS(WF_CKD_DATA[[#All],[NIS08-CKD01]],WF_CKD_DATA[[#All],[OrgID]],V22,WF_CKD_DATA[[#All],[Rel_D]],Locations!$E$17) -> 113 | Y22: 0.3575949367 | Z22: =SUMIFS(WF_CKD_DATA[[#All],[NIS08-CKD02]],WF_CKD_DATA[[#All],[OrgID]],V22,WF_CKD_DATA[[#All],[Rel_D]],Locations!$E$17) -> 128 | AA22: 0.4050632911 | AB22: =SUMIFS(WF_CKD_DATA[[#All],[NIS08-CKD03]],WF_CKD_DATA[[#All],[OrgID]],V22,WF_CKD_DATA[[#All],[Rel_D]],Locations!$E$17) -> 190 | AC22: 0.6012658228 | AD22: =SUMIFS(WF_CKD_DATA[[#All],[NIS08-CKD04]],WF_CKD_DATA[[#All],[OrgID]],V22,WF_CKD_DATA[[#All],[Rel_D]],Locations!$E$17) -> 49 | AE22: 0.1550632911
E23: 2022-02-01 | F23: =IF(SUMIFS(WF_CKD_DATA[[#All],[08-CKD]],WF_CKD_DATA[[#All],[OrgID]],$B$4,WF_CKD_DATA[[#All],[Rel_D]],E23)=0,#N/A,(SUMIFS(WF_CKD_DATA[[#All],[08-CKD]],WF_CKD_DATA[[#All],[OrgID]],$B$4,WF_CKD_DATA[[#All],[Rel_D]],E23))) -> 273 | G23: =IF(SUMIFS(INDIRECT("WF_CKD_DATA[[#All],["&$B$2&"]]"),WF_CKD_DATA[[#All],[OrgID]],$B$4,WF_CKD_DATA[[#All],[Rel_D]],TRENDS!E23)=0,#N/A,(SUMIFS(INDIRECT("WF_CKD_DATA[[#All],["&$B$2&"]]"),WF_CKD_DATA[[#All],[OrgID]],$B$4,WF_CKD_DATA[[#All],[Rel_D]],TRENDS!E23))) -> 89 | H23: =SUMIFS(INDIRECT("WF_CKD_DATA[[#All],["&$B$2&"]]"),#REF!,$B$4,#REF!,TRENDS!C23) ->  | U23: Old Church Surgery | V23: F86616 | W23: =SUMIFS(WF_CKD_DATA[[#All],[08-CKD]],WF_CKD_DATA[[#All],[OrgID]],V23,WF_CKD_DATA[[#All],[Rel_D]],Locations!$E$17) -> 268 | X23: =SUMIFS(WF_CKD_DATA[[#All],[NIS08-CKD01]],WF_CKD_DATA[[#All],[OrgID]],V23,WF_CKD_DATA[[#All],[Rel_D]],Locations!$E$17) -> 232 | Y23: 0.8656716418 | Z23: =SUMIFS(WF_CKD_DATA[[#All],[NIS08-CKD02]],WF_CKD_DATA[[#All],[OrgID]],V23,WF_CKD_DATA[[#All],[Rel_D]],Locations!$E$17) -> 187 | AA23: 0.697761194 | AB23: =SUMIFS(WF_CKD_DATA[[#All],[NIS08-CKD03]],WF_CKD_DATA[[#All],[OrgID]],V23,WF_CKD_DATA[[#All],[Rel_D]],Locations!$E$17) -> 164 | AC23: 0.6119402985 | AD23: =SUMIFS(WF_CKD_DATA[[#All],[NIS08-CKD04]],WF_CKD_DATA[[#All],[OrgID]],V23,WF_CKD_DATA[[#All],[Rel_D]],Locations!$E$17) -> 90 | AE23: 0.3358208955
E24: 2022-03-01 | F24: =IF(SUMIFS(WF_CKD_DATA[[#All],[08-CKD]],WF_CKD_DATA[[#All],[OrgID]],$B$4,WF_CKD_DATA[[#All],[Rel_D]],E24)=0,#N/A,(SUMIFS(WF_CKD_DATA[[#All],[08-CKD]],WF_CKD_DATA[[#All],[OrgID]],$B$4,WF_CKD_DATA[[#All],[Rel_D]],E24))) -> 270 | G24: =IF(SUMIFS(INDIRECT("WF_CKD_DATA[[#All],["&$B$2&"]]"),WF_CKD_DATA[[#All],[OrgID]],$B$4,WF_CKD_DATA[[#All],[Rel_D]],TRENDS!E24)=0,#N/A,(SUMIFS(INDIRECT("WF_CKD_DATA[[#All],["&$B$2&"]]"),WF_CKD_DATA[[#All],[OrgID]],$B$4,WF_CKD_DATA[[#All],[Rel_D]],TRENDS!E24))) -> 87 | H24: =SUMIFS(INDIRECT("WF_CKD_DATA[[#All],["&$B$2&"]]"),#REF!,$B$4,#REF!,TRENDS!C24) ->  | U24: The Manor Practice | V24: F86011 | W24: =SUMIFS(WF_CKD_DATA[[#All],[08-CKD]],WF_CKD_DATA[[#All],[OrgID]],V24,WF_CKD_DATA[[#All],[Rel_D]],Locations!$E$17) -> 217 | X24: =SUMIFS(WF_CKD_DATA[[#All],[NIS08-CKD01]],WF_CKD_DATA[[#All],[OrgID]],V24,WF_CKD_DATA[[#All],[Rel_D]],Locations!$E$17) -> 169 | Y24: 0.7788018433 | Z24: =SUMIFS(WF_CKD_DATA[[#All],[NIS08-CKD02]],WF_CKD_DATA[[#All],[OrgID]],V24,WF_CKD_DATA[[#All],[Rel_D]],Locations!$E$17) -> 110 | AA24: 0.5069124424 | AB24: =SUMIFS(WF_CKD_DATA[[#All],[NIS08-CKD03]],WF_CKD_DATA[[#All],[OrgID]],V24,WF_CKD_DATA[[#All],[Rel_D]],Locations!$E$17) -> 144 | AC24: 0.66359447 | AD24: =SUMIFS(WF_CKD_DATA[[#All],[NIS08-CKD04]],WF_CKD_DATA[[#All],[OrgID]],V24,WF_CKD_DATA[[#All],[Rel_D]],Locations!$E$17) -> 56 | AE24: 0.2580645161
E25: 2022-04-01 | F25: =IF(SUMIFS(WF_CKD_DATA[[#All],[08-CKD]],WF_CKD_DATA[[#All],[OrgID]],$B$4,WF_CKD_DATA[[#All],[Rel_D]],E25)=0,#N/A,(SUMIFS(WF_CKD_DATA[[#All],[08-CKD]],WF_CKD_DATA[[#All],[OrgID]],$B$4,WF_CKD_DATA[[#All],[Rel_D]],E25))) -> 275 | G25: =IF(SUMIFS(INDIRECT("WF_CKD_DATA[[#All],["&$B$2&"]]"),WF_CKD_DATA[[#All],[OrgID]],$B$4,WF_CKD_DATA[[#All],[Rel_D]],TRENDS!E25)=0,#N/A,(SUMIFS(INDIRECT("WF_CKD_DATA[[#All],["&$B$2&"]]"),WF_CKD_DATA[[#All],[OrgID]],$B$4,WF_CKD_DATA[[#All],[Rel_D]],TRENDS!E25))) ->  | H25: =SUMIFS(INDIRECT("WF_CKD_DATA[[#All],["&$B$2&"]]"),#REF!,$B$4,#REF!,TRENDS!C25) ->  | U25: Sma Medical Centre | V25: F86038 | W25: =SUMIFS(WF_CKD_DATA[[#All],[08-CKD]],WF_CKD_DATA[[#All],[OrgID]],V25,WF_CKD_DATA[[#All],[Rel_D]],Locations!$E$17) -> 190 | X25: =SUMIFS(WF_CKD_DATA[[#All],[NIS08-CKD01]],WF_CKD_DATA[[#All],[OrgID]],V25,WF_CKD_DATA[[#All],[Rel_D]],Locations!$E$17) -> 152 | Y25: 0.8 | Z25: =SUMIFS(WF_CKD_DATA[[#All],[NIS08-CKD02]],WF_CKD_DATA[[#All],[OrgID]],V25,WF_CKD_DATA[[#All],[Rel_D]],Locations!$E$17) -> 150 | AA25: 0.7894736842 | AB25: =SUMIFS(WF_CKD_DATA[[#All],[NIS08-CKD03]],WF_CKD_DATA[[#All],[OrgID]],V25,WF_CKD_DATA[[#All],[Rel_D]],Locations!$E$17) -> 145 | AC25: =IFERROR(AB25/W25,"-") -> 0.7631578947 | AD25: =SUMIFS(WF_CKD_DATA[[#All],[NIS08-CKD04]],WF_CKD_DATA[[#All],[OrgID]],V25,WF_CKD_DATA[[#All],[Rel_D]],Locations!$E$17) -> 100 | AE25: 0.5263157895
W26: =SUMIFS(WF_CKD_DATA[[#All],[08-CKD]],WF_CKD_DATA[[#All],[OrgID]],V26,WF_CKD_DATA[[#All],[Rel_D]],Locations!$E$17) -> 0 | X26: =SUMIFS(WF_CKD_DATA[[#All],[NIS08-CKD01]],WF_CKD_DATA[[#All],[OrgID]],V26,WF_CKD_DATA[[#All],[Rel_D]],Locations!$E$17) -> 0 | Z26: =SUMIFS(WF_CKD_DATA[[#All],[NIS08-CKD02]],WF_CKD_DATA[[#All],[OrgID]],V26,WF_CKD_DATA[[#All],[Rel_D]],Locations!$E$17) -> 0 | AA26: - | AB26: =SUMIFS(WF_CKD_DATA[[#All],[NIS08-CKD03]],WF_CKD_DATA[[#All],[OrgID]],V26,WF_CKD_DATA[[#All],[Rel_D]],Locations!$E$17) -> 0 | AD26: =SUMIFS(WF_CKD_DATA[[#All],[NIS08-CKD04]],WF_CKD_DATA[[#All],[OrgID]],V26,WF_CKD_DATA[[#All],[Rel_D]],Locations!$E$17) -> 0 | AE26: -
U27: Leyton Healthcare (Oliver Road) | V27: F86074 | W27: =SUMIFS(WF_CKD_DATA[[#All],[08-CKD]],WF_CKD_DATA[[#All],[OrgID]],V27,WF_CKD_DATA[[#All],[Rel_D]],Locations!$E$17) -> 372 | X27: =SUMIFS(WF_CKD_DATA[[#All],[NIS08-CKD01]],WF_CKD_DATA[[#All],[OrgID]],V27,WF_CKD_DATA[[#All],[Rel_D]],Locations!$E$17) -> 260 | Y27: =IFERROR(X27/W27,"-") -> 0.6989247312 | Z27: =SUMIFS(WF_CKD_DATA[[#All],[NIS08-CKD02]],WF_CKD_DATA[[#All],[OrgID]],V27,WF_CKD_DATA[[#All],[Rel_D]],Locations!$E$17) -> 189 | AA27: 0.5080645161 | AB27: =SUMIFS(WF_CKD_DATA[[#All],[NIS08-CKD03]],WF_CKD_DATA[[#All],[OrgID]],V27,WF_CKD_DATA[[#All],[Rel_D]],Locations!$E$17) -> 242 | AC27: 0.6505376344 | AD27: =SUMIFS(WF_CKD_DATA[[#All],[NIS08-CKD04]],WF_CKD_DATA[[#All],[OrgID]],V27,WF_CKD_DATA[[#All],[Rel_D]],Locations!$E$17) -> 0 | AE27: 0
U28: The Allum Medical Centre | V28: F86036 | W28: =SUMIFS(WF_CKD_DATA[[#All],[08-CKD]],WF_CKD_DATA[[#All],[OrgID]],V28,WF_CKD_DATA[[#All],[Rel_D]],Locations!$E$17) -> 305 | X28: =SUMIFS(WF_CKD_DATA[[#All],[NIS08-CKD01]],WF_CKD_DATA[[#All],[OrgID]],V28,WF_CKD_DATA[[#All],[Rel_D]],Locations!$E$17) -> 224 | Y28: =X28/W28 -> 0.7344262295 | Z28: =SUMIFS(WF_CKD_DATA[[#All],[NIS08-CKD02]],WF_CKD_DATA[[#All],[OrgID]],V28,WF_CKD_DATA[[#All],[Rel_D]],Locations!$E$17) -> 167 | AA28: 0.5475409836 | AB28: =SUMIFS(WF_CKD_DATA[[#All],[NIS08-CKD03]],WF_CKD_DATA[[#All],[OrgID]],V28,WF_CKD_DATA[[#All],[Rel_D]],Locations!$E$17) -> 206 | AC28: 0.6754098361 | AD28: =SUMIFS(WF_CKD_DATA[[#All],[NIS08-CKD04]],WF_CKD_DATA[[#All],[OrgID]],V28,WF_CKD_DATA[[#All],[Rel_D]],Locations!$E$17) -> 98 | AE28: 0.3213114754
U29: Crawley Road Medical Centre | V29: F86044 | W29: =SUMIFS(WF_CKD_DATA[[#All],[08-CKD]],WF_CKD_DATA[[#All],[OrgID]],V29,WF_CKD_DATA[[#All],[Rel_D]],Locations!$E$17) -> 117 | X29: =SUMIFS(WF_CKD_DATA[[#All],[NIS08-CKD01]],WF_CKD_DATA[[#All],[OrgID]],V29,WF_CKD_DATA[[#All],[Rel_D]],Locations!$E$17) -> 105 | Y29: 0.8974358974 | Z29: =SUMIFS(WF_CKD_DATA[[#All],[NIS08-CKD02]],WF_CKD_DATA[[#All],[OrgID]],V29,WF_CKD_DATA[[#All],[Rel_D]],Locations!$E$17) -> 56 | AA29: 0.4786324786 | AB29: =SUMIFS(WF_CKD_DATA[[#All],[NIS08-CKD03]],WF_CKD_DATA[[#All],[OrgID]],V29,WF_CKD_DATA[[#All],[Rel_D]],Locations!$E$17) -> 83 | AC29: 0.7094017094 | AD29: =SUMIFS(WF_CKD_DATA[[#All],[NIS08-CKD04]],WF_CKD_DATA[[#All],[OrgID]],V29,WF_CKD_DATA[[#All],[Rel_D]],Locations!$E$17) -> 28 | AE29: 0.2393162393
U30: Francis Road Medical Centre | V30: F86696 | W30: =SUMIFS(WF_CKD_DATA[[#All],[08-CKD]],WF_CKD_DATA[[#All],[OrgID]],V30,WF_CKD_DATA[[#All],[Rel_D]],Locations!$E$17) -> 117 | X30: =SUMIFS(WF_CKD_DATA[[#All],[NIS08-CKD01]],WF_CKD_DATA[[#All],[OrgID]],V30,WF_CKD_DATA[[#All],[Rel_D]],Locations!$E$17) -> 109 | Y30: 0.9316239316 | Z30: =SUMIFS(WF_CKD_DATA[[#All],[NIS08-CKD02]],WF_CKD_DATA[[#All],[OrgID]],V30,WF_CKD_DATA[[#All],[Rel_D]],Locations!$E$17) -> 62 | AA30: 0.5299145299 | AB30: =SUMIFS(WF_CKD_DATA[[#All],[NIS08-CKD03]],WF_CKD_DATA[[#All],[OrgID]],V30,WF_CKD_DATA[[#All],[Rel_D]],Locations!$E$17) -> 92 | AC30: 0.7863247863 | AD30: =SUMIFS(WF_CKD_DATA[[#All],[NIS08-CKD04]],WF_CKD_DATA[[#All],[OrgID]],V30,WF_CKD_DATA[[#All],[Rel_D]],Locations!$E$17) -> 50 | AE30: 0.4273504274
U31: Hampton Medical Centre | V31: F86712 | W31: =SUMIFS(WF_CKD_DATA[[#All],[08-CKD]],WF_CKD_DATA[[#All],[OrgID]],V31,WF_CKD_DATA[[#All],[Rel_D]],Locations!$E$17) -> 74 | X31: =SUMIFS(WF_CKD_DATA[[#All],[NIS08-CKD01]],WF_CKD_DATA[[#All],[OrgID]],V31,WF_CKD_DATA[[#All],[Rel_D]],Locations!$E$17) -> 73 | Y31: 0.9864864865 | Z31: =SUMIFS(WF_CKD_DATA[[#All],[NIS08-CKD02]],WF_CKD_DATA[[#All],[OrgID]],V31,WF_CKD_DATA[[#All],[Rel_D]],Locations!$E$17) -> 40 | AA31: 0.5405405405 | AB31: =SUMIFS(WF_CKD_DATA[[#All],[NIS08-CKD03]],WF_CKD_DATA[[#All],[OrgID]],V31,WF_CKD_DATA[[#All],[Rel_D]],Locations!$E$17) -> 64 | AC31: 0.8648648649 | AD31: =SUMIFS(WF_CKD_DATA[[#All],[NIS08-CKD04]],WF_CKD_DATA[[#All],[OrgID]],V31,WF_CKD_DATA[[#All],[Rel_D]],Locations!$E$17) -> 16 | AE31: 0.2162162162
U32: Lime Tree Surgery | V32: F86650 | W32: =SUMIFS(WF_CKD_DATA[[#All],[08-CKD]],WF_CKD_DATA[[#All],[OrgID]],V32,WF_CKD_DATA[[#All],[Rel_D]],Locations!$E$17) -> 144 | X32: =SUMIFS(WF_CKD_DATA[[#All],[NIS08-CKD01]],WF_CKD_DATA[[#All],[OrgID]],V32,WF_CKD_DATA[[#All],[Rel_D]],Locations!$E$17) -> 131 | Y32: 0.9097222222 | Z32: =SUMIFS(WF_CKD_DATA[[#All],[NIS08-CKD02]],WF_CKD_DATA[[#All],[OrgID]],V32,WF_CKD_DATA[[#All],[Rel_D]],Locations!$E$17) -> 67 | AA32: 0.4652777778 | AB32: =SUMIFS(WF_CKD_DATA[[#All],[NIS08-CKD03]],WF_CKD_DATA[[#All],[OrgID]],V32,WF_CKD_DATA[[#All],[Rel_D]],Locations!$E$17) -> 96 | AC32: 0.6666666667 | AD32: =SUMIFS(WF_CKD_DATA[[#All],[NIS08-CKD04]],WF_CKD_DATA[[#All],[OrgID]],V32,WF_CKD_DATA[[#All],[Rel_D]],Locations!$E$17) -> 100 | AE32: 0.6944444444
U33: The Lyndhurst Surgery | V33: F86088 | W33: =SUMIFS(WF_CKD_DATA[[#All],[08-CKD]],WF_CKD_DATA[[#All],[OrgID]],V33,WF_CKD_DATA[[#All],[Rel_D]],Locations!$E$17) -> 109 | X33: =SUMIFS(WF_CKD_DATA[[#All],[NIS08-CKD01]],WF_CKD_DATA[[#All],[OrgID]],V33,WF_CKD_DATA[[#All],[Rel_D]],Locations!$E$17) -> 93 | Y33: 0.8532110092 | Z33: =SUMIFS(WF_CKD_DATA[[#All],[NIS08-CKD02]],WF_CKD_DATA[[#All],[OrgID]],V33,WF_CKD_DATA[[#All],[Rel_D]],Locations!$E$17) -> 46 | AA33: 0.4220183486 | AB33: =SUMIFS(WF_CKD_DATA[[#All],[NIS08-CKD03]],WF_CKD_DATA[[#All],[OrgID]],V33,WF_CKD_DATA[[#All],[Rel_D]],Locations!$E$17) -> 86 | AC33: 0.7889908257 | AD33: =SUMIFS(WF_CKD_DATA[[#All],[NIS08-CKD04]],WF_CKD_DATA[[#All],[OrgID]],V33,WF_CKD_DATA[[#All],[Rel_D]],Locations!$E$17) -> 56 | AE33: 0.5137614679
U34: The Ecclesbourne Practice | V34: F86018 | W34: =SUMIFS(WF_CKD_DATA[[#All],[08-CKD]],WF_CKD_DATA[[#All],[OrgID]],V34,WF_CKD_DATA[[#All],[Rel_D]],Locations!$E$17) -> 490 | X34: =SUMIFS(WF_CKD_DATA[[#All],[NIS08-CKD01]],WF_CKD_DATA[[#All],[OrgID]],V34,WF_CKD_DATA[[#All],[Rel_D]],Locations!$E$17) -> 369 | Y34: =IFERROR(X34/W34,"-") -> 0.7530612245 | Z34: =SUMIFS(WF_CKD_DATA[[#All],[NIS08-CKD02]],WF_CKD_DATA[[#All],[OrgID]],V34,WF_CKD_DATA[[#All],[Rel_D]],Locations!$E$17) -> 255 | AA34: 0.5204081633 | AB34: =SUMIFS(WF_CKD_DATA[[#All],[NIS08-CKD03]],WF_CKD_DATA[[#All],[OrgID]],V34,WF_CKD_DATA[[#All],[Rel_D]],Locations!$E$17) -> 268 | AC34: 0.5469387755 | AD34: =SUMIFS(WF_CKD_DATA[[#All],[NIS08-CKD04]],WF_CKD_DATA[[#All],[OrgID]],V34,WF_CKD_DATA[[#All],[Rel_D]],Locations!$E$17) -> 0 | AE34: 0
U35: Green Man Medical Centre | V35: F86621 | W35: =SUMIFS(WF_CKD_DATA[[#All],[08-CKD]],WF_CKD_DATA[[#All],[OrgID]],V35,WF_CKD_DATA[[#All],[Rel_D]],Locations!$E$17) -> 158 | X35: =SUMIFS(WF_CKD_DATA[[#All],[NIS08-CKD01]],WF_CKD_DATA[[#All],[OrgID]],V35,WF_CKD_DATA[[#All],[Rel_D]],Locations!$E$17) -> 138 | Y35: =X35/W35 -> 0.8734177215 | Z35: =SUMIFS(WF_CKD_DATA[[#All],[NIS08-CKD02]],WF_CKD_DATA[[#All],[OrgID]],V35,WF_CKD_DATA[[#All],[Rel_D]],Locations!$E$17) -> 88 | AA35: 0.5569620253 | AB35: =SUMIFS(WF_CKD_DATA[[#All],[NIS08-CKD03]],WF_CKD_DATA[[#All],[OrgID]],V35,WF_CKD_DATA[[#All],[Rel_D]],Locations!$E$17) -> 131 | AC35: 0.8291139241 | AD35: =SUMIFS(WF_CKD_DATA[[#All],[NIS08-CKD04]],WF_CKD_DATA[[#All],[OrgID]],V35,WF_CKD_DATA[[#All],[Rel_D]],Locations!$E$17) -> 50 | AE35: 0.3164556962
U36: High Road Surgery | V36: F86045 | W36: =SUMIFS(WF_CKD_DATA[[#All],[08-CKD]],WF_CKD_DATA[[#All],[OrgID]],V36,WF_CKD_DATA[[#All],[Rel_D]],Locations!$E$17) -> 50 | X36: =SUMIFS(WF_CKD_DATA[[#All],[NIS08-CKD01]],WF_CKD_DATA[[#All],[OrgID]],V36,WF_CKD_DATA[[#All],[Rel_D]],Locations!$E$17) -> 45 | Y36: 0.9 | Z36: =SUMIFS(WF_CKD_DATA[[#All],[NIS08-CKD02]],WF_CKD_DATA[[#All],[OrgID]],V36,WF_CKD_DATA[[#All],[Rel_D]],Locations!$E$17) -> 35 | AA36: 0.7 | AB36: =SUMIFS(WF_CKD_DATA[[#All],[NIS08-CKD03]],WF_CKD_DATA[[#All],[OrgID]],V36,WF_CKD_DATA[[#All],[Rel_D]],Locations!$E$17) -> 39 | AC36: 0.78 | AD36: =SUMIFS(WF_CKD_DATA[[#All],[NIS08-CKD04]],WF_CKD_DATA[[#All],[OrgID]],V36,WF_CKD_DATA[[#All],[Rel_D]],Locations!$E$17) -> 37 | AE36: 0.74
U37: Kiyani Medical Practice | V37: F86701 | W37: =SUMIFS(WF_CKD_DATA[[#All],[08-CKD]],WF_CKD_DATA[[#All],[OrgID]],V37,WF_CKD_DATA[[#All],[Rel_D]],Locations!$E$17) -> 84 | X37: =SUMIFS(WF_CKD_DATA[[#All],[NIS08-CKD01]],WF_CKD_DATA[[#All],[OrgID]],V37,WF_CKD_DATA[[#All],[Rel_D]],Locations!$E$17) -> 80 | Y37: 0.9523809524 | Z37: =SUMIFS(WF_CKD_DATA[[#All],[NIS08-CKD02]],WF_CKD_DATA[[#All],[OrgID]],V37,WF_CKD_DATA[[#All],[Rel_D]],Locations!$E$17) -> 53 | AA37: 0.630952381 | AB37: =SUMIFS(WF_CKD_DATA[[#All],[NIS08-CKD03]],WF_CKD_DATA[[#All],[OrgID]],V37,WF_CKD_DATA[[#All],[Rel_D]],Locations!$E$17) -> 77 | AC37: 0.9166666667 | AD37: =SUMIFS(WF_CKD_DATA[[#All],[NIS08-CKD04]],WF_CKD_DATA[[#All],[OrgID]],V37,WF_CKD_DATA[[#All],[Rel_D]],Locations!$E$17) -> 55 | AE37: 0.6547619048
U38: LL Medical Care (Agarwal & Agrwal Practice) | V38: F86625 | W38: =SUMIFS(WF_CKD_DATA[[#All],[08-CKD]],WF_CKD_DATA[[#All],[OrgID]],V38,WF_CKD_DATA[[#All],[Rel_D]],Locations!$E$17) -> 148 | X38: =SUMIFS(WF_CKD_DATA[[#All],[NIS08-CKD01]],WF_CKD_DATA[[#All],[OrgID]],V38,WF_CKD_DATA[[#All],[Rel_D]],Locations!$E$17) -> 129 | Y38: 0.8716216216 | Z38: =SUMIFS(WF_CKD_DATA[[#All],[NIS08-CKD02]],WF_CKD_DATA[[#All],[OrgID]],V38,WF_CKD_DATA[[#All],[Rel_D]],Locations!$E$17) -> 76 | AA38: 0.5135135135 | AB38: =SUMIFS(WF_CKD_DATA[[#All],[NIS08-CKD03]],WF_CKD_DATA[[#All],[OrgID]],V38,WF_CKD_DATA[[#All],[Rel_D]],Locations!$E$17) -> 112 | AC38: 0.7567567568 | AD38: =SUMIFS(WF_CKD_DATA[[#All],[NIS08-CKD04]],WF_CKD_DATA[[#All],[OrgID]],V38,WF_CKD_DATA[[#All],[Rel_D]],Locations!$E$17) -> 47 | AE38: 0.3175675676
U39: The Harrow Road Surgery | V39: F86666 | W39: =SUMIFS(WF_CKD_DATA[[#All],[08-CKD]],WF_CKD_DATA[[#All],[OrgID]],V39,WF_CKD_DATA[[#All],[Rel_D]],Locations!$E$17) -> 263 | X39: =SUMIFS(WF_CKD_DATA[[#All],[NIS08-CKD01]],WF_CKD_DATA[[#All],[OrgID]],V39,WF_CKD_DATA[[#All],[Rel_D]],Locations!$E$17) -> 251 | Y39: 0.9543726236 | Z39: =SUMIFS(WF_CKD_DATA[[#All],[NIS08-CKD02]],WF_CKD_DATA[[#All],[OrgID]],V39,WF_CKD_DATA[[#All],[Rel_D]],Locations!$E$17) -> 172 | AA39: 0.6539923954 | AB39: =SUMIFS(WF_CKD_DATA[[#All],[NIS08-CKD03]],WF_CKD_DATA[[#All],[OrgID]],V39,WF_CKD_DATA[[#All],[Rel_D]],Locations!$E$17) -> 194 | AC39: 0.7376425856 | AD39: =SUMIFS(WF_CKD_DATA[[#All],[NIS08-CKD04]],WF_CKD_DATA[[#All],[OrgID]],V39,WF_CKD_DATA[[#All],[Rel_D]],Locations!$E$17) -> 144 | AE39: 0.5475285171
U40: The Langthorne Sharma Family Practice | V40: F86705 | W40: =SUMIFS(WF_CKD_DATA[[#All],[08-CKD]],WF_CKD_DATA[[#All],[OrgID]],V40,WF_CKD_DATA[[#All],[Rel_D]],Locations!$E$17) -> 59 | X40: =SUMIFS(WF_CKD_DATA[[#All],[NIS08-CKD01]],WF_CKD_DATA[[#All],[OrgID]],V40,WF_CKD_DATA[[#All],[Rel_D]],Locations!$E$17) -> 54 | Y40: 0.9152542373 | Z40: =SUMIFS(WF_CKD_DATA[[#All],[NIS08-CKD02]],WF_CKD_DATA[[#All],[OrgID]],V40,WF_CKD_DATA[[#All],[Rel_D]],Locations!$E$17) -> 35 | AA40: 0.593220339 | AB40: =SUMIFS(WF_CKD_DATA[[#All],[NIS08-CKD03]],WF_CKD_DATA[[#All],[OrgID]],V40,WF_CKD_DATA[[#All],[Rel_D]],Locations!$E$17) -> 42 | AC40: 0.7118644068 | AD40: =SUMIFS(WF_CKD_DATA[[#All],[NIS08-CKD04]],WF_CKD_DATA[[#All],[OrgID]],V40,WF_CKD_DATA[[#All],[Rel_D]],Locations!$E$17) -> 19 | AE40: 0.3220338983
U41: Addison Road Medical Practice | V41: F86607 | W41: =SUMIFS(WF_CKD_DATA[[#All],[08-CKD]],WF_CKD_DATA[[#All],[OrgID]],V41,WF_CKD_DATA[[#All],[Rel_D]],Locations!$E$17) -> 263 | X41: =SUMIFS(WF_CKD_DATA[[#All],[NIS08-CKD01]],WF_CKD_DATA[[#All],[OrgID]],V41,WF_CKD_DATA[[#All],[Rel_D]],Locations!$E$17) -> 238 | Y41: 0.9049429658 | Z41: =SUMIFS(WF_CKD_DATA[[#All],[NIS08-CKD02]],WF_CKD_DATA[[#All],[OrgID]],V41,WF_CKD_DATA[[#All],[Rel_D]],Locations!$E$17) -> 138 | AA41: 0.5247148289 | AB41: =SUMIFS(WF_CKD_DATA[[#All],[NIS08-CKD03]],WF_CKD_DATA[[#All],[OrgID]],V41,WF_CKD_DATA[[#All],[Rel_D]],Locations!$E$17) -> 202 | AC41: 0.7680608365 | AD41: =SUMIFS(WF_CKD_DATA[[#All],[NIS08-CKD04]],WF_CKD_DATA[[#All],[OrgID]],V41,WF_CKD_DATA[[#All],[Rel_D]],Locations!$E$17) -> 130 | AE41: 0.4942965779
U42: Claremont Medical Centre | V42: F86708 | W42: =SUMIFS(WF_CKD_DATA[[#All],[08-CKD]],WF_CKD_DATA[[#All],[OrgID]],V42,WF_CKD_DATA[[#All],[Rel_D]],Locations!$E$17) -> 56 | X42: =SUMIFS(WF_CKD_DATA[[#All],[NIS08-CKD01]],WF_CKD_DATA[[#All],[OrgID]],V42,WF_CKD_DATA[[#All],[Rel_D]],Locations!$E$17) -> 52 | Y42: 0.9285714286 | Z42: =SUMIFS(WF_CKD_DATA[[#All],[NIS08-CKD02]],WF_CKD_DATA[[#All],[OrgID]],V42,WF_CKD_DATA[[#All],[Rel_D]],Locations!$E$17) -> 30 | AA42: 0.5357142857 | AB42: =SUMIFS(WF_CKD_DATA[[#All],[NIS08-CKD03]],WF_CKD_DATA[[#All],[OrgID]],V42,WF_CKD_DATA[[#All],[Rel_D]],Locations!$E$17) -> 42 | AC42: 0.75 | AD42: =SUMIFS(WF_CKD_DATA[[#All],[NIS08-CKD04]],WF_CKD_DATA[[#All],[OrgID]],V42,WF_CKD_DATA[[#All],[Rel_D]],Locations!$E$17) -> 22 | AE42: 0.3928571429
U43: The Firs | V43: F86001 | W43: =SUMIFS(WF_CKD_DATA[[#All],[08-CKD]],WF_CKD_DATA[[#All],[OrgID]],V43,WF_CKD_DATA[[#All],[Rel_D]],Locations!$E$17) -> 199 | X43: =SUMIFS(WF_CKD_DATA[[#All],[NIS08-CKD01]],WF_CKD_DATA[[#All],[OrgID]],V43,WF_CKD_DATA[[#All],[Rel_D]],Locations!$E$17) -> 179 | Y43: 0.8994974874 | Z43: =SUMIFS(WF_CKD_DATA[[#All],[NIS08-CKD02]],WF_CKD_DATA[[#All],[OrgID]],V43,WF_CKD_DATA[[#All],[Rel_D]],Locations!$E$17) -> 98 | AA43: 0.4924623116 | AB43: =SUMIFS(WF_CKD_DATA[[#All],[NIS08-CKD03]],WF_CKD_DATA[[#All],[OrgID]],V43,WF_CKD_DATA[[#All],[Rel_D]],Locations!$E$17) -> 126 | AC43: 0.6331658291 | AD43: =SUMIFS(WF_CKD_DATA[[#All],[NIS08-CKD04]],WF_CKD_DATA[[#All],[OrgID]],V43,WF_CKD_DATA[[#All],[Rel_D]],Locations!$E$17) -> 42 | AE43: 0.2110552764
U44: Dr Dhital Practice | V44: F86086 | W44: =SUMIFS(WF_CKD_DATA[[#All],[08-CKD]],WF_CKD_DATA[[#All],[OrgID]],V44,WF_CKD_DATA[[#All],[Rel_D]],Locations!$E$17) -> 84 | X44: =SUMIFS(WF_CKD_DATA[[#All],[NIS08-CKD01]],WF_CKD_DATA[[#All],[OrgID]],V44,WF_CKD_DATA[[#All],[Rel_D]],Locations!$E$17) -> 63 | Y44: 0.75 | Z44: =SUMIFS(WF_CKD_DATA[[#All],[NIS08-CKD02]],WF_CKD_DATA[[#All],[OrgID]],V44,WF_CKD_DATA[[#All],[Rel_D]],Locations!$E$17) -> 39 | AA44: 0.4642857143 | AB44: =SUMIFS(WF_CKD_DATA[[#All],[NIS08-CKD03]],WF_CKD_DATA[[#All],[OrgID]],V44,WF_CKD_DATA[[#All],[Rel_D]],Locations!$E$17) -> 52 | AC44: 0.619047619 | AD44: =SUMIFS(WF_CKD_DATA[[#All],[NIS08-CKD04]],WF_CKD_DATA[[#All],[OrgID]],V44,WF_CKD_DATA[[#All],[Rel_D]],Locations!$E$17) -> 18 | AE44: 0.2142857143
U45: Waltham Forest Community & Family Health Services Ltd | V45: F86644 | W45: =SUMIFS(WF_CKD_DATA[[#All],[08-CKD]],WF_CKD_DATA[[#All],[OrgID]],V45,WF_CKD_DATA[[#All],[Rel_D]],Locations!$E$17) -> 217 | X45: =SUMIFS(WF_CKD_DATA[[#All],[NIS08-CKD01]],WF_CKD_DATA[[#All],[OrgID]],V45,WF_CKD_DATA[[#All],[Rel_D]],Locations!$E$17) -> 205 | Y45: 0.9447004608 | Z45: =SUMIFS(WF_CKD_DATA[[#All],[NIS08-CKD02]],WF_CKD_DATA[[#All],[OrgID]],V45,WF_CKD_DATA[[#All],[Rel_D]],Locations!$E$17) -> 101 | AA45: 0.465437788 | AB45: =SUMIFS(WF_CKD_DATA[[#All],[NIS08-CKD03]],WF_CKD_DATA[[#All],[OrgID]],V45,WF_CKD_DATA[[#All],[Rel_D]],Locations!$E$17) -> 137 | AC45: 0.6313364055 | AD45: =SUMIFS(WF_CKD_DATA[[#All],[NIS08-CKD04]],WF_CKD_DATA[[#All],[OrgID]],V45,WF_CKD_DATA[[#All],[Rel_D]],Locations!$E$17) -> 68 | AE45: 0.3133640553
U46: Seymour Medical Centre | V46: F86006 | W46: =SUMIFS(WF_CKD_DATA[[#All],[08-CKD]],WF_CKD_DATA[[#All],[OrgID]],V46,WF_CKD_DATA[[#All],[Rel_D]],Locations!$E$17) -> 144 | X46: =SUMIFS(WF_CKD_DATA[[#All],[NIS08-CKD01]],WF_CKD_DATA[[#All],[OrgID]],V46,WF_CKD_DATA[[#All],[Rel_D]],Locations!$E$17) -> 105 | Y46: 0.7291666667 | Z46: =SUMIFS(WF_CKD_DATA[[#All],[NIS08-CKD02]],WF_CKD_DATA[[#All],[OrgID]],V46,WF_CKD_DATA[[#All],[Rel_D]],Locations!$E$17) -> 66 | AA46: 0.4583333333 | AB46: =SUMIFS(WF_CKD_DATA[[#All],[NIS08-CKD03]],WF_CKD_DATA[[#All],[OrgID]],V46,WF_CKD_DATA[[#All],[Rel_D]],Locations!$E$17) -> 91 | AC46: 0.6319444444 | AD46: =SUMIFS(WF_CKD_DATA[[#All],[NIS08-CKD04]],WF_CKD_DATA[[#All],[OrgID]],V46,WF_CKD_DATA[[#All],[Rel_D]],Locations!$E$17) -> 47 | AE46: 0.3263888889
U47: Queens Road Medical Centre | V47: F86030 | W47: =SUMIFS(WF_CKD_DATA[[#All],[08-CKD]],WF_CKD_DATA[[#All],[OrgID]],V47,WF_CKD_DATA[[#All],[Rel_D]],Locations!$E$17) -> 165 | X47: =SUMIFS(WF_CKD_DATA[[#All],[NIS08-CKD01]],WF_CKD_DATA[[#All],[OrgID]],V47,WF_CKD_DATA[[#All],[Rel_D]],Locations!$E$17) -> 140 | Y47: 0.8484848485 | Z47: =SUMIFS(WF_CKD_DATA[[#All],[NIS08-CKD02]],WF_CKD_DATA[[#All],[OrgID]],V47,WF_CKD_DATA[[#All],[Rel_D]],Locations!$E$17) -> 106 | AA47: 0.6424242424 | AB47: =SUMIFS(WF_CKD_DATA[[#All],[NIS08-CKD03]],WF_CKD_DATA[[#All],[OrgID]],V47,WF_CKD_DATA[[#All],[Rel_D]],Locations!$E$17) -> 129 | AC47: 0.7818181818 | AD47: =SUMIFS(WF_CKD_DATA[[#All],[NIS08-CKD04]],WF_CKD_DATA[[#All],[OrgID]],V47,WF_CKD_DATA[[#All],[Rel_D]],Locations!$E$17) -> 87 | AE47: 0.5272727273
U48: Grove Surgery | V48: F86062 | W48: =SUMIFS(WF_CKD_DATA[[#All],[08-CKD]],WF_CKD_DATA[[#All],[OrgID]],V48,WF_CKD_DATA[[#All],[Rel_D]],Locations!$E$17) -> 142 | X48: =SUMIFS(WF_CKD_DATA[[#All],[NIS08-CKD01]],WF_CKD_DATA[[#All],[OrgID]],V48,WF_CKD_DATA[[#All],[Rel_D]],Locations!$E$17) -> 102 | Y48: 0.7183098592 | Z48: =SUMIFS(WF_CKD_DATA[[#All],[NIS08-CKD02]],WF_CKD_DATA[[#All],[OrgID]],V48,WF_CKD_DATA[[#All],[Rel_D]],Locations!$E$17) -> 63 | AA48: 0.4436619718 | AB48: =SUMIFS(WF_CKD_DATA[[#All],[NIS08-CKD03]],WF_CKD_DATA[[#All],[OrgID]],V48,WF_CKD_DATA[[#All],[Rel_D]],Locations!$E$17) -> 114 | AC48: 0.8028169014 | AD48: =SUMIFS(WF_CKD_DATA[[#All],[NIS08-CKD04]],WF_CKD_DATA[[#All],[OrgID]],V48,WF_CKD_DATA[[#All],[Rel_D]],Locations!$E$17) -> 64 | AE48: 0.4507042254
U49: Higham Hill Medical Centre | V49: F86679 | W49: =SUMIFS(WF_CKD_DATA[[#All],[08-CKD]],WF_CKD_DATA[[#All],[OrgID]],V49,WF_CKD_DATA[[#All],[Rel_D]],Locations!$E$17) -> 74 | X49: =SUMIFS(WF_CKD_DATA[[#All],[NIS08-CKD01]],WF_CKD_DATA[[#All],[OrgID]],V49,WF_CKD_DATA[[#All],[Rel_D]],Locations!$E$17) -> 67 | Y49: 0.9054054054 | Z49: =SUMIFS(WF_CKD_DATA[[#All],[NIS08-CKD02]],WF_CKD_DATA[[#All],[OrgID]],V49,WF_CKD_DATA[[#All],[Rel_D]],Locations!$E$17) -> 51 | AA49: 0.6891891892 | AB49: =SUMIFS(WF_CKD_DATA[[#All],[NIS08-CKD03]],WF_CKD_DATA[[#All],[OrgID]],V49,WF_CKD_DATA[[#All],[Rel_D]],Locations!$E$17) -> 58 | AC49: 0.7837837838 | AD49: =SUMIFS(WF_CKD_DATA[[#All],[NIS08-CKD04]],WF_CKD_DATA[[#All],[OrgID]],V49,WF_CKD_DATA[[#All],[Rel_D]],Locations!$E$17) -> 27 | AE49: 0.3648648649
U50: St James Medical Practice Ltd | V50: F86058 | W50: =SUMIFS(WF_CKD_DATA[[#All],[08-CKD]],WF_CKD_DATA[[#All],[OrgID]],V50,WF_CKD_DATA[[#All],[Rel_D]],Locations!$E$17) -> 236 | X50: =SUMIFS(WF_CKD_DATA[[#All],[NIS08-CKD01]],WF_CKD_DATA[[#All],[OrgID]],V50,WF_CKD_DATA[[#All],[Rel_D]],Locations!$E$17) -> 200 | Y50: 0.8474576271 | Z50: =SUMIFS(WF_CKD_DATA[[#All],[NIS08-CKD02]],WF_CKD_DATA[[#All],[OrgID]],V50,WF_CKD_DATA[[#All],[Rel_D]],Locations!$E$17) -> 162 | AA50: 0.686440678 | AB50: =SUMIFS(WF_CKD_DATA[[#All],[NIS08-CKD03]],WF_CKD_DATA[[#All],[OrgID]],V50,WF_CKD_DATA[[#All],[Rel_D]],Locations!$E$17) -> 178 | AC50: 0.7542372881 | AD50: =SUMIFS(WF_CKD_DATA[[#All],[NIS08-CKD04]],WF_CKD_DATA[[#All],[OrgID]],V50,WF_CKD_DATA[[#All],[Rel_D]],Locations!$E$17) -> 113 | AE50: 0.4788135593
U51: Average | Y51: =AVERAGE(Y11:Y50) -> 0.8391913739 | AA51: =AVERAGE(AA11:AA50) -> 0.54705037 | AC51: =AVERAGE(AC11:AC50) -> 0.7031055829 | AE51: =AVERAGE(AE11:AE50) -> 0.3212794696
A56: Numerator
A58: =IF(A47="NIS08-CKD01",SUMIFS(#REF!,#REF!,A49),IF(A47="NIS08-CKD02",SUMIFS(#REF!,#REF!,A49 ),IF(A47="08-CKD", SUMIFS(#REF!,#REF!,A49),0))) -> 0
A59: =IF(A48="NIS08-CKD01",SUMIFS(#REF!,#REF!,A50),IF(A48="NIS08-CKD02",SUMIFS(#REF!,#REF!,A50 ),IF(A48="08-CKD", SUMIFS(#REF!,#REF!,A50),0))) -> 0
A63: Numerator
A64: =SUMIFS(INDIRECT("WF_CKD_DATA[[#All],["&$B$2&"]]"),#REF!,TRENDS!$B$4,#REF!,TRENDS!C61) -> 

Sheet PRACTICE (hidden)
A1: - | B1: Select Practice | C1: Area | D1: Locality | E1: The Microfaculty **
A2: Y01291 | B2: Chingford Medical Practice | C2: Chingford E4 | D2: WF-2 | E2: =INDEX($A$1:$D$45,MATCH($E$1,$B$1:$B$45,0),1) -> F86638 | I2: Y01291 | J2: Chingford Medical Practice | K2: Chingford E4 | L2: =IF($K2=$M$2,$N$2,IF($K2=$M$3,$N$3,$N$4)) -> WF-2 | M2: Chingford/ Walthamstow | N2: WF-1
A3: F86627 | B3: Churchill Medical Centre | C3: Chingford E4 | D3: WF-2 | E3: 9 | I3: F86627 | J3: Churchill Medical Centre | K3: Chingford E4 | L3: WF-2 | M3: Chingford E4 | N3: WF-2
A4: F86078 | B4: The Ridgeway Surgery | C4: Chingford E4 | D4: WF-2 | E4: ="'TRENDTABLE'!$A$"&E3&":$T$"&E3 -> 'TRENDTABLE'!$A$9:$T$9 | I4: F86078 | J4: The Ridgeway Surgery | K4: Chingford E4 | L4: WF-2 | M4: Leyton Collaborative | N4: WF-3
A5: F86700 | B5: Kings Head Medical Practice | C5: Chingford/ Walthamstow | D5: WF-1 | E5: =VLOOKUP(E2,A1:D41, 4, 0) -> WF-1 | I5: F86700 | J5: Kings Head Medical Practice | K5: Chingford/ Walthamstow | L5: WF-1 | M5: Forest Integrated Health | N5: WF-4
A6: F86664 | B6: Larkshall Medical Centre | C6: Chingford/ Walthamstow | D6: WF-1 | I6: F86664 | J6: Larkshall Medical Centre | K6: Chingford/ Walthamstow | L6: WF-1 | M6: South Leytonstone | N6: WF-5
A7: F86616 | B7: Old Church Surgery | C7: Chingford E4 | D7: WF-2 | I7: F86616 | J7: Old Church Surgery | K7: Chingford E4 | L7: WF-2 | M7: Central Walthamstow | N7: WF-6
A8: F86638 | B8: The Microfaculty ** | C8: Chingford/ Walthamstow | D8: WF-1 | I8: F86638 | J8: The Microfaculty | K8: Chingford/ Walthamstow | L8: WF-1 | M8: Walthamstow West | N8: WF-7
A9: F86011 | B9: The Manor Practice | C9: Leyton Collaborative | D9: WF-3 | I9: F86011 | J9: The Manor Practice | K9: Leyton Collaborative | L9: WF-3
A10: F86036 | B10: The Allum Medical Centre | C10: Forest Integrated Health | D10: WF-4 | I10: F86036 | J10: The Allum Medical Centre | K10: Forest Integrated Health | L10: WF-3
A11: F86038 | B11: Sma Medical Centre | C11: Leyton Collaborative | D11: WF-3 | E11: =VLOOKUP(Summary!C6,PRACTICE!$B$2:$B$40,1,0) -> Leyton Healthcare (Oliver Road) ** | F11: =INDEX($A$2:$A$40,MATCH($E$11,$B$2:$B$40,0)) -> F86074 | I11: F86038 | J11: Sma Medical Centre | K11: Leyton Collaborative | L11: WF-3
A12: F86044 | B12: Crawley Road Medical Centre | C12: Forest Integrated Health | D12: WF-4 | I12: F86044 | J12: Crawley Road Medical Centre | K12: Forest Integrated Health | L12: WF-3
A13: F86696 | B13: Francis Road Medical Centre | C13: Forest Integrated Health | D13: WF-4 | I13: F86696 | J13: Francis Road Medical Centre | K13: Forest Integrated Health | L13: WF-3
A14: F86621 | B14: Green Man Medical Centre | C14: South Leytonstone | D14: WF-5 | I14: F86621 | J14: Green Man Medical Centre | K14: South Leytonstone | L14: WF-3
A15: F86712 | B15: Hampton Medical Centre | C15: Forest Integrated Health | D15: WF-4 | I15: F86712 | J15: Hampton Medical Centre | K15: Forest Integrated Health | L15: WF-3
A16: F86045 | B16: High Road Surgery | C16: South Leytonstone | D16: WF-5 | I16: F86045 | J16: High Road Surgery | K16: South Leytonstone | L16: WF-3
A17: F86701 | B17: Kiyani Medical Practice | C17: South Leytonstone | D17: WF-5 | I17: F86701 | J17: Kiyani Medical Practice | K17: South Leytonstone | L17: WF-3
A18: F86650 | B18: Lime Tree Surgery | C18: Forest Integrated Health | D18: WF-4 | I18: F86650 | J18: Lime Tree Surgery | K18: Forest Integrated Health | L18: WF-3
A19: F86625 | B19: LL Medical Care (Agarwal & Agrwal Practice) | C19: South Leytonstone | D19: WF-5 | I19: F86625 | J19: LL Medical Care (Agarwal & Agrwal Practice) | K19: South Leytonstone | L19: WF-3
A20: F86666 | B20: The Harrow Road Surgery | C20: South Leytonstone | D20: WF-5 | I20: F86666 | J20: The Harrow Road Surgery | K20: South Leytonstone | L20: WF-3
A21: F86705 | B21: The Langthorne Sharma Family Practice | C21: South Leytonstone | D21: WF-5 | I21: F86705 | J21: The Langthorne Sharma Family Practice | K21: South Leytonstone | L21: WF-3
A22: F86088 | B22: The Lyndhurst Surgery | C22: Forest Integrated Health | D22: WF-4 | I22: F86088 | J22: The Lyndhurst Surgery | K22: Forest Integrated Health | L22: WF-3
A23: F86074 | B23: Leyton Healthcare (Oliver Road) ** | C23: Leyton Collaborative | D23: WF-3 | I23: F86074 | J23: Leyton Healthcare (Oliver Road) | K23: Leyton Collaborative | L23: WF-3
A24: F86018 | B24: The Ecclesbourne Practice ** | C24: Forest Integrated Health | D24: WF-4 | I24: F86018 | J24: The Ecclesbourne Practice | K24: Forest Integrated Health | L24: WF-3
A25: F86607 | B25: Addison Road Medical Practice | C25: Central Walthamstow | D25: WF-6 | I25: F86607 | J25: Addison Road Medical Practice | K25: Central Walthamstow | L25: WF-3
A26: F86708 | B26: Claremont Medical Centre | C26: Central Walthamstow | D26: WF-6 | I26: F86708 | J26: Claremont Medical Centre | K26: Central Walthamstow | L26: WF-3
A27: F86001 | B27: The Firs | C27: Central Walthamstow | D27: WF-6 | I27: F86001 | J27: The Firs | K27: Central Walthamstow | L27: WF-3
A28: F86005 | B28: The Penryhn Surgery | C28: Chingford/ Walthamstow | D28: WF-1 | I28: F86005 | J28: The Penryhn Surgery | K28: Chingford/ Walthamstow | L28: WF-1
A29: F86086 | B29: Dr Dhital Practice | C29: Central Walthamstow | D29: WF-6 | I29: F86086 | J29: Dr Dhital Practice | K29: Central Walthamstow | L29: WF-3
A30: F86006 | B30: Seymour Medical Centre | C30: Walthamstow West | D30: WF-7 | I30: F86006 | J30: Seymour Medical Centre | K30: Walthamstow West | L30: WF-3
A31: F86626 | B31: Dr Shantir Practice | C31: Chingford/ Walthamstow | D31: WF-1 | I31: F86626 | J31: Dr Shantir Practice | K31: Chingford/ Walthamstow | L31: WF-1
A32: F86030 | B32: Queens Road Medical Centre | C32: Walthamstow West | D32: WF-7 | I32: F86030 | J32: Queens Road Medical Centre | K32: Walthamstow West | L32: WF-3
A33: F86062 | B33: Grove Surgery | C33: Walthamstow West | D33: WF-7 | I33: F86062 | J33: Grove Surgery | K33: Walthamstow West | L33: WF-3
A34: F86679 | B34: Higham Hill Medical Centre | C34: Walthamstow West | D34: WF-7 | I34: F86679 | J34: Higham Hill Medical Centre | K34: Walthamstow West | L34: WF-3
A35: Y01839 | B35: Lime Tree & Sinnott Healthcare Ltd | C35: Chingford/ Walthamstow | D35: WF-1 | I35: Y01839 | J35: Lime Tree & Sinnott Healthcare Ltd | K35: Chingford/ Walthamstow | L35: LC1
A36: F86058 | B36: St James Medical Practice Ltd | C36: Walthamstow West | D36: WF-7 | I36: F86058 | J36: St James Medical Practice Ltd | K36: Walthamstow West
A37: F86689 | B37: The Bailey Practice | C37: Chingford/ Walthamstow | D37: WF-1 | I37: F86689 | J37: The Bailey Practice | K37: Chingford/ Walthamstow
A38: F86644 | B38: Waltham Forest Community & Family Health Services Ltd | C38: Central Walthamstow | D38: WF-6 | I38: F86644 | J38: Waltham Forest Community & Family Health Services Ltd | K38: Central Walthamstow
A39: F86026 | B39: Forest Surgery ** | C39: Chingford/ Walthamstow | D39: WF-1 | I39: F86026 | J39: Forest Surgery | K39: Chingford/ Walthamstow
A40: F86004 | B40: Handsworth Medical Centre ** | C40: Chingford/ Walthamstow | D40: WF-1 | I40: F86004 | J40: Handsworth Medical Centre | K40: Chingford E4

Sheet HEADERTOGGLE (hidden)
A1: Condition | B1: Indicator Type | C1: TRUE | D1: Condition | E1: Indicator Type | F1: FALSE | G1: Alphabetical | H1: Quadrant | I1: TRUE | J1: FALSE
A2: iLTC01-RV01 | B2: iLTC10-RA01 | D2: Complex Care | E2: COPD | G2: F86607 | H2: Y01291 | J2: =IF(J1,"Y","") -> 
A3: iLTC03-CP04 | B3: iLTC10-RA02 | D3: IC101-ICC01 | E3: IC205-COPD01 | G3: Y01291 | H3: F86627 | J3: =IF(J1,"in financial year","in last 12 months") -> in last 12 months
A4: iLTC03-PS03 | B4: iLTC05-AS01 | D4: IC101-ICC02 | E4: IC205-COPD02 | G4: F86627 | H4: F86700
A5: iLTC03-RV04 | B5: iLTC01-RV01 | D5: IC101-ICC03 | E5: IC205-COPD03 | G5: F86708 | H5: F86664
A6: iLTC04-CP05 | B6: iLTC05-RV02 | D6: IC101-ICC04 | E6: Cancer | G6: F86044 | H6: F86616
A7: iLTC04-RV05 | B7: iLTC06-RV03 | D7: IC101-ICC05 | E7: IC206-CAN01 | G7: F86086 | H7: F86078
A8: iLTC05-CP01 | B8: iLTC03-RV04 | D8: IC101-ICC06 | E8: IC206-CAN02 | G8: F86626 | H8: LC1
A9: iLTC05-CP02 | B9: iLTC04-RV05 | D9: IC101-ICC07 | E9: IC206-CAN03 | G9: F86696 | H9: F86044
A10: iLTC05-CP03 | B10: iLTC05-CP01 | D10: Hypertension | E10: AUA | G10: F86621 | H10: F86696
A11: iLTC05-PS01 | B11: iLTC05-CP02 | D11: IC201-HYP01 | E11: IC301-AUA03 | G11: F86712 | H11: F86621
A12: iLTC05-RV02 | B12: iLTC05-CP03 | D12: IC201-HYP02 | E12: IC301-AUA04 | G12: F86045 | H12: F86712
A13: iLTC05-Tb05 | B13: iLTC03-CP04 | D13: IC201-HYP03 | E13: Complex Care | G13: F86679 | H13: F86045
A14: iLTC05-Tb06 | B14: iLTC04-CP05 | D14: IC201-HYP04 | E14: IC101-ICC01 | G14: F86700 | H14: F86701
A15: iLTC05-Tc04 | B15: iLTC07-Tb01 | D15: CVD | E15: IC101-ICC02 | G15: F86701 | H15: F86625
A16: iLTC05-Th01 | B16: iLTC12-Tb02 | D16: IC202-CVD02 | E16: IC101-ICC03 | G16: F86625 | H16: F86705
A17: iLTC05-AS01 | B17: iLTC08-Tb03 | D17: IC202-CVD03 | E17: IC101-ICC04 | G17: F86705 | H17: F86073
A18: iLTC06-RV03 | B18: iLTC09-Tb04 | D18: IC202-CVD04 | E18: IC101-ICC05 | G18: F86664 | H18: F86650
A19: iLTC07-Tb01 | B19: iLTC05-Tb05 | D19: ECG | E19: IC101-ICC06 | G19: F86073 | H19: F86038
A20: iLTC08-Tb03 | B20: iLTC05-Tb06 | D20: IC203-ECG01 | E20: IC101-ICC07 | G20: Y01839 | H20: F86036
A21: iLTC09-Tb04 | B21: iLTC11-Tb07 | D21: Diabetes | E21: Hypertension | G21: F86650 | H21: F86666
A22: iLTC09-Tc02 | B22: iLTC12-Tc01 | D22: IC204-DM01 | E22: IC201-HYP01 | G22: F86005 | H22: F86088
A23: iLTC10-RA01 | B23: iLTC09-Tc02 | D23: IC204-DM02 | E23: IC201-HYP02 | G23: F86030 | H23: F86011
A24: iLTC10-RA02 | B24: iLTC11-Tc03 | D24: IC204-DM03 | E24: IC201-HYP03 | G24: F86006 | H24: Y02585
A25: iLTC10-TA01 | B25: iLTC05-Tc04 | D25: IC204-DM04 | E25: IC201-HYP04 | G25: F86038 | H25: LC2
A26: iLTC11-Tb07 | B26: iLTC05-Th01 | D26: IC204-DM05 | E26: CVD | G26: F86058 | H26: F86607
A27: iLTC11-Tc03 | B27: iLTC10-TA01 | D27: COPD | E27: IC202-CVD02 | G27: F86036 | H27: F86708
A28: iLTC12-Tb02 | B28: iLTC05-PS01 | D28: IC205-COPD01 | E28: IC202-CVD03 | G28: F86689 | H28: F86086
A29: iLTC12-Tc01 | B29: iLTC03-PS03 | D29: IC205-COPD02 | E29: IC202-CVD04 | G29: F86001 | H29: F86626
D30: IC205-COPD03 | E30: ECG | G30: F86062 | H30: F86679
D31: Cancer | E31: IC203-ECG01 | G31: F86666 | H31: Y01839
D32: IC206-CAN01 | E32: Diabetes | G32: F86088 | H32: F86005
D33: IC206-CAN02 | E33: IC204-DM01 | G33: F86011 | H33: F86030
D34: IC206-CAN03 | E34: IC204-DM02 | G34: F86616 | H34: F86006
D35: AUA | E35: IC204-DM03 | G35: Y02585 | H35: F86058
D36: IC301-AUA03 | E36: IC204-DM04 | G36: F86078 | H36: F86689
D37: IC301-AUA04 | E37: IC204-DM05 | G37: F86644 | H37: F86001
G38: LC1 | H38: F86062
G39: LC2 | H39: F86644
G40: LC3 | H40: LC3

Sheet HEADERINFO2 (hidden)
A1: SearchID | B1: FieldID | C1: LTC | D1: Type | E1: Search Title | F1: Target1 | G1: Target2 | H1: Pay1 | I1: Pay2
A2: [00-00] | B2: [00-00] | C2: Listsize | E2: Listsize
A3: [08-CKD] | B3: [08-CKD] | C3: Complex Care | D3: A | E3: eGFR evidence of CKD
A4: NIS08-CKD01 | B4: NIS08-CKD01 | C4: Complex Care | D4: A | E4: evidence of CKD coded CKD
A5: NIS08-CKD01% | B5: NIS08-CKD01% | C5: Complex Care | D5: A | E5: % evidence of CKD coded CKD | F5: 0.7 | H5: 0.4
A6: NIS08-CKD02 | B6: NIS08-CKD02 | C6: Complex Care | D6: A | E6: evidence of CKD with BP below 140/90
A7: NIS08-CKD02% | B7: NIS08-CKD02% | C7: Complex Care | D7: A | E7: % evidence of CKD with BP below 140/90 | F7: 0.7 | H7: 0.1
A8: NIS08-CKD03 | B8: NIS08-CKD03 | C8: Complex Care | D8: A | E8: evidence of CKD on Statins
A9: NIS08-CKD03% | B9: NIS08-CKD03% | C9: Complex Care | D9: A | E9: % evidence of CKD on Statins | F9: 0.7 | H9: 0.1
A10: NIS08-CKD04 | B10: NIS08-CKD04 | C10: Complex Care | D10: A | E10: evidence of CKD to have ACR
A11: NIS08-CKD04% | B11: NIS08-CKD04% | E11: % evidence of CKD to have ACR
A12: NIS08-CKD08 | B12: NIS08-CKD08 | C12: Complex Care | D12: A | E12: Referred to community renal clinic | H12: 20
A19: [01-IC2] | B19: [01-IC2] | C19: Hypertension | D19: B | E19: Hypertension IC-LTC
A20: 01-HYP01 | B20: 01-HYP01 | C20: Hypertension | D20: B | E20: eligible for ACR/PCR
A21: IC201-HYP01 | B21: IC201-HYP01 | C21: Hypertension | D21: B | E21: Proteinuria ACR/PCR 15m
A22: IC201-HYP01% | B22: IC201-HYP01% | C22: Hypertension | D22: B | E22: % Proteinuria ACR/PCR 15m | F22: 0.7 | H22: 0.1
A23: 01-HYP02 | B23: 01-HYP02 | C23: Hypertension | D23: B | E23: eligible for BP
A24: IC201-HYP02 | B24: IC201-HYP02 | C24: Hypertension | D24: B | E24: On Target - BP <140/90 12m
A25: IC201-HYP02% | B25: IC201-HYP02% | C25: Hypertension | D25: B | E25: % On Target - BP <140/90 12m | F25: 0.7 | H25: 0.15
A26: 01-HYP03 | B26: 01-HYP03 | C26: Hypertension | D26: B | E26: eligible for Pulse Check
A27: IC201-HYP03 | B27: IC201-HYP03 | C27: Hypertension | D27: B | E27: 65+ yrs with Pulse Checck 15m
A28: IC201-HYP03% | B28: IC201-HYP03% | C28: Hypertension | D28: B | E28: % 65+ yrs with Pulse Check 15m | F28: 0.7 | H28: 0.05
A29: 01-HYP04 | B29: 01-HYP04 | C29: Hypertension | D29: B | E29: eligible for Statin prescription
A30: IC201-HYP04 | B30: IC201-HYP04 | C30: Hypertension | D30: B | E30: High risk CVD with Statins prescribed 12m
A31: IC201-HYP04% | B31: IC201-HYP04% | C31: Hypertension | D31: B | E31: % High risk CVD with Statins prescribed 12m | F31: 0.7 | H31: 0.05
A32: [02-IC2] | B32: [02-IC2] | C32: CVD | D32: C | E32: CVD IC-LTC
A33: 02-CVD02 | B33: 02-CVD02 | C33: CVD | D33: C | E33: eligible for CVD Statins
A34: IC202-CVD02 | B34: IC202-CVD02 | C34: CVD | D34: C | E34: On Target CVD
A35: IC202-CVD02% | B35: IC202-CVD02% | C35: CVD | D35: C | E35: % On Target CVD | F35: 0.7 | G35: 0.3 | H35: 0.05 | I35: 0.15
A36: 02-CVD03 | B36: 02-CVD03 | C36: CVD | D36: C | E36: eligible for CVD care plan
A37: IC202-CVD03 | B37: IC202-CVD03 | C37: CVD | D37: C | E37: CHD/ Stroke/ TIA patients with Annual care plan 15m
A38: IC202-CVD03% | B38: IC202-CVD03% | C38: CVD | D38: C | E38: % CHD/ Stroke/ TIA patients with Annual care plan 15m | F38: 0.7 | H38: 0.05
A39: 02-CVD04 | B39: 02-CVD04 | C39: CVD | D39: C | E39: eligible for AF Anticoagulation
A40: IC202-CVD04 | B40: IC202-CVD04 | C40: CVD | D40: C | E40: AF patients on Anticoagulants
A41: IC202-CVD04% | B41: IC202-CVD04% | C41: CVD | D41: C | E41: % AF patients on Anticoagulants | F41: 0.7 | G41: 0.7 | H41: 0.05 | I41: 0.1
A42: IC203-ECG01 | B42: IC203-ECG01 | C42: ECG | D42: D | E42: ECG Tests 2016-2017 | H42: 12.5
A43: [04-IC2] | B43: [04-IC2] | C43: Diabetes | D43: E | E43: Diabetes IC-LTC
A44: 04-DM01 | B44: 04-DM01 | C44: Diabetes | D44: E | E44: eligible for care plan
A45: IC204-DM01 | B45: IC204-DM01 | C45: Diabetes | D45: E | E45: Care plan agreed with pulse check >=65 15m
A46: IC204-DM01% | B46: IC204-DM01% | C46: Diabetes | D46: E | E46: % Care plan agreed with pulse check >=65 15m | F46: 0.7 | G46: 0.9 | H46: 0.02 | I46: 0.05
A47: 04-DM02 | B47: 04-DM02 | C47: Diabetes | D47: E | E47: eligible for BP control
A48: IC204-DM02 | B48: IC204-DM02 | C48: Diabetes | D48: E | E48: BP control (>140/80) and statins**
A49: IC204-DM02% | B49: IC204-DM02% | C49: Diabetes | D49: E | E49: % BP control (>140/80) and statins** | F49: 0.7 | H49: 0.15
A50: 04-DM03 | B50: 04-DM03 | C50: Diabetes | D50: E | E50: eligible for Digital Retinal Screening
A51: IC204-DM03 | B51: IC204-DM03 | C51: Diabetes | D51: E | E51: Digital Retinal Screening
A52: IC204-DM03% | B52: IC204-DM03% | C52: Diabetes | D52: E | E52: % Digital Retinal Screening | F52: 0.7 | G52: 0.8 | H52: 0.02 | I52: 0.05
A53: 04-DM04 | B53: 04-DM04 | C53: Diabetes | D53: E | E53: eligible for HbA1c
A54: IC204-DM04 | B54: IC204-DM04 | C54: Diabetes | D54: E | E54: 18-64 yrs + HbA1C <59mmol/mol
A55: IC204-DM04% | B55: IC204-DM04% | C55: Diabetes | D55: E | E55: % 18-64 yrs + HbA1C <59mmol/mol | F55: 0.7 | G55: 0.65 | H55: 0.02 | I55: 0.05
A56: 04-DM05 | B56: 04-DM05 | C56: Diabetes | D56: E | E56: Eligible for Diabetes Medication Reviews
A57: IC204-DM05 | B57: IC204-DM05 | C57: Diabetes | D57: E | E57: Medication Reviews
A58: IC204-DM05% | B58: IC204-DM05% | C58: Diabetes | D58: E | E58: Medication Reviews (hypoglycaemia prevention) | F58: NT | I58: 0.05
A59: [05-IC2] | B59: [05-IC2] | C59: COPD | D59: F | E59: COPD IC-LTC
A60: 05-COPD01 | B60: 05-COPD01 | C60: COPD | D60: F | E60: Eligible for COPD Review
A61: IC205-COPD01 | B61: IC205-COPD01 | C61: COPD | D61: F | E61: COPD review with SMP
A62: IC205-COPD01% | B62: IC205-COPD01% | C62: COPD | D62: F | E62: % COPD review with SMP | F62: 0.7 | H62: 0.2
A63: 05-COPD02 | B63: 05-COPD02 | C63: COPD | D63: F | E63: eligible for Pul Rehab (MRC 3+)
A64: IC205-COPD02 | B64: IC205-COPD02 | C64: COPD | D64: F | E64: COPD MRC 3+ + Ref to Pulmonary Rehab
A65: IC205-COPD02% | B65: IC205-COPD02% | C65: COPD | D65: F | E65: % COPD MRC 3+ + Ref to Pulmonary Rehab | F65: 0.7 | H65: 0.1
A66: 05-COPD03 | B66: 05-COPD03 | C66: COPD | D66: F | E66: eligible for reduced steriod inhalers
A67: IC205-COPD03 | B67: IC205-COPD03 | C67: COPD | D67: F | E67: Reduced Steriod Inhalers
A68: IC205-COPD03% | B68: IC205-COPD03% | C68: COPD | D68: F | E68: % Reduced Steriod Inhalers | F68: - | H68: 0.05
A69: [06-IC2] | B69: [06-IC2] | C69: Cancer | D69: G | E69: Cancer IC-LTC
A70: IC206-CAN01 | B70: IC206-CAN01 | C70: Cancer | D70: G | E70: RCGP Tool | H70: 70
A71: IC206-CAN02 | B71: IC206-CAN02 | C71: Cancer | D71: G | E71: Cancer Care Review | H71: 40
A72: IC206-CAN03 | B72: IC206-CAN03 | C72: Cancer | D72: G | E72: Zoladex/Prostap injections | H72: 43.5
A73: IC301-AUA03 | B73: IC301-AUA03 | C73: AUA | D73: H | E73: Post-Admission Review | H73: 1.15
A74: IC301-AUA04 | B74: IC301-AUA04 | C74: AUA | D74: H | E74: Newly Consented LTC 2016-2017 | H74: 0.29
A75: IC101-S01 | B75: IC101-S01 | E75: IC Complex - Mandatory
A76: IC101-S02 | B76: IC101-S02 | E76: IC Complex - Discretionary
A77: IC201-S01 | B77: IC201-S01 | E77: Hypertension - On Target
A78: IC201-S02 | B78: IC201-S02 | E78: Hypertension - Off Target
A79: IC202-S01 | B79: IC202-S01 | E79: CVD - Newly Diagnosed
A80: IC202-S02 | B80: IC202-S02 | E80: CVD - On Target
A81: IC204-S01 | B81: IC204-S01 | E81: Diabetes - Newly Diagnosed
A82: IC204-S02 | B82: IC204-S02 | E82: Diabetes - Controlled
A83: IC204-S03 | B83: IC204-S03 | E83: Diabetes - Off Target
A84: IC204-S04 | B84: IC204-S04 | E84: Diabetes - Off Target Complex
A85: IC204-S05 | B85: IC204-S05 | E85: Diabetes - Off Target Non-Complex
A86: IC205-S01 | B86: IC205-S01 | E86: COPD - Mild /Moderate/Severe
A87: IC205-S02 | B87: IC205-S02 | E87: COPD - Very Severe
A88: IC205-S03 | B88: IC205-S03 | E88: COPD - Housebound

Sheet Locations (hidden)
A1: Blank | B1: 01/04/2019 | C1: 2019-05-01 | D1: 2019-06-01 | E1: 2019-07-01 | F1: 2019-08-01 | G1: 2019-09-01 | H1: 2019-10-01 | I1: 2019-11-01 | J1: 2019-12-01 | K1: 2020-01-01 | L1: 2020-02-01 | M1: 2020-03-01 | N1: 2020-04-01 | O1: BLANK
A2: Data (Y/N) | B2: Y | C2: Y | D2: Y | E2: Y | F2: Y | G2: Y | H2: Y | I2: Y | J2: Y | K2: Y | L2: Y | M2: Y | N2: Y
A3: File Name
A4: Q Work Sheet | B4: Compiled_04_2018 | C4: Compiled_05_2018 | D4: Compiled_06_2018 | E4: Compiled_07_2018 | F4: Compiled_08_2018 | G4: Compiled_09_2018 | H4: Compiled_10_2018 | I4: Compiled_11_2018 | J4: Compiled_12_2018 | K4: Compiled_01_2019 | L4: Compiled_02_2019 | M4: Compiled_03_2019 | N4: Compiled_04_2019 | O4: BLANK | P4: =COUNTA(B4:N4) -> 13
A5: Sheet Address | B5: ="'"&IF(B3<>"","["&B3&".xlsx]","")&IF(B2="N",$O$5,B4)&"'!" -> 'Compiled_04_2018'! | C5: 'Compiled_05_2018'! | D5: 'Compiled_06_2018'! | E5: 'Compiled_07_2018'! | F5: 'Compiled_08_2018'! | G5: 'Compiled_09_2018'! | H5: 'Compiled_10_2018'! | I5: 'Compiled_11_2018'! | J5: 'Compiled_12_2018'! | K5: 'Compiled_01_2019'! | L5: 'Compiled_02_2019'! | M5: 'Compiled_03_2019'! | N5: 'Compiled_04_2019'! | O5: =IF(O3<>"","["&O3&".xlsx]","")&IF(O2="N","",O4) -> BLANK
A6: Sheet Check | B6: =IF(ISREF(INDIRECT(B5&"A1")),"OK","WORKSHEET NOT FOUND") -> OK | C6: OK | D6: OK | E6: OK | F6: OK | G6: OK | H6: OK | I6: OK | J6: OK | K6: OK | L6: OK | M6: OK | N6: OK
A7: Rows | B7: =MAX(IF(NOT(ISBLANK(INDIRECT(B5&"A1:A500"))),ROW($A$1:$A$500),0)) -> 500 | C7: =MAX(IF(NOT(ISBLANK(INDIRECT(C5&"A1:A500"))),ROW($A$1:$A$500),0)) -> 500 | D7: =MAX(IF(NOT(ISBLANK(INDIRECT(D5&"A1:A500"))),ROW($A$1:$A$500),0)) -> 62 | E7: =MAX(IF(NOT(ISBLANK(INDIRECT(E5&"A1:A500"))),ROW($A$1:$A$500),0)) -> 500 | F7: =MAX(IF(NOT(ISBLANK(INDIRECT(F5&"A1:A500"))),ROW($A$1:$A$500),0)) -> 500 | G7: =MAX(IF(NOT(ISBLANK(INDIRECT(G5&"A1:A500"))),ROW($A$1:$A$500),0)) -> 500 | H7: =MAX(IF(NOT(ISBLANK(INDIRECT(H5&"A1:A500"))),ROW($A$1:$A$500),0)) -> 500 | I7: =MAX(IF(NOT(ISBLANK(INDIRECT(I5&"A1:A500"))),ROW($A$1:$A$500),0)) -> 500 | J7: =MAX(IF(NOT(ISBLANK(INDIRECT(J5&"A1:A500"))),ROW($A$1:$A$500),0)) -> 500 | K7: =MAX(IF(NOT(ISBLANK(INDIRECT(K5&"A1:A500"))),ROW($A$1:$A$500),0)) -> 500 | L7: =MAX(IF(NOT(ISBLANK(INDIRECT(L5&"A1:A500"))),ROW($A$1:$A$500),0)) -> 500 | M7: =MAX(IF(NOT(ISBLANK(INDIRECT(M5&"A1:A500"))),ROW($A$1:$A$500),0)) -> 500 | N7: =MAX(IF(NOT(ISBLANK(INDIRECT(N5&"A1:A500"))),ROW($A$1:$A$500),0)) -> 500
A8: Columns | B8: =COUNTA(INDIRECT(B5&"1:1")) -> 0 | C8: =COUNTA(INDIRECT(C5&"1:1")) -> 0 | D8: =COUNTA(INDIRECT(D5&"1:1")) -> 13 | E8: =COUNTA(INDIRECT(E5&"1:1")) -> 0 | F8: =COUNTA(INDIRECT(F5&"1:1")) -> 0 | G8: 0 | H8: 0 | I8: 0 | J8: 0 | K8: 0 | L8: 0 | M8: 0 | N8: 0
A9: Data End | B9: =ADDRESS(B7,B8) ->  | D9: $M$62
A10: NACS | B10: =ADDRESS(1,MATCH($A$10,INDIRECT(Locations!$B$5&"A1:BZ1"),0)) ->  | C10: =ADDRESS(1,MATCH($A$10,INDIRECT(Locations!$B$5&"A1:BZ1"),0)) ->  | D10: =ADDRESS(1,MATCH($A$10,INDIRECT(Locations!$B$5&"A1:BZ1"),0)) ->  | E10: =ADDRESS(1,MATCH($A$10,INDIRECT(Locations!$B$5&"A1:BZ1"),0)) ->  | F10: =ADDRESS(1,MATCH($A$10,INDIRECT(Locations!$B$5&"A1:BZ1"),0)) ->  | G10: =ADDRESS(1,MATCH($A$10,INDIRECT(Locations!$B$5&"A1:BZ1"),0)) ->  | H10: =ADDRESS(1,MATCH($A$10,INDIRECT(Locations!$B$5&"A1:BZ1"),0)) ->  | I10: =ADDRESS(1,MATCH($A$10,INDIRECT(Locations!$B$5&"A1:BZ1"),0)) ->  | J10: =ADDRESS(1,MATCH($A$10,INDIRECT(Locations!$B$5&"A1:BZ1"),0)) ->  | K10: =ADDRESS(1,MATCH($A$10,INDIRECT(Locations!$B$5&"A1:BZ1"),0)) ->  | L10: =ADDRESS(1,MATCH($A$10,INDIRECT(Locations!$B$5&"A1:BZ1"),0)) ->  | M10: =ADDRESS(1,MATCH($A$10,INDIRECT(Locations!$B$5&"A1:BZ1"),0)) ->  | N10: =ADDRESS(1,MATCH($A$10,INDIRECT(Locations!$B$5&"A1:BZ1"),0)) -> 
A11: NACS Range | B11: =B5&B10&":"&ADDRESS(B7,COLUMN(INDIRECT(B10))) -> 
A12: Header Range | B12: =B$5&B10&":"&ADDRESS(1,B8) -> 
A13: Data Range | B13: =B$5&B10&":"&B9 -> 
A15: Data Run | B15: 01/12/2018
G16: 01/04/2021 | H16: 2021-04-01
A17: Payment Month | B17: =INDEX(B1:M1,1,B21) ->  | D17: Audit Select | E17: =VLOOKUP(E21,G16:H28,2,0) -> 2022-04-01 | G17: 01/05/2021 | H17: 2021-05-01
A18: NACS Range | B18: =OFFSET($A$1,MATCH($A18,Locations!$A$1:$A$13,0)-1,MATCH($B$17,$A$1:$O$1,0)-1) ->  | D18: NACS Range | E18: =OFFSET($A$1,MATCH($A18,Locations!$A$1:$A$13,0)-1,MATCH($E$17,$A$1:$O$1,0)-1) ->  | G18: 01/06/2021 | H18: 2021-06-01
A19: Header Range | B19: =OFFSET($A$1,MATCH($A19,Locations!$A$1:$A$13,0)-1,MATCH($B$17,$A$1:$O$1,0)-1) ->  | D19: Header Range | E19: =OFFSET($A$1,MATCH($A19,Locations!$A$1:$A$13,0)-1,MATCH($E$17,$A$1:$O$1,0)-1) ->  | G19: 01/07/2021 | H19: 2021-07-01
A20: Data Range | B20: =OFFSET($A$1,MATCH($A20,Locations!$A$1:$A$13,0)-1,MATCH($B$17,$A$1:$O$1,0)-1) ->  | D20: Data Range | E20: =SUMIFS(#REF!,Locations!E17,#REF!) ->  | G20: 01/08/2021 | H20: 2021-08-01
A21: Current Month # | B21: =COUNTA($B$4:$N$4) -> 13 | D21: Selection | E21: 01/04/2022 | G21: 01/09/2021 | H21: 2021-09-01
G22: 01/10/2021 | H22: 2021-10-01
A23: Listsize | B23: 2018-12-01 | G23: 01/11/2021 | H23: 2021-11-01
A24: NACS Range | B24: =OFFSET($A$1,MATCH($A24,Locations!$A$1:$A$13,0)-1,MATCH($B$23,$A$1:$O$1,0)-1) ->  | G24: 01/12/2021 | H24: 2021-12-01
A25: Header Range | B25: =OFFSET($A$1,MATCH($A25,Locations!$A$1:$A$13,0)-1,MATCH($B$23,$A$1:$O$1,0)-1) ->  | G25: 01/01/2022 | H25: 2022-01-01
A26: Data Range | B26: =OFFSET($A$1,MATCH($A26,Locations!$A$1:$A$13,0)-1,MATCH($B$23,$A$1:$O$1,0)-1) ->  | G26: 01/02/2022 | H26: 2022-02-01
G27: 01/03/2022 | H27: 2022-03-01
A28: Version | B28: CKD v5.0.5 | G28: 01/04/2022 | H28: 2022-04-01
B29: Header Info:
A30: File Name
A31: Work Sheet | B31: HEADERINFO2
A32: Rows | B32: =MAX(IF(NOT(ISBLANK(INDIRECT(B34&"B1:B500"))),ROW(A3:A501),0)) -> 90
A33: Columns | B33: =COUNTA(INDIRECT(B34&"A1:NZ1")) -> 9
A34: Sheet Address | B34: ="'"&B31&"'!" -> 'HEADERINFO2'!
A35: Data End | B35: =ADDRESS(B32,B33) -> $I$90
A36: FieldID | B36: $B$1
A37: FieldID Range | B37: =B34&B36&":"&ADDRESS(B32,COLUMN(INDIRECT(B36))) -> 'HEADERINFO2'!$B$1:$B$90
A38: Header Range | B38: =B34&B36&":"&ADDRESS(1,B33) -> 'HEADERINFO2'!$B$1:$I$1
A39: Data Range | B39: =B34&B36&":"&B35 -> 'HEADERINFO2'!$B$1:$I$90
A40: Search Title | B40: $E$1

Sheet BLANK (hidden)
A1: PracName | B1: NW | C1: NACS | D1: Worksheet | E1: [00-00] | F1: [08-CKD] | G1: NIS08-CKD01 | H1: NIS08-CKD01% | I1: NIS08-CKD02 | J1: NIS08-CKD02% | K1: NIS08-CKD03 | L1: NIS08-CKD03%
D2: Seach Code: | E2: [00-00] | F2: [08-CKD] | G2: NIS08-CKD01 | H2: NIS08-CKD01% | I2: NIS08-CKD02 | J2: NIS08-CKD02% | K2: NIS08-CKD03 | L2: NIS08-CKD03%
A3: BLANK | D3: Found EMISweb Search: | E3: [00-00] Listsize | F3: [08-CKD] eGFR evidence of CKD | G3: NIS08-CKD01: evidence of CKD coded CKD (QOF v33) | I3: NIS08-CKD02: evidence of CKD with appropriate BP | K3: NIS08-CKD03: evidence of CKD on Statins
D4: Top Left EMISweb Data: | E4: $A$1 | F4: $A$46 | G4: $A$92 | I4: $A$137 | K4: $A$183
D5: EMISweb Array Start: | E5: $B$1 | F5: $B$46 | G5: $B$92 | I5: $B$137 | K5: $B$183
A6: 2016-07-01 | D6: EMISweb Array End: | E6: $C$45 | F6: $C$91 | G6: $C$136 | I6: $C$182 | K6: $C$227
A7: Payment | C7: Payment
A8: Bethnal Green Health Centre | B8: NW1 | C8: F84083 | E8: - | F8: - | G8: - | H8: - | I8: - | J8: - | K8: - | L8: -
A9: The Mission Practice | B9: NW1 | C9: F84016 | E9: - | F9: - | G9: - | H9: - | I9: - | J9: - | K9: - | L9: -
A10: Globe Town Surgery | B10: NW1 | C10: F84123 | E10: - | F10: - | G10: - | H10: - | I10: - | J10: - | K10: - | L10: -
A11: Pollard Row Surgery | B11: NW1 | C11: Y00212 | E11: - | F11: - | G11: - | H11: - | I11: - | J11: - | K11: - | L11: -
A12: Strouts Place Medical Centre | B12: NW1 | C12: F84051 | E12: - | F12: - | G12: - | H12: - | I12: - | J12: - | K12: - | L12: -
A13: Spitalfields Practice | B13: NW2 | C13: F84081 | E13: - | F13: - | G13: - | H13: - | I13: - | J13: - | K13: - | L13: -
A14: Blithehale Medical Centre | B14: NW2 | C14: F84718 | E14: - | F14: - | G14: - | H14: - | I14: - | J14: - | K14: - | L14: -
A15: Health E1 | B15: NW2 | C15: F84733 | E15: - | F15: - | G15: - | H15: - | I15: - | J15: - | K15: - | L15: -
A16: Albion Health Centre | B16: NW2 | C16: F84012 | E16: - | F16: - | G16: - | H16: - | I16: - | J16: - | K16: - | L16: -
A17: Harford Health Centre | B17: NW3 | C17: F84087 | E17: - | F17: - | G17: - | H17: - | I17: - | J17: - | K17: - | L17: -
A18: Brayford Square (Dr Varma) | B18: NW3 | C18: F84046 | E18: - | F18: - | G18: - | H18: - | I18: - | J18: - | K18: - | L18: -
A19: Whitechapel Health (Shah Jalal) | B19: NW3 | C19: F84039 | E19: - | F19: - | G19: - | H19: - | I19: - | J19: - | K19: - | L19: -
A20: City Wellbeing Practice (Tower Medical) | B20: NW3 | C20: F84114 | E20: - | F20: - | G20: - | H20: - | I20: - | J20: - | K20: - | L20: -
A21: Wapping Group Practice | B21: NW4 | C21: F84079 | E21: - | F21: - | G21: - | H21: - | I21: - | J21: - | K21: - | L21: -
A22: Jubilee Street Practice | B22: NW4 | C22: F84031 | E22: - | F22: - | G22: - | H22: - | I22: - | J22: - | K22: - | L22: -
A23: St Katharine Docks Practice | B23: NW4 | C23: F84731 | E23: - | F23: - | G23: - | H23: - | I23: - | J23: - | K23: - | L23: -
A24: East One Health | B24: NW4 | C24: F84682 | E24: - | F24: - | G24: - | H24: - | I24: - | J24: - | K24: - | L24: -
A25: Harley Grove Medical Centre | B25: NW5 | C25: F84044 | E25: - | F25: - | G25: - | H25: - | I25: - | J25: - | K25: - | L25: -
A26: St Stephens Health Centre | B26: NW5 | C26: F84034 | E26: - | F26: - | G26: - | H26: - | I26: - | J26: - | K26: - | L26: -
A27: Ruston Street Clinic (Dr Amin) | B27: NW5 | C27: F84030 | E27: - | F27: - | G27: - | H27: - | I27: - | J27: - | K27: - | L27: -
A28: Grove Road Surgery (Dr Shah) | B28: NW5 | C28: F84055 | E28: - | F28: - | G28: - | H28: - | I28: - | J28: - | K28: - | L28: -
A29: The Tredegar Practice | B29: NW5 | C29: F84696 | E29: - | F29: - | G29: - | H29: - | I29: - | J29: - | K29: - | L29: -
A30: Stroudley Walk Centre | B30: NW6 | C30: F84676 | E30: - | F30: - | G30: - | H30: - | I30: - | J30: - | K30: - | L30: -
A31: St Andrews Health Centre | B31: NW6 | C31: Y03023 | E31: - | F31: - | G31: - | H31: - | I31: - | J31: - | K31: - | L31: -
A32: Merchant Street (Dr Rana) | B32: NW6 | C32: F84118 | E32: - | F32: - | G32: - | H32: - | I32: - | J32: - | K32: - | L32: -
A33: St Pauls Way Medical Centre | B33: NW6 | C33: F84714 | E33: - | F33: - | G33: - | H33: - | I33: - | J33: - | K33: - | L33: -
A34: Limehouse Practice (Gill Street) | B34: NW7 | C34: F84054 | E34: - | F34: - | G34: - | H34: - | I34: - | J34: - | K34: - | L34: -
A35: Chrisp Street Health Centre | B35: NW7 | C35: F84062 | E35: - | F35: - | G35: - | H35: - | I35: - | J35: - | K35: - | L35: -
A36: Aberfeldy Practice | B36: NW7 | C36: F84698 | E36: - | F36: - | G36: - | H36: - | I36: - | J36: - | K36: - | L36: -
A37: All Saints Practice | B37: NW7 | C37: F84702 | E37: - | F37: - | G37: - | H37: - | I37: - | J37: - | K37: - | L37: -
A38: Gough Walk (Dr Selvan) | B38: NW7 | C38: F84025 | E38: - | F38: - | G38: - | H38: - | I38: - | J38: - | K38: - | L38: -
A39: Island Health | B39: NW8 | C39: F84710 | E39: - | F39: - | G39: - | H39: - | I39: - | J39: - | K39: - | L39: -
A40: Docklands Medical Centre | B40: NW8 | C40: F84656 | E40: - | F40: - | G40: - | H40: - | I40: - | J40: - | K40: - | L40: -
A41: Island Medical Centre | B41: NW8 | C41: F84647 | E41: - | F41: - | G41: - | H41: - | I41: - | J41: - | K41: - | L41: -
A42: Barkantine Practice | B42: NW8 | C42: F84747 | E42: - | F42: - | G42: - | H42: - | I42: - | J42: - | K42: - | L42: -
A43: Bromley-By-Bow Health Centre | B43: NW6 | C43: F841229B1G | E43: - | F43: - | G43: - | H43: - | I43: - | J43: - | K43: - | L43: -
A44: XX Place Surgery | B44: NW2 | C44: F841229B1F | E44: - | F44: - | G44: - | H44: - | I44: - | J44: - | K44: - | L44: -
D45: Found EMISweb Search: | E45: - | F45: - | G45: - | H45: - | I45: - | J45: - | K45: - | L45: -
D46: Top Left EMISweb Data: | E46: - | F46: - | G46: - | H46: - | I46: - | J46: - | K46: - | L46: -
D47: EMISweb Array Start: | E47: - | F47: - | G47: - | H47: - | I47: - | J47: - | K47: - | L47: -
D48: EMISweb Array End: | E48: - | F48: - | G48: - | H48: - | I48: - | J48: - | K48: - | L48: -
A49: The One Network | C49: NW1 | E49: - | F49: - | G49: - | H49: - | I49: - | J49: - | K49: - | L49: -
A50: East End Health Network | C50: NW2 | E50: - | F50: - | G50: - | H50: - | I50: - | J50: - | K50: - | L50: -
A51: Stepney and Whitechapel Network | C51: NW3 | E51: - | F51: - | G51: - | H51: - | I51: - | J51: - | K51: - | L51: -
A52: The Highway Network | C52: NW4 | E52: - | F52: - | G52: - | H52: - | I52: - | J52: - | K52: - | L52: -
A53: Bow Health Network | C53: NW5 | E53: - | F53: - | G53: - | H53: - | I53: - | J53: - | K53: - | L53: -
A54: Mile End East and Bromley by Bow Network | C54: NW6 | E54: - | F54: - | G54: - | H54: - | I54: - | J54: - | K54: - | L54: -
A55: Poplar and Limehouse Network | C55: NW7 | E55: - | F55: - | G55: - | H55: - | I55: - | J55: - | K55: - | L55: -
A56: Healthy Island Network | C56: NW8 | E56: - | F56: - | G56: - | H56: - | I56: - | J56: - | K56: - | L56: -
C57: Total | D57: Networks | E57: - | F57: - | G57: - | H57: - | I57: - | J57: - | K57: - | L57: -
D58: Practices | E58: - | F58: - | G58: - | H58: - | I58: - | J58: - | K58: - | L58: -
C59: - | D59: - | E59: - | F59: - | G59: - | H59: - | I59: - | K59: - | L59: -
A60: Target3 | C60: Target3
A61: Target4 | C61: Target4

Sheet CHART (hidden)
A1: Chart Selection | B1: evidence of CKD with ACR | C1: =VLOOKUP(B1,B2:C4,2,0) -> NIS08-CKD04
A2: Chart List | B2: evidence of CKD with BP below 140/90 | C2: NIS08-CKD02 | D2: evidence of CKD not coded CKD | E2: NIS08-CKD02% | F2: =IFERROR(TRENDS!AA51,#N/A) -> 0.54705037
B3: evidence of CKD on Statins | C3: NIS08-CKD03 | D3: evidence of CKD with BP below 140/90 | E3: NIS08-CKD03% | F3: =IFERROR(TRENDS!AC51,#N/A) -> 0.7031055829
B4: evidence of CKD with ACR | C4: NIS08-CKD04 | D4: evidence of CKD not on Statins | E4: NIS08-CKD04% | F4: =IFERROR(TRENDS!AE51,#N/A) -> 0.3212794696
A7: =PRACTICE!E2 -> F86638 | C7: Completed | D7: < Min | E7: Remain to min
A8: [08-CKD] | B8: =Detail!G6 -> eGFR evidence of CKD | C8: =IF(SUMIFS(WF_CKD_DATA[[#All],[08-CKD]],WF_CKD_DATA[[#All],[OrgID]],CHART!A7,WF_CKD_DATA[[#All],[Rel_D]],Locations!E17)=0,"-",(SUMIFS(WF_CKD_DATA[[#All],[08-CKD]],WF_CKD_DATA[[#All],[OrgID]],CHART!A7,WF_CKD_DATA[[#All],[Rel_D]],Locations!E17))) -> 275 | D8: =C8 -> 275
A9: =C1 -> NIS08-CKD04 | B9: =INDIRECT("B"&(MATCH(A9,C2:C4)+1)) -> evidence of CKD with ACR | C9: =IF(SUMIFS(INDIRECT("WF_CKD_DATA[[#All],["&$A$9&"]]"),WF_CKD_DATA[[#All],[OrgID]],$A$7,WF_CKD_DATA[[#All],[Rel_D]],Locations!$E$17)=0,"-",(SUMIFS(INDIRECT("WF_CKD_DATA[[#All],["&$A$9&"]]"),WF_CKD_DATA[[#All],[OrgID]],$A$7,WF_CKD_DATA[[#All],[Rel_D]],Locations!$E$17))) -> - | D9: =IFERROR(C8*D12,"-") -> 137.5 | E9: =IFERROR(ROUND(MAX(D9-C9,0),0),"-") -> -
A10: xx | B10: =VLOOKUP(A9,C2:D4,2,0) -> evidence of CKD not on Statins | C10: =IFERROR(C8-C9,"-") -> - | D10: =IFERROR(D8-D9,"-") -> 137.5
A12: =A9&"%" -> NIS08-CKD04% | C12: =IFERROR(C9/C8,"-") -> - | D12: =VLOOKUP(A9,TRENDS!$B$16:$C$19,2,0) -> 0.5 | E12: =IFERROR(D12-C12,"-") -> -
A13: not% | C13: =IFERROR(1-C12,"-") -> - | D13: =1-D12 -> 0.5
A14: Ave | B14: =VLOOKUP(A12,E2:F4,2,0) -> 0.3212794696
D19: =IFERROR(D9/D8,"-") -> 0.5
B34: ELIGIBLE | D34: =_xlfn.IFNA( CHART!B35, "-") -> 0
B36: AIM% | D36: =_xlfn.IFNA(CHART!C39,"-") -> 0
B38: TOTAL REMAINING | D38: =_xlfn.IFNA(CHART!B37,"-") -> 0
B40: MIN REMAINING | D40: =_xlfn.IFNA(CHART!D36,"-") -> 0
B42: COMPLETED | D42: =_xlfn.IFNA(CHART!B36,"-") -> AIM%
B44: ACHIEVED% | D44: =_xlfn.IFNA(CHART!B39,"-") -> 0
B46: WF AVERAGE% | D46: =_xlfn.IFNA(CHART!A41, "-") -> 0

Sheet Sheet2 (hidden)
A1: Column1 | B1: Column2 | C1: Column3 | D1: Column4 | E1: Column5 | F1: Column6 | G1: Column7
A2: Column8 | B2: Column10 | C2: Column11 | D2: Column12 | E2: Column13 | F2: Column14 | G2: Column15
A3: Search | B3: {00-00} Listsize | C3: {08-CKD} eGFR evidence of CKD | D3: {NIS08-CKD01}: evidence of CKD coded CKD (QOF v46) | E3: {NIS08-CKD02}: evidence of CKD with BP below 140/90 | F3: {NIS08-CKD03}: evidence of CKD on Statins | G3: NIS08-CKD04: evidence of CKD has ACR
A4: OrgID | B4: 00-00 | C4: 08-CKD | D4: NIS08-CKD01 | E4: NIS08-CKD02 | F4: NIS08-CKD03 | G4: NIS08-CKD04
A5: OrgID | B5: Listsize | C5: eGFR evidence of CKD | D5: evidence of CKD coded CKD (QOF v33 | E5: evidence of CKD with BP below 140/90 | F5: evidence of CKD on Statins | G5: evidence of CKD has ACR

Sheet Sheet3 (hidden)
A1: Metric | B1: MetricID | C1: Target1 | D1: Target2
A2: MHA Depression Review + Activity (12M) | B2: 1 | C2: 0.35
A3: MHA Depression Review + Activity (IN YEAR) | B3: 2 | C3: 0.35
A4: Anti-Psych non-SMI Review + Activity (12M) | B4: 3 | C4: 0.7
A5: Anti-Psych non-SMI Review + Activity (IN YEAR) | B5: 4 | C5: 0.7
A6: SMI Review + Activity (12M) | B6: 5 | C6: 0.7
A7: SMI Review + Activity (IN YEAR) | B7: 6 | C7: 0.7
A8: EPC Action Plan (FY) | B8: 7
A9: EPC Post-Discharge Review (FY) + EPC (2FY) | B9: 8
A10: Neuroleptic Injection Patients (Q1-Q4 Total) | B10: 9

Sheet Sheet4 (hidden)
A1: Status | B1: Practice ID | C1: Practice | D1: Locality ID | E1: Locality | F1: SubLocality ID | G1: SubLocality | H1: PCN/Network | I1: PCN code | J1: Clinical System | K1: Address 1 | L1: Address 2 | M1: Postcode | N1: Grid Reference | O1: X (easting) | P1: Y (northing) | Q1: Latitude | R1: Longitude
A2: Active | B2: F82001 | C2: Halbutt Street Surgery | D2: BK | E2: Barking and Dagenham | F2: BK-1 | G2: East | H2: Network East | I2: U86966 | J2: EMISweb | K2: 2 Halbutt Street | L2: Dagenham | M2: RM9 5AS | N2: TQ 48956 85305 | O2: 548956 | P2: 185305 | Q2: 51.546983 | R2: 0.14681208
A3: Active | B3: F82005 | C3: Church Elm Lane Medical Practice | D3: BK | E3: Barking and Dagenham | F3: BK-1 | G3: East | H3: Network East | I3: U86967 | J3: EMISweb | K3: Church Elm Lane | L3: Dagenham | M3: RM10 9RR | N3: TQ 49667 84556 | O3: 549667 | P3: 184556 | Q3: 51.540066 | R3: 0.15673988
A4: Active | B4: Y01719 | C4: Broad Street Medical Centre | D4: BK | E4: Barking and Dagenham | F4: BK-1 | G4: East | H4: Network East | I4: U86968 | J4: EMISweb | K4: Broad Street Resource Centre | L4: Dagenham | M4: RM10 9HU | N4: TQ 49367 83962 | O4: 549367 | P4: 183962 | Q4: 51.534808 | R4: 0.15216548
A5: Active | B5: Y02575 | C5: Porters Avenue Doctors Surgery | D5: BK | E5: Barking and Dagenham | F5: BK-1 | G5: East | H5: Network East | I5: U86969 | J5: EMISweb | K5: 234 Porters Avenue | L5: Dagenham | M5: RM8 2EQ | N5: TQ 47283 85077 | O5: 547283 | P5: 185077 | Q5: 51.545373 | R5: 0.12260706
A6: Active | B6: F82003 | C6: First Avenue Surgery | D6: BK | E6: Barking and Dagenham | F6: BK-2 | G6: East One | H6: Network East One | I6: U27362 | J6: EMISweb | K6: 2 First Avenue | L6: Dagenham | M6: RM10 9AT | N6: TQ 49762 83388 | O6: 549762 | P6: 183388 | Q6: 51.529546 | R6: 0.15761231
A7: Active | B7: F82015 | C7: Hedgemans Surgery | D7: BK | E7: Barking and Dagenham | F7: BK-2 | G7: East One | H7: Network East One | I7: U27362 | J7: EMISweb | K7: 92 Hedgemans Road | L7: Dagenham | M7: RM9 6HT | N7: TQ 48734 84495 | O7: 548734 | P7: 184495 | Q7: 51.539764 | R7: 0.14327082
A8: Active | B8: F82017 | C8: St Albans Surgery | D8: BK | E8: Barking and Dagenham | F8: BK-2 | G8: East One | H8: Network East One | I8: U27362 | J8: EMISweb | K8: Urswick Road | L8: Dagenham | M8: RM9 6EA | N8: TQ 48052 84181 | O8: 548052 | P8: 184181 | Q8: 51.537122 | R8: 0.13331215
A9: Active | B9: F82621 | C9: The Surgery (Dr Ola) | D9: BK | E9: Barking and Dagenham | F9: BK-2 | G9: East One | H9: Network East One | I9: U27362 | J9: EMISweb | K9: 36 Dewey Road | L9: Dagenham | M9: RM10 8AR | N9: TQ 50141 84824 | O9: 550141 | P9: 184824 | Q9: 51.542348 | R9: 0.16368374
A10: Active | B10: F82634 | C10: Heathway Medical Centre | D10: BK | E10: Barking and Dagenham | F10: BK-2 | G10: East One | H10: Network East One | I10: U27362 | J10: EMISweb | K10: Morland Road | L10: Dagenham | M10: RM10 9HU | N10: TQ 49367 83962 | O10: 549367 | P10: 183962 | Q10: 51.534808 | R10: 0.15216548
A11: Active | B11: F82678 | C11: Dr Alkaisy Surgery | D11: BK | E11: Barking and Dagenham | F11: BK-2 | G11: East One | H11: Network East One | I11: U27362 | J11: EMISweb | K11: Urswick Road | L11: Dagenham | M11: RM9 6EA | N11: TQ 48052 84181 | O11: 548052 | P11: 184181 | Q11: 51.537122 | R11: 0.13331215
A12: Active | B12: F82679 | C12: Parkview Medical Practice | D12: BK | E12: Barking and Dagenham | F12: BK-2 | G12: East One | H12: Network East One | I12: U27362 | J12: EMISweb | K12: 199 Reede Road | L12: Dagenham | M12: RM10 8EJ | N12: TQ 49877 85126 | O12: 549877 | P12: 185126 | Q12: 51.545131 | R12: 0.16000821
A13: Active | B13: F82034 | C13: Victoria Medical Centre | D13: BK | E13: Barking and Dagenham | F13: BK-3 | G13: West | H13: Network West | I13: U26744 | J13: EMISweb | K13: 1 Queens Road | L13: Barking | M13: IG11 8GD | N13: TQ 44085 84494 | O13: 544085 | P13: 184494 | Q13: 51.54096 | R13: 0.076282445
A14: Active | B14: F82042 | C14: Aurora Medcare | D14: BK | E14: Barking and Dagenham | F14: BK-3 | G14: West | H14: Network West | I14: U26744 | J14: EMISweb | K14: 1 King Edwards Road | L14: Barking | M14: IG11 7TB | N14: TQ 44643 83708 | O14: 544643 | P14: 183708 | Q14: 51.533755 | R14: 0.084000311
A15: Active | B15: F82625 | C15: Abbey Medical centre | D15: BK | E15: Barking and Dagenham | F15: BK-3 | G15: West | H15: Network West | I15: U26744 | J15: EMISweb | K15: 1 Harpour Road | L15: Barking | M15: IG11 8RJ | N15: TQ 44215 84642 | O15: 544215 | P15: 184642 | Q15: 51.542256 | R15: 0.078216284
A16: Active | B16: Y01280 | C16: Shifa Medical Practice | D16: BK | E16: Barking and Dagenham | F16: BK-3 | G16: West | H16: Network West | I16: U26744 | J16: EMISweb | K16: Gasgoine Road | L16: Barking | M16: IG11 7RS | N16: TQ 44478 83438 | O16: 544478 | P16: 183438 | Q16: 51.531371 | R16: 0.081512428
A17: Active | B17: F82018 | C17: Barking Medical Group Practice | D17: BK | E17: Barking and Dagenham | F17: BK-4 | G17: West One | H17: Network West One | I17: U11211 | J17: EMISweb | K17: 130 Upney lane | L17: Barking | M17: IG11 9LT | N17: TQ 45536 84574 | O17: 545536 | P17: 184574 | Q17: 51.541307 | R17: 0.097223615
A18: Active | B18: F82040 | C18: John Smith House | D18: BK | E18: Barking and Dagenham | F18: BK-4 | G18: West One | H18: Network West One | I18: U11211 | J18: EMISweb | K18: 145-207 Bevan Avenue | L18: Barking | M18: IG11 9NS | N18: TQ 46496 84245 | O18: 546496 | P18: 184245 | Q18: 51.538102 | R18: 0.11091985
A19: Active | B19: F82612 | C19: The White House | D19: BK | E19: Barking and Dagenham | F19: BK-4 | G19: West One | H19: Network West One | I19: U11211 | J19: EMISweb | K19: 12 Movers Lane | L19: Barking | M19: IG11 7UN | N19: TQ 44930 83744 | O19: 544930 | P19: 183744 | Q19: 51.534005 | R19: 0.088149992
A20: Active | B20: F82647 | C20: Dr Gupta & Partner | D20: BK | E20: Barking and Dagenham | F20: BK-4 | G20: West One | H20: Network West One | I20: U11211 | J20: EMISweb | K20: 7 Salisbury Avenue | L20: Barking | M20: IG11 9XQ | N20: TQ 44605 84272 | O20: 544605 | P20: 184272 | Q20: 51.538832 | R20: 0.08368429
A21: Active | B21: F82650 | C21: Ripple Road Medical Centre | D21: BK | E21: Barking and Dagenham | F21: BK-4 | G21: West One | H21: Network West One | I21: U11211 | J21: EMISweb | K21: 343 Ripple Road | L21: Barking | M21: IG11 7RJ | N21: TQ 45217 83938 | O21: 545217 | P21: 183938 | Q21: 51.535674 | R21: 0.092364824
A22: Active | B22: F82680 | C22: Highgrove Surgery | D22: BK | E22: Barking and Dagenham | F22: BK-4 | G22: West One | H22: Network West One | I22: U11211 | J22: SystmOne | K22: Upney Lane | L22: Barking | M22: IG11 9LX | N22: TQ 45644 84306 | O22: 545644 | P22: 184306 | Q22: 51.538871 | R22: 0.098669045
A23: Active | B23: F82027 | C23: Faircross Health Centre | D23: BK | E23: Barking and Dagenham | F23: BK-5 | G23: North | H23: Network North | I23: U55387 | J23: EMISweb | K23: 51 Upney Lane | L23: Barking | M23: IG11 9LP | N23: TQ 45367 84850 | O23: 545367 | P23: 184850 | Q23: 51.54383 | R23: 0.094902305
A24: Active | B24: F82012 | C24: Five Elms | D24: BK | E24: Barking and Dagenham | F24: BK-5 | G24: North | H24: Network North | I24: U55387 | J24: EMISweb | K24: Five Elms Road | L24: Dagenham | M24: RM9 5TT | N24: TQ 48622 86004 | O24: 548622 | P24: 186004 | Q24: 51.553352 | R24: 0.14229391
A25: Active | B25: F82025 | C25: Julia Engwell Surgery | D25: BK | E25: Barking and Dagenham | F25: BK-5 | G25: North | H25: Network North | I25: U55387 | J25: EMISweb | K25: Woodward Road | L25: Dagenham | M25: RM9 4SR | N25: TQ 47520 84362 | O25: 547520 | P25: 184362 | Q25: 51.538887 | R25: 0.12572292
A26: Active | B26: F82051 | C26: Laburnum Health centre | D26: BK | E26: Barking and Dagenham | F26: BK-5 | G26: North | H26: Network North | I26: U55387 | J26: EMISweb | K26: 11 Althorne Way | L26: Dagenham | M26: RM10 7DF | N26: TQ 49234 86817 | O26: 549234 | P26: 186817 | Q26: 51.560495 | R26: 0.1514593
A27: Active | B27: F82642 | C27: Gables Surgery | D27: BK | E27: Barking and Dagenham | F27: BK-5 | G27: North | H27: Network North | I27: U55387 | J27: EMISweb | K27: Markyate Road | L27: Dagenham | M27: RM8 2LD | N27: TQ 46953 85105 | O27: 546953 | P27: 185105 | Q27: 51.545711 | R27: 0.11786324
A28: Active | B28: F82661 | C28: Green Lane Surgery | D28: BK | E28: Barking and Dagenham | F28: BK-5 | G28: North | H28: Network North | I28: U55387 | J28: EMISweb | K28: 872 Green Lane | L28: Dagenham | M28: RM8 1BX | N28: TQ 48005 86869 | O28: 548005 | P28: 186869 | Q28: 51.561286 | R28: 0.13376487
A29: Active | B29: F86040 | C29: The Surgery | D29: BK | E29: Barking and Dagenham | F29: BK-5 | G29: North | H29: Network North | I29: U55387 | J29: EMISweb | K29: 620 Longbridge Road | L29: Dagenham | M29: RM8 2AJ | N29: TQ 46755 85732 | O29: 546755 | P29: 185732 | Q29: 51.551396 | R29: 0.11527123
A30: Active | B30: Y01795 | C30: Oval Road Practice | D30: BK | E30: Barking and Dagenham | F30: BK-5 | G30: North | H30: Network North | I30: U55388 | J30: EMISweb | K30: 69 Oval Road North | L30: Dagenham | M30: RM10 9ET | N30: TQ 49697 83763 | O30: 549697 | P30: 183763 | Q30: 51.532933 | R30: 0.15683523
A31: Active | B31: F82038 | C31: Valence Medical Centre | D31: BK | E31: Barking and Dagenham | F31: BK-5 | G31: North | H31: Network North | I31: U55389 | J31: EMISweb | K31: 563 Valence Avenue | L31: Dagenham | M31: RM8 3RH | N31: TQ 47822 85951 | O31: 547822 | P31: 185951 | Q31: 51.553086 | R31: 0.13074125
A32: Active | B32: F82604 | C32: Marks Gate Medical Practice | D32: BK | E32: Barking and Dagenham | F32: BK-6 | G32: Central | H32: Network Central | I32: U92874 | J32: EMISweb | K32: Lawn Farm Grove | L32: Dagenham | M32: RM6 5LL | N32: TQ 48155 89472 | O32: 548155 | P32: 189472 | Q32: 51.584635 | R32: 0.13702397
A33: Active | B33: F82660 | C33: Tulasi Medical Centre | D33: BK | E33: Barking and Dagenham | F33: BK-6 | G33: Central | H33: Network Central | I33: U92874 | J33: EMISweb | K33: 10 Bennetts Castle Lane | L33: Dagenham | M33: RM8 3XU | N33: TQ 47363 86819 | O33: 547363 | P33: 186819 | Q33: 51.561005 | R33: 0.12448914
A34: Active | B34: F82677 | C34: Becontree Medical Centre | D34: BK | E34: Barking and Dagenham | F34: BK-6 | G34: Central | H34: Network Central | I34: U92874 | J34: EMISweb | K34: 645 Becontree Avenue | L34: Dagenham | M34: RM8 3HP | N34: TQ 48516 86671 | O34: 548516 | P34: 186671 | Q34: 51.559373 | R34: 0.1410476
A35: Active | B35: F84013 | C35: Stamford Hill Surgery | D35: CH | E35: City & Hackney | F35: CH-NE1 | G35: Springfield Park (NE1) | H35: Springfield Park (NE1) | I35: U89154 | J35: EMISweb | K35: 2 Egerton Road | L35: Stamford Hill | M35: N16 6UA | N35: TQ 33741 87885 | O35: 533741 | P35: 187885 | Q35: 51.573976 | R35: -0.071492952
A36: Active | B36: F84686 | C36: Cranwich Road Surgery | D36: CH | E36: City & Hackney | F36: CH-NE1 | G36: Springfield Park (NE1) | H36: Springfield Park (NE1) | I36: U89154 | J36: EMISweb | K36: 62 Cranwich Road | M36: N16 5JF | N36: TQ 33045 87827 | O36: 533045 | P36: 187827 | Q36: 51.573619 | R36: -0.081552204
A37: Active | B37: Y03049 | C37: Spring Hill Practice | D37: CH | E37: City & Hackney | F37: CH-NE1 | G37: Springfield Park (NE1) | H37: Springfield Park (NE1) | I37: U89154 | J37: EMISweb | K37: 19-21 Oldhill Street | M37: N16 6LU | N37: TQ 34202 87381 | O37: 534202 | P37: 187381 | Q37: 51.569337 | R37: -0.065037069
A38: Active | B38: F84018 | C38: The Nightingale Practice | D38: CH | E38: City & Hackney | F38: CH-NE2 | G38: Hackney Downs (NE2) | H38: Hackney Downs (NE2) | I38: U21268 | J38: EMISweb | K38: 10 Kenninghall Rd | L38: Clapton | M38: E5 8BY | N38: TQ 34412 86145 | O38: 534412 | P38: 186145 | Q38: 51.55818 | R38: -0.062481117
A39: Active | B39: F84080 | C39: The Gadvhi Practice | D39: CH | E39: City & Hackney | F39: CH-NE2 | G39: Hackney Downs (NE2) | H39: Hackney Downs (NE2) | I39: U21268 | J39: EMISweb | K39: 1a Fountayne Road | M39: N16 7EA | N39: TQ 34209 86834 | O39: 534209 | P39: 186834 | Q39: 51.56442 | R39: -0.06514483
A40: Active | B40: F84619 | C40: The Riverside Practice | D40: CH | E40: City & Hackney | F40: CH-NE2 | G40: Hackney Downs (NE2) | H40: Hackney Downs (NE2) | I40: U21268 | J40: EMISweb | K40: 14 Urban Hive, Theydon Rd | M40: E5 9BQ | N40: TQ 35164 86953 | O40: 535164 | P40: 186953 | Q40: 51.565262 | R40: -0.051329752
A41: Active | B41: F84668 | C41: Clapton Surgery | D41: CH | E41: City & Hackney | F41: CH-NE2 | G41: Hackney Downs (NE2) | H41: Hackney Downs (NE2) | I41: U21268 | J41: EMISweb | K41: 14 Theydon Road | M41: E5 9BQ | N41: TQ 35164 86953 | O41: 535164 | P41: 186953 | Q41: 51.565262 | R41: -0.051329752
A42: Active | B42: F84685 | C42: Elm Practice | D42: CH | E42: City & Hackney | F42: CH-NE2 | G42: Hackney Downs (NE2) | H42: Hackney Downs (NE2) | I42: U21268 | J42: EMISweb | K42: 1a Fountayne Road | M42: N16 7EA | N42: TQ 34209 86834 | O42: 534209 | P42: 186834 | Q42: 51.56442 | R42: -0.06514483
A43: Active | B43: F84711 | C43: Rosewood Practice | D43: CH | E43: City & Hackney | F43: CH-NE2 | G43: Hackney Downs (NE2) | H43: Hackney Downs (NE2) | I43: U21268 | J43: EMISweb | K43: 1a Fountayne Road | M43: N16 7EA | N43: TQ 34209 86834 | O43: 534209 | P43: 186834 | Q43: 51.56442 | R43: -0.06514483
A44: Active | B44: F84720 | C44: Healy Medical Centre | D44: CH | E44: City & Hackney | F44: CH-NE2 | G44: Hackney Downs (NE2) | H44: Hackney Downs (NE2) | I44: U21268 | J44: EMISweb | K44: 200 Upper Clapton Road | M44: E5 9HD | N44: TQ 35028 87268 | O44: 535028 | P44: 187268 | Q44: 51.568125 | R44: -0.053169742
A45: Active | B45: F84036 | C45: Cedar Practice | D45: CH | E45: City & Hackney | F45: CH-NW1 | G45: Woodberry Wetlands (NW1) | H45: Woodberry Wetlands (NW1) | I45: U46293 | J45: EMISweb | K45: John Scott Health Centre | L45: Green Lanes | M45: N4 2NU | N45: TQ 32221 87203 | O45: 532221 | P45: 187203 | Q45: 51.568205 | R45: -0.093670043
A46: Active | B46: F84115 | C46: Statham Grove Surgery | D46: CH | E46: City & Hackney | F46: CH-NW1 | G46: Woodberry Wetlands (NW1) | H46: Woodberry Wetlands (NW1) | I46: U46293 | J46: EMISweb | K46: Statham Grove | M46: N16 9DP | N46: TQ 32544 86016 | O46: 532544 | P46: 186016 | Q46: 51.557463 | R46: -0.089459644
A47: Active | B47: F84119 | C47: The Heron Practice | D47: CH | E47: City & Hackney | F47: CH-NW1 | G47: Woodberry Wetlands (NW1) | H47: Woodberry Wetlands (NW1) | I47: U46293 | J47: EMISweb | K47: John Scott Health Centre | L47: Green Lanes | M47: N4 2NU | N47: TQ 32221 87203 | O47: 532221 | P47: 187203 | Q47: 51.568205 | R47: -0.093670043
A48: Active | B48: F84716 | C48: Allerton Road Medical Centre | D48: CH | E48: City & Hackney | F48: CH-NW1 | G48: Woodberry Wetlands (NW1) | H48: Woodberry Wetlands (NW1) | I48: U46293 | J48: EMISweb | K48: 34a Allerton Road | M48: N16 5UF | N48: TQ 32456 86933 | O48: 532456 | P48: 186933 | Q48: 51.565724 | R48: -0.090383086
A49: Active | B49: F84008 | C49: Barton House Health Centre | D49: CH | E49: City & Hackney | F49: CH-NW2 | G49: Clissold Park (NW2) | H49: Clissold Park (NW2) | I49: U51492 | J49: EMISweb | K49: 233 Albion Road | L49: Stoke Newington | M49: N16 9JT | N49: TQ 32926 86369 | O49: 532926 | P49: 186369 | Q49: 51.560545 | R49: -0.083819308
A50: Active | B50: F84033 | C50: Somerford Grove Practice | D50: CH | E50: City & Hackney | F50: CH-NW2 | G50: Clissold Park (NW2) | H50: Clissold Park (NW2) | I50: U51492 | J50: EMISweb | K50: Somerford Grove | M50: N16 7UA | N50: TQ 33722 85639 | O50: 533722 | P50: 185639 | Q50: 51.553797 | R50: -0.07262063
A51: Active | B51: F84636 | C51: Barretts Grove Surgery | D51: CH | E51: City & Hackney | F51: CH-NW2 | G51: Clissold Park (NW2) | H51: Clissold Park (NW2) | I51: U51492 | J51: EMISweb | K51: 6 Barretts Grove | M51: N16 8AR | N51: TQ 33334 85451 | O51: 533334 | P51: 185451 | Q51: 51.5522 | R51: -0.078284859
A52: Active | B52: F84694 | C52: Brooke Road Surgery | D52: CH | E52: City & Hackney | F52: CH-NW2 | G52: Clissold Park (NW2) | H52: Clissold Park (NW2) | I52: U51492 | J52: EMISweb | K52: 40-42 Brooke Road | M52: N16 7LR | N52: TQ 33833 86338 | O52: 533833 | P52: 186338 | Q52: 51.560052 | R52: -0.070754775
A53: Active | B53: F84003 | C53: Lower Clapton Group Practice | D53: CH | E53: City & Hackney | F53: CH-SE1 | G53: Hackney Marshes (SE1) | H53: Hackney Marshes (SE1) | I53: U05451 | J53: EMISweb | K53: 36 Lower Clapton Road | M53: E5 0PD | N53: TQ 35145 85320 | O53: 535145 | P53: 185320 | Q53: 51.550592 | R53: -0.052230775
A54: Active | B54: F84015 | C54: Kingsmead Healthcare | D54: CH | E54: City & Hackney | F54: CH-SE1 | G54: Hackney Marshes (SE1) | H54: Hackney Marshes (SE1) | I54: U05451 | J54: EMISweb | K54: 4 Kingsmead Way | M54: E9 5QG | N54: TQ 36351 85487 | O54: 536351 | P54: 185487 | Q54: 51.551803 | R54: -0.034783216
A55: Active | B55: F84060 | C55: Athena Medical Centre | D55: CH | E55: City & Hackney | F55: CH-SE1 | G55: Hackney Marshes (SE1) | H55: Hackney Marshes (SE1) | I55: U05451 | J55: EMISweb | K55: 21 Atherden Road | L55: Clapton | M55: E5 0QP | N55: TQ 35057 85799 | O55: 535057 | P55: 185799 | Q55: 51.554917 | R55: -0.053315427
A56: Active | B56: F84105 | C56: The Lea Surgery | D56: CH | E56: City & Hackney | F56: CH-SE1 | G56: Hackney Marshes (SE1) | H56: Hackney Marshes (SE1) | I56: U05451 | J56: EMISweb | K56: 186 Homerton High Street | M56: E9 6AG | N56: TQ 35784 85079 | O56: 535784 | P56: 185079 | Q56: 51.548273 | R56: -0.04311334
A57: Active | B57: F84719 | C57: Latimer Health Centre | D57: CH | E57: City & Hackney | F57: CH-SE1 | G57: Hackney Marshes (SE1) | H57: Hackney Marshes (SE1) | I57: U05451 | J57: EMISweb | K57: 4 Homerton Terrace | M57: E9 6RT | N57: TQ 35346 84880 | O57: 535346 | P57: 184880 | Q57: 51.54659 | R57: -0.049502727
A58: Active | B58: F84069 | C58: The Well Street Surgery | D58: CH | E58: City & Hackney | F58: CH-SE2 | G58: Well Street Common (SE2) | H58: Well Street Common (SE2) | I58: U58256 | J58: EMISweb | K58: 28 Shore Road | M58: E9 7TA | N58: TQ 35138 84055 | O58: 535138 | P58: 184055 | Q58: 51.539226 | R58: -0.052817041
A59: Active | B59: F84601 | C59: Elsdale Street Surgery | D59: CH | E59: City & Hackney | F59: CH-SE2 | G59: Well Street Common (SE2) | H59: Well Street Common (SE2) | I59: U58256 | J59: EMISweb | K59: 28 Elsdale Street | M59: E9 6QY | N59: TQ 35380 84483 | O59: 535380 | P59: 184483 | Q59: 51.543014 | R59: -0.0491653
A60: Active | B60: F84620 | C60: The Wick Health Centre | D60: CH | E60: City & Hackney | F60: CH-SE2 | G60: Well Street Common (SE2) | H60: Well Street Common (SE2) | I60: U58256 | J60: EMISweb | K60: 200 Wick Rd | M60: E9 5AN | N60: TQ 36085 84711 | O60: 536085 | P60: 184711 | Q60: 51.544894 | R60: -0.038917245
A61: Active | B61: F84632 | C61: The Greenhouse | D61: CH | E61: City & Hackney | F61: CH-SE2 | G61: Well Street Common (SE2) | H61: Well Street Common (SE2) | I61: U58256 | J61: EMISweb | K61: 19 Tudor Road | M61: E9 7SN | N61: TQ 34985 83975 | O61: 534985 | P61: 183975 | Q61: 51.538544 | R61: -0.055052455
A62: Active | B62: Y00403 | C62: Trowbridge Surgery | D62: CH | E62: City & Hackney | F62: CH-SE2 | G62: Well Street Common (SE2) | H62: Well Street Common (SE2) | I62: U58256 | J62: EMISweb | K62: 18 Merriam Avenue | M62: E9 5NE | N62: TQ 36747 84792 | O62: 536747 | P62: 184792 | Q62: 51.545462 | R62: -0.029345179
A63: Active | B63: F84021 | C63: London Fields Medical Centre | D63: CH | E63: City & Hackney | F63: CH-SW1 | G63: London Fields (SW1) | H63: London Fields (SW1) | I63: U40100 | J63: EMISweb | K63: 38-44 Broadway Market | M63: E8 4QJ | N63: TQ 34536 83745 | O63: 534536 | P63: 183745 | Q63: 51.536584 | R63: -0.061610386
A64: Active | B64: F84035 | C64: Richmond Road Medical Centre | D64: CH | E64: City & Hackney | F64: CH-SW1 | G64: London Fields (SW1) | H64: London Fields (SW1) | I64: U40100 | J64: EMISweb | K64: 136 Richmond Road | M64: E8 3HN | N64: TQ 34245 84457 | O64: 534245 | P64: 184457 | Q64: 51.543051 | R64: -0.06553224
A65: Active | B65: F84038 | C65: Beechwood Medical Centre | D65: CH | E65: City & Hackney | F65: CH-SW1 | G65: London Fields (SW1) | H65: London Fields (SW1) | I65: U40100 | J65: EMISweb | K65: 86-86a Dalston Lane | M65: E8 3AH | N65: TQ 33890 84780 | O65: 533890 | P65: 184780 | Q65: 51.546038 | R65: -0.070525556
A66: Active | B66: F84063 | C66: Dalston Practice | D66: CH | E66: City & Hackney | F66: CH-SW1 | G66: London Fields (SW1) | H66: London Fields (SW1) | I66: U40100 | J66: EMISweb | K66: 1b Madinah Road | M66: E8 1PG | N66: TQ 34111 84978 | O66: 534111 | P66: 184978 | Q66: 51.547765 | R66: -0.067264996
A67: Active | B67: F84117 | C67: Queensbridge Group Practice | D67: CH | E67: City & Hackney | F67: CH-SW1 | G67: London Fields (SW1) | H67: London Fields (SW1) | I67: U40100 | J67: EMISweb | K67: 24, Holly Street | M67: E8 3XP | N67: TQ 33838 84271 | O67: 533838 | P67: 184271 | Q67: 51.541476 | R67: -0.071468414
A68: Active | B68: F84621 | C68: The Sandringham Practice | D68: CH | E68: City & Hackney | F68: CH-SW1 | G68: London Fields (SW1) | H68: London Fields (SW1) | I68: U40100 | J68: EMISweb | K68: 1a Madinah Road | M68: E8 1PG | N68: TQ 34111 84978 | O68: 534111 | P68: 184978 | Q68: 51.547765 | R68: -0.067264996
A69: Active | B69: F84640 | C69: The Neaman Practice | D69: CH | E69: City & Hackney | F69: CH-SW2 | G69: Shoreditch Park & City (SW2) | H69: Shoreditch Park & City (SW2) | I69: U07169 | J69: EMISweb | K69: 15 Half Moon Court | M69: EC1A 7HF | N69: TQ 32048 81725 | O69: 532048 | P69: 181725 | Q69: 51.519018 | R69: -0.098218282
A70: Active | B70: F84072 | C70: De Beauvoir Surgery | D70: CH | E70: City & Hackney | F70: CH-SW2 | G70: Shoreditch Park & City (SW2) | H70: Shoreditch Park & City (SW2) | I70: U07169 | J70: EMISweb | K70: 30 Hertford Road | M70: N1 5QT | N70: TQ 33377 83922 | O70: 533377 | P70: 183922 | Q70: 51.538449 | R70: -0.078244064
A71: Active | B71: F84096 | C71: The Lawson Practice | D71: CH | E71: City & Hackney | F71: CH-SW2 | G71: Shoreditch Park & City (SW2) | H71: Shoreditch Park & City (SW2) | I71: U07169 | J71: EMISweb | K71: St Leonard's Hospital, Nuttall St | L71: Nuttall Street | M71: N1 5HZ | N71: TQ 33302 83395 | O71: 533302 | P71: 183395 | Q71: 51.533731 | R71: -0.079524183
A72: Active | B72: F84635 | C72: Shoreditch Park Surgery | D72: CH | E72: City & Hackney | F72: CH-SW2 | G72: Shoreditch Park & City (SW2) | H72: Shoreditch Park & City (SW2) | I72: U07169 | J72: EMISweb | K72: 10 Rushton Street | M72: N1 5DR | N72: TQ 32796 83359 | O72: 532796 | P72: 183359 | Q72: 51.533527 | R72: -0.086828572
A73: Active | B73: F84692 | C73: The Hoxton Surgery | D73: CH | E73: City & Hackney | F73: CH-SW2 | G73: Shoreditch Park & City (SW2) | H73: Shoreditch Park & City (SW2) | I73: U07169 | J73: EMISweb | K73: 12 Rushton Street | M73: N1 5DR | N73: TQ 32796 83359 | O73: 532796 | P73: 183359 | Q73: 51.533527 | R73: -0.086828572
A74: Active | B74: F82011 | C74: St Edwards Surgery | D74: HV | E74: Havering | F74: HV-1 | G74: Havering Crest | H74: Havering Crest Network | I74: U29424 | J74: EMISweb | K74: 7 St Edwards Way | L74: Romford | M74: RM1 3DQ | N74: TQ 51307 89056 | O74: 551307 | P74: 189056 | Q74: 51.580061 | R74: 0.18230462
A75: Active | B75: F82019 | C75: Chadwell Heath Health Centre - The Upstairs Surgery (Dr Hamilton-Smith) | D75: HV | E75: Havering | F75: HV-1 | G75: Havering Crest | H75: Havering Crest Network | I75: U29424 | J75: EMISweb | K75: Ashton Garden | L75: Chadwell Heath | M75: RM6 6RT | N75: TQ 48405 88264 | O75: 548405 | P75: 188264 | Q75: 51.573715 | R75: 0.14011965
A76: Active | B76: F82638 | C76: The Modern Medical Centre | D76: HV | E76: Havering | F76: HV-1 | G76: Havering Crest | H76: Havering Crest Network | I76: U29424 | J76: EMISweb | K76: 195 Rush Green Road | L76: Rush Green | M76: RM7 0PX | N76: TQ 51030 87418 | O76: 551030 | P76: 187418 | Q76: 51.565418 | R76: 0.17760643
A77: Active | B77: F82039 | C77: Rush Green Medical Centre (Dr Poologanathan & Partners) | D77: HV | E77: Havering | F77: HV-1 | G77: Havering Crest | H77: Havering Crest Network | I77: U29424 | J77: EMISweb | K77: 261 Dagenham Road | L77: Rush Green | M77: RM7 0XR | N77: TQ 50932 86893 | O77: 550932 | P77: 186893 | Q77: 51.560727 | R77: 0.1759684
A78: Active | B78: F82031 | C78: Rush Green Medical Centre (Dr Sanomi) | D78: HV | E78: Havering | F78: HV-1 | G78: Havering Crest | H78: Havering Crest Network | I78: U29424 | J78: EMISweb | K78: 261 Dagenham Road | L78: Rush Green | M78: RM7 0XR | N78: TQ 50932 86893 | O78: 550932 | P78: 186893 | Q78: 51.560727 | R78: 0.1759684
A79: Active | B79: F82023 | C79: High Street Surgery (Dr Pervez) | D79: HV | E79: Havering | F79: HV-1 | G79: Havering Crest | H79: Havering Crest Network | I79: U29424 | J79: EMISweb | K79: 219 High Street | L79: Hornchurch | M79: RM11 3XT | N79: TQ 54233 87089 | O79: 554233 | P79: 187089 | Q79: 51.561596 | R79: 0.22363675
A80: Active | B80: F82675 | C80: Billet Lane Medical Centre | D80: HV | E80: Havering | F80: HV-1 | G80: Havering Crest | H80: Havering Crest Network | I80: U29424 | J80: EMISweb | K80: 58b Billet Lane | L80: Hornchurch | M80: RM11 1XA | N80: TQ 53895 87670 | O80: 553895 | P80: 187670 | Q80: 51.566908 | R80: 0.21901872
A81: Active | B81: F82663 | C81: Brentwood Road Surgery (Dr Marks) | D81: HV | E81: Havering | F81: HV-1 | G81: Havering Crest | H81: Havering Crest Network | I81: U29424 | J81: EMISweb | K81: 107 Brentwood Road | L81: Romford | M81: RM1 2SB | N81: TQ 52030 88243 | O81: 552030 | P81: 188243 | Q81: 51.572562 | R81: 0.19237934
A82: Active | B82: F82013 | C82: Western Road Medical Centre | D82: HV | E82: Havering | F82: HV-2 | G82: Havering Marshall | H82: Marshall Network | I82: U50107 | J82: EMISweb | K82: 99 Western Road | L82: Romford | M82: RM1 3LS | N82: TQ 51671 88948 | O82: 551671 | P82: 188948 | Q82: 51.578992 | R82: 0.18750723
A83: Active | B83: F82021 | C83: The New Medical Centre | D83: HV | E83: Havering | F83: HV-2 | G83: Havering Marshall | H83: Marshall Network | I83: U50107 | J83: EMISweb | K83: 264 Brentwood Road | L83: Romford | M83: RM2 5SU | N83: TQ 52819 88475 | O83: 552819 | P83: 188475 | Q83: 51.574433 | R83: 0.20385631
A84: Active | B84: F82009 | C84: North Street Medical Care | D84: HV | E84: Havering | F84: HV-2 | G84: Havering Marshall | H84: Marshall Network | I84: U50107 | J84: EMISweb | K84: 274 North Street | L84: Romford | M84: RM1 4QJ | N84: TQ 50672 89720 | O84: 550672 | P84: 189720 | Q84: 51.586196 | R84: 0.17343195
A85: Active | B85: F82686 | C85: Chadwell Heath Health Centre (Dr A Patel) | D85: HV | E85: Havering | F85: HV-3 | G85: Havering North | H85: North Network | I85: U55939 | J85: EMISweb | K85: Ashton Gardens | L85: Chadwell Heath | M85: RM6 6RT | N85: TQ 48405 88264 | O85: 548405 | P85: 188264 | Q85: 51.573715 | R85: 0.14011965
A86: Active | B86: F82010 | C86: Petersfield Surgery | D86: HV | E86: Havering | F86: HV-3 | G86: Havering North | H86: North Network | I86: U55939 | J86: EMISweb | K86: 70 Petersfield Ave | L86: Harold Hill | M86: RM3 9PD | N86: TQ 54717 92014 | O86: 554717 | P86: 192014 | Q86: 51.605712 | R86: 0.23278189
A87: Active | B87: F82648 | C87: Ingrebourne Medical Centre | D87: HV | E87: Havering | F87: HV-3 | G87: Havering North | H87: North Network | I87: U55939 | J87: EMISweb | K87: 135 Straight Road | L87: Harold Hill | M87: RM3 7JJ | N87: TQ 53197 91366 | O87: 553197 | P87: 191366 | Q87: 51.600305 | R87: 0.21056731
A88: Active | B88: F82671 | C88: Straight Road Doctors Surgery (Dr Prasad) | D88: HV | E88: Havering | F88: HV-3 | G88: Havering North | H88: North Network | I88: U55939 | J88: EMISweb | K88: 137 Straight Road | L88: Harold Hill | M88: RM3 7JJ | N88: TQ 53197 91366 | O88: 553197 | P88: 191366 | Q88: 51.600305 | R88: 0.21056731
A89: Active | B89: F82670 | C89: AbbaMoor Surgery | D89: HV | E89: Havering | F89: HV-3 | G89: Havering North | H89: North Network | I89: U55939 | J89: EMISweb | K89: Gooshays Drive | L89: Harold Hill | M89: RM3 9SU | N89: TQ 54169 92056 | O89: 554169 | P89: 192056 | Q89: 51.606239 | R89: 0.22489343
A90: Active | B90: F82014 | C90: Harold Hill Health Centre (Dr Kuchhai) | D90: HV | E90: Havering | F90: HV-3 | G90: Havering North | H90: North Network | I90: U55939 | J90: EMISweb | K90: Gooshays Drive | L90: Harold Hill | M90: RM3 9SU | N90: TQ 54169 92056 | O90: 554169 | P90: 192056 | Q90: 51.606239 | R90: 0.22489343
A91: Active | B91: F82016 | C91: Central Park Surgery (Dr Kakad) | D91: HV | E91: Havering | F91: HV-3 | G91: Havering North | H91: North Network | I91: U55939 | J91: EMISweb | K91: Gooshays Drive | L91: Harold Hill | M91: RM3 9SU | N91: TQ 54169 92056 | O91: 554169 | P91: 192056 | Q91: 51.606239 | R91: 0.22489343
A92: Active | B92: Y00312 | C92: The Robins Surgery | D92: HV | E92: Havering | F92: HV-3 | G92: Havering North | H92: North Network | I92: U55939 | J92: EMISweb | K92: Gooshays Drive | L92: Harold Hill | M92: RM3 9SU | N92: TQ 54169 92056 | O92: 554169 | P92: 192056 | Q92: 51.606239 | R92: 0.22489343
A93: Active | B93: F82007 | C93: The Greenwood Practice | D93: HV | E93: Havering | F93: HV-3 | G93: Havering North | H93: North Network | I93: U55939 | J93: EMISweb | K93: 89 Gubbins Lane | L93: Harold Wood | M93: RM3 0DR | N93: TQ 54748 90860 | O93: 554748 | P93: 190860 | Q93: 51.595335 | R93: 0.23272048
A94: Active | B94: F82045 | C94: Oak Lodge Surgery (Dr Chowdhury) | D94: HV | E94: Havering | F94: HV-3 | G94: Havering North | H94: North Network | I94: U55939 | J94: EMISweb | K94: 6 Oak Road | L94: Harold Wood | M94: RM3 0PT | N94: TQ 54849 90533 | O94: 554849 | P94: 190533 | Q94: 51.59237 | R94: 0.23403325
A95: Active | B95: Y02973 | C95: Kings Park Surgery | D95: HV | E95: Havering | F95: HV-3 | G95: Havering North | H95: North Network | I95: U55939 | J95: EMISweb | K95: St Clements Avenue | L95: Harold Wood | M95: RM3 0FE | N95: TQ 54268 90605 | O95: 554268 | P95: 190605 | Q95: 51.593176 | R95: 0.22568428
A96: Active | B96: F82030 | C96: Lynwood Medical Centre | D96: HV | E96: Havering | F96: HV-3 | G96: Havering North | H96: North Network | I96: U55939 | J96: EMISweb | K96: 4 Lynwood Drive | L96: Collier Row | M96: RM5 3QL | N96: TQ 49970 91426 | O96: 549970 | P96: 191426 | Q96: 51.601712 | R96: 0.16403547
A97: Active | B97: F82630 | C97: Chase Cross Medical Centre (Dr Kulendran) | D97: HV | E97: Havering | F97: HV-3 | G97: Havering North | H97: North Network | I97: U55939 | J97: EMISweb | K97: Chase Cross Road | L97: Collier Row | M97: RM5 3PJ | N97: TQ 50027 91251 | O97: 550027 | P97: 191251 | Q97: 51.600124 | R97: 0.16478307
A98: Active | B98: F82610 | C98: Dr N K Gupta Surgery | D98: HV | E98: Havering | F98: HV-3 | G98: Havering North | H98: North Network | I98: U55939 | J98: EMISweb | K98: 206 Mawney Road | L98: Romford | M98: RM7 8BU | N98: TQ 50077 89338 | O98: 550077 | P98: 189338 | Q98: 51.582923 | R98: 0.16468707
A99: Active | B99: F82055 | C99: Hornchurch Healthcare | D99: HV | E99: Havering | F99: HV-4 | G99: Havering South | H99: South Network | I99: U00367 | J99: EMISweb | K99: 58b Billet Lane | L99: Hornchurch | M99: RM11 1XA | N99: TQ 53895 87670 | O99: 553895 | P99: 187670 | Q99: 51.566908 | R99: 0.21901872
A100: Active | B100: F82609 | C100: Sutton Ave surgery (P M Patel) | D100: HV | E100: Havering | F100: HV-4 | G100: Havering South | H100: South Network | I100: U00367 | J100: EMISweb | K100: 24 Suttons Ave | L100: Hornchurch | M100: RM12 4LF | N100: TQ 53941 86488 | O100: 553941 | P100: 186488 | Q100: 51.556275 | R100: 0.21916472
A101: Active | B101: F82002 | C101: Haiderian Medical Centre | D101: HV | E101: Havering | F101: HV-4 | G101: Havering South | H101: South Network | I101: U00367 | J101: EMISweb | K101: 181 Corbets Tey Road | L101: Upminster | M101: RM14 2YN | N101: TQ 55913 85795 | O101: 555913 | P101: 185795 | Q101: 51.549508 | R101: 0.24727998
A102: Active | B102: F82008 | C102: Maylands Health Care | D102: HV | E102: Havering | F102: HV-4 | G102: Havering South | H102: South Network | I102: U00367 | J102: EMISweb | K102: 300 Upper Rainham Road | L102: Elm Park | M102: RM12 4EQ | N102: TQ 51980 86056 | O102: 551980 | P102: 186056 | Q102: 51.552925 | R102: 0.19071367
A103: Active | B103: F82028 | C103: Wood Lane Medical Centre | D103: HV | E103: Havering | F103: HV-4 | G103: Havering South | H103: South Network | I103: U00367 | J103: EMISweb | K103: 39 Wood Lane | L103: Elm Park | M103: RM12 5HX | N103: TQ 52375 85087 | O103: 552375 | P103: 185087 | Q103: 51.544113 | R103: 0.19598719
A104: Active | B104: F82666 | C104: The Surgery (Dr Rahman) | D104: HV | E104: Havering | F104: HV-4 | G104: Havering South | H104: South Network | I104: U00367 | J104: EMISweb | K104: 482 South End Road | L104: Elm Park | M104: RM12 5PA | N104: TQ 52924 85456 | O104: 552924 | P104: 185456 | Q104: 51.54728 | R104: 0.20405819
A105: Active | B105: F82022 | C105: The Rosewood Medical Centre | D105: HV | E105: Havering | F105: HV-4 | G105: Havering South | H105: South Network | I105: U00367 | J105: EMISweb | K105: 30 Astra Close | L105: Hornchurch | M105: RM12 5NJ | N105: TQ 52722 84935 | O105: 552722 | P105: 184935 | Q105: 51.542653 | R105: 0.20092136
A106: Active | B106: F82619 | C106: Harlow Road Surgery (Dr N Tariq) | D106: HV | E106: Havering | F106: HV-4 | G106: Havering South | H106: South Network | I106: U00367 | J106: EMISweb | K106: 1 Harlow Road | L106: Rainham | M106: RM13 7UP | N106: TQ 51752 83712 | O106: 551752 | P106: 183712 | Q106: 51.531926 | R106: 0.1864178
A107: Active | B107: F82627 | C107: Rainham Health Centre | D107: HV | E107: Havering | F107: HV-4 | G107: Havering South | H107: South Network | I107: U00367 | J107: EMISweb | K107: Upminster Road South | L107: Rainham | M107: RM13 9AB | N107: TQ 52533 82337 | O107: 552533 | P107: 182337 | Q107: 51.519362 | R107: 0.19707375
A108: Active | B108: F82649 | C108: Berwick Surgery | D108: HV | E108: Havering | F108: HV-4 | G108: Havering South | H108: South Network | I108: U00367 | J108: EMISweb | K108: 17 Berwick Road | L108: Rainham | M108: RM13 9QU | N108: TQ 53679 83242 | O108: 553679 | P108: 183242 | Q108: 51.527183 | R108: 0.21397232
A109: Active | B109: F82607 | C109: South Hornchurch Medical Practice | D109: HV | E109: Havering | F109: HV-4 | G109: Havering South | H109: South Network | I109: U00367 | J109: EMISweb | K109: 382 Upminster Road North | L109: North Rainham | M109: RM13 9RZ | N109: TQ 53703 82663 | O109: 553703 | P109: 182663 | Q109: 51.521974 | R109: 0.21406561
A110: Active | B110: F82674 | C110: Avon Road Surgery (Cranham Health Centre) | D110: HV | E110: Havering | F110: HV-4 | G110: Havering South | H110: South Network | I110: U00367 | J110: EMISweb | K110: Avon Road | L110: Cranham | M110: RM14 1RG | N110: TQ 57095 87988 | O110: 557095 | P110: 187988 | Q110: 51.568883 | R110: 0.26529226
A111: Active | B111: F82006 | C111: Cranham Village Surgery (Dr C Dahs & Dr IP Humberstone Surgery) | D111: HV | E111: Havering | F111: HV-4 | G111: Havering South | H111: South Network | I111: U00367 | J111: EMISweb | K111: 143 Ingrebourne Gardens | L111: Cranham | M111: RM14 1BJ | N111: TQ 56984 87288 | O111: 556984 | P111: 187288 | Q111: 51.562625 | R111: 0.26337962
A112: Active | B112: F82053 | C112: Upminster Medical Centre | D112: HV | E112: Havering | F112: HV-4 | G112: Havering South | H112: South Network | I112: U00367 | J112: EMISweb | K112: 226 St Mary's Lane | L112: Upminster | M112: RM14 3DH | N112: TQ 56440 86625 | O112: 556440 | P112: 186625 | Q112: 51.556819 | R112: 0.25524324
A113: Active | B113: F82624 | C113: The Upminster Bridge Surgery (Dr O'Moore) | D113: HV | E113: Havering | F113: HV-4 | G113: Havering South | H113: South Network | I113: U00367 | J113: EMISweb | K113: 126 Upminster Road | L113: Upminster | M113: RM12 6PL | N113: TQ 55046 86819 | O113: 555046 | P113: 186819 | Q113: 51.558947 | R113: 0.23523689
A114: Active | B114: F82033 | C114: Dr V M Patel Surgery | D114: HV | E114: Havering | F114: HV-4 | G114: Havering South | H114: South Network | I114: U00367 | J114: VISION | K114: 9 Glanville Drive | L114: Hornchurch | M114: RM11 3SZ | N114: TQ 54586 87037 | O114: 554586 | P114: 187037 | Q114: 51.561032 | R114: 0.22870229
A115: Active | B115: F84047 | C115: Custom House Surgery | D115: NH | E115: Newham | F115: NH-PCN1 | G115: South One Newham | H115: South One Newham | I115: U23362 | J115: EMISweb | K115: 16 Freemasons Rd | M115: E16 3NA | N115: TQ 40635 81244 | O115: 540635 | P115: 181244 | Q115: 51.512625 | R115: 0.025271616
A116: Active | B116: F84666 | C116: Dr Ruiz – St Lukes Medical Centre | D116: NH | E116: Newham | F116: NH-PCN1 | G116: South One Newham | H116: South One Newham | I116: U23362 | J116: EMISweb | K116: 2 St Luke's Square | M116: E16 1HT | N116: TQ 39825 81135 | O116: 539825 | P116: 181135 | Q116: 51.511847 | R116: 0.013563443
A117: Active | B117: F84657 | C117: Cumberland Road Medical Practice | D117: NH | E117: Newham | F117: NH-PCN1 | G117: South One Newham | H117: South One Newham | I117: U23362 | J117: EMISweb | K117: 179 Cumberland Rd | M117: E13 8LS | N117: TQ 40666 82033 | O117: 540666 | P117: 182033 | Q117: 51.519707 | R117: 0.026032652
A118: Active | B118: F84092 | C118: Glen Road Medical Centre | D118: NH | E118: Newham | F118: NH-PCN1 | G118: South One Newham | H118: South One Newham | I118: U23362 | J118: EMISweb | K118: 1-9 Glen Rd | M118: E13 8RU | N118: TQ 41109 82327 | O118: 541109 | P118: 182327 | Q118: 51.522239 | R118: 0.032530947
A119: Active | B119: F84017 | C119: Star Lane Medical Centre | D119: NH | E119: Newham | F119: NH-PCN1 | G119: South One Newham | H119: South One Newham | I119: U23362 | J119: EMISweb | K119: 121 Star Ln | M119: E16 4QH | N119: TQ 39602 82012 | O119: 539602 | P119: 182012 | Q119: 51.519782 | R119: 0.010699055
A120: Active | B120: F84717 | C120: Royal Docks Medical Centre | D120: NH | E120: Newham | F120: NH-PCN10 | G120: Docklands | H120: Docklands | I120: U56681 | J120: EMISweb | K120: 21 East Ham Manor Way | M120: E6 5NA | N120: TQ 43258 80969 | O120: 543258 | P120: 180969 | Q120: 51.509496 | R120: 0.06293342
A121: Active | B121: F84093 | C121: Tollgate Health Centre | D121: NH | E121: Newham | F121: NH-PCN10 | G121: Docklands | H121: Docklands | I121: U56681 | J121: EMISweb | K121: 220 Tollgate Rd | M121: E6 5JS | N121: TQ 42787 81629 | O121: 542787 | P121: 181629 | Q121: 51.515546 | R121: 0.056418169
A122: Active | B122: Y02928 | C122: E16 Health | D122: NH | E122: Newham | F122: NH-PCN10 | G122: Docklands | H122: Docklands | I122: U56681 | J122: EMISweb | K122: 76 Albert Rd | M122: E16 2DY | N122: TQ 42593 80059 | O122: 542593 | P122: 180059 | Q122: 51.501487 | R122: 0.052989908
A123: Active | B123: F84735 | C123: The Azad Practice | D123: NH | E123: Newham | F123: NH-PCN2 | G123: Central 1 | H123: Central 1 | I123: U71739 | J123: EMISweb | K123: 152 Barking Road | M123: E6 3BD | N123: TQ 41930 83350 | O123: 541930 | P123: 183350 | Q123: 51.531226 | R123: 0.044768459
A124: Active | B124: F84669 | C124: Newham Medical Centre | D124: NH | E124: Newham | F124: NH-PCN2 | G124: Central 1 | H124: Central 1 | I124: U71739 | J124: EMISweb | K124: 576 Green St | M124: E13 9DA | N124: TQ 41405 83360 | O124: 541405 | P124: 183360 | Q124: 51.531447 | R124: 0.037208861
A125: Active | B125: F84010 | C125: St Bartholomew Surgery | D125: NH | E125: Newham | F125: NH-PCN2 | G125: Central 1 | H125: Central 1 | I125: U71739 | J125: EMISweb | K125: 292A Barking Road | M125: E6 3BA | N125: TQ 42477 83507 | O125: 542477 | P125: 183507 | Q125: 51.532499 | R125: 0.052712424
A126: Active | B126: F84004 | C126: Market Street Health Group | D126: NH | E126: Newham | F126: NH-PCN2 | G126: Central 1 | H126: Central 1 | I126: U71739 | J126: EMISweb | K126: 52 Market St | M126: E6 2RA | N126: TQ 42814 83350 | O126: 542814 | P126: 183350 | Q126: 51.531003 | R126: 0.057504007
A127: Active | B127: F84053 | C127: Greengate Medical Practice | D127: NH | E127: Newham | F127: NH-PCN2 | G127: Central 1 | H127: Central 1 | I127: U71739 | J127: EMISweb | K127: 497 Barking Road | M127: E13 8PS | N127: TQ 40757 82646 | O127: 540757 | P127: 182646 | Q127: 51.525193 | R127: 0.027588027
A128: Active | B128: F84124 | C128: The Project Surgery | D128: NH | E128: Newham | F128: NH-PCN2 | G128: Central 1 | H128: Central 1 | I128: U71739 | J128: EMISweb | K128: 10 Lettsom Walk | M128: E13 0LN | N128: TQ 40253 83419 | O128: 540253 | P128: 183419 | Q128: 51.532264 | R128: 0.020635385
A129: Active | B129: F84050 | C129: Boleyn Medical Centre | D129: NH | E129: Newham | F129: NH-PCN2 | G129: Central 1 | H129: Central 1 | I129: U71739 | J129: EMISweb | K129: 152 Barking Road | M129: E6 3BD | N129: TQ 41930 83350 | O129: 541930 | P129: 183350 | Q129: 51.531226 | R129: 0.044768459
A130: Active | B130: F84052 | C130: Essex Lodge | D130: NH | E130: Newham | F130: NH-PCN3 | G130: Newham Central | H130: Newham Central | I130: U11373 | J130: EMISweb | K130: 94 Greengate St | M130: E13 0AS | N130: TQ 40684 82946 | O130: 540684 | P130: 182946 | Q130: 51.527907 | R130: 0.026656164
A131: Active | B131: F84681 | C131: Balaam Street Practice | D131: NH | E131: Newham | F131: NH-PCN3 | G131: Newham Central | H131: Newham Central | I131: U11373 | J131: EMISweb | K131: 113 Balaam St | M131: E13 8AF | N131: TQ 40488 82808 | O131: 540488 | P131: 182808 | Q131: 51.526716 | R131: 0.023777605
A132: Active | B132: F84642 | C132: Lucas Avenue Surgery | D132: NH | E132: Newham | F132: NH-PCN3 | G132: Newham Central | H132: Newham Central | I132: U11373 | J132: EMISweb | M132: E13 0QP | N132: TQ 40943 83883 | O132: 540943 | P132: 183883 | Q132: 51.536262 | R132: 0.030761987
A133: Active | B133: F84749 | C133: Carpenter's Practice | D133: NH | E133: Newham | F133: NH-PCN3 | G133: Newham Central | H133: Newham Central | I133: U11373 | J133: EMISweb | K133: 236-252 High St | M133: E15 2JA | N133: TQ 38568 83938 | O133: 538568 | P133: 183938 | Q133: 51.537344 | R133: -0.0034372388
A134: Active | B134: F84658 | C134: Sangam Surgery | D134: NH | E134: Newham | F134: NH-PCN4 | G134: North East 1 | H134: North East 1 | I134: U34188 | J134: EMISweb | K134: Snowshill Rd | M134: E12 6BE | N134: TQ 42142 85378 | O134: 542142 | P134: 185378 | Q134: 51.549395 | R134: 0.04864096
A135: Active | B135: F84660 | C135: Dr CM Patel | D135: NH | E135: Newham | F135: NH-PCN4 | G135: North East 1 | H135: North East 1 | I135: U34188 | J135: EMISweb | K135: 2 Jephson Rd | M135: E7 8LZ | N135: TQ 41250 84414 | O135: 541250 | P135: 184414 | Q135: 51.540957 | R135: 0.03539828
A136: Active | B136: F84088 | C136: Plashet Medical Centre | D136: NH | E136: Newham | F136: NH-PCN4 | G136: North East 1 | H136: North East 1 | I136: U34188 | J136: EMISweb | K136: 152 Plashet Rd | M136: E13 0QT | N136: TQ 41097 84021 | O136: 541097 | P136: 184021 | Q136: 51.537464 | R136: 0.033036159
A137: Active | B137: F84670 | C137: Westbury Road Medical Practice | D137: NH | E137: Newham | F137: NH-PCN4 | G137: North East 1 | H137: North East 1 | I137: U34188 | J137: EMISweb | K137: 45 Westbury Terrace | M137: E7 8BU | N137: TQ 40876 84941 | O137: 540876 | P137: 184941 | Q137: 51.545786 | R137: 0.030219712
A138: Active | B138: F84729 | C138: The Manor Park Practice | D138: NH | E138: Newham | F138: NH-PCN4 | G138: North East 1 | H138: North East 1 | I138: U34188 | J138: EMISweb | K138: 778 Romford Rd | M138: E12 5JG | N138: TQ 42725 85896 | O138: 542725 | P138: 185896 | Q138: 51.553903 | R138: 0.057253424
A139: Active | B139: F84641 | C139: Birchdale Road Medical Practice | D139: NH | E139: Newham | F139: NH-PCN4 | G139: North East 1 | H139: North East 1 | I139: U34188 | J139: EMISweb | K139: 2 Birchdale Rd | M139: E7 8AR | N139: TQ 41441 85069 | O139: 541441 | P139: 185069 | Q139: 51.546795 | R139: 0.038413612
A140: Active | B140: F84739 | C140: E12 Medical Practice | D140: NH | E140: Newham | F140: NH-PCN5 | G140: North East 2 | H140: North East 2 | I140: U06978 | J140: EMISweb | K140: 243 High Street North | M140: E12 6SJ | N140: TQ 42286 84464 | O140: 542286 | P140: 184464 | Q140: 51.541146 | R140: 0.0503471
A141: Active | B141: F84006 | C141: Shrewsbury Road Surgery | D141: NH | E141: Newham | F141: NH-PCN5 | G141: North East 2 | H141: North East 2 | I141: U06978 | J141: EMISweb | K141: Shrewsbury Annexe' Shrewsbury Road | M141: E7 8QP | N141: TQ 41796 84426 | O141: 541796 | P141: 184426 | Q141: 51.540928 | R141: 0.043270927
A142: Active | B142: F84074 | C142: Wordsworth Health Centre | D142: NH | E142: Newham | F142: NH-PCN5 | G142: North East 2 | H142: North East 2 | I142: U06978 | J142: EMISweb | K142: 19 Wordsworth Avenue | M142: E12 6SU | N142: TQ 42172 84503 | O142: 542172 | P142: 184503 | Q142: 51.541525 | R142: 0.04872011
A143: Active | B143: F84741 | C143: Dr Sathyajith Surgery | D143: NH | E143: Newham | F143: NH-PCN5 | G143: North East 2 | H143: North East 2 | I143: U06978 | J143: EMISweb | K143: Eastham Memorial Hospital | M143: E7 8QP | N143: TQ 41796 84426 | O143: 541796 | P143: 184426 | Q143: 51.540928 | R143: 0.043270927
A144: Active | B144: F84742 | C144: The Summit Practice | D144: NH | E144: Newham | F144: NH-PCN5 | G144: North East 2 | H144: North East 2 | I144: U06978 | J144: EMISweb | K144: Old East Ham Memorial Hospital | M144: E7 8PP | N144: TQ 41670 84155 | O144: 541670 | P144: 184155 | Q144: 51.538524 | R144: 0.041346302
A145: Active | B145: F84070 | C145: Lathom Medical Centre | D145: NH | E145: Newham | F145: NH-PCN5 | G145: North East 2 | H145: North East 2 | I145: U06978 | J145: EMISweb | K145: 2A Lathom Rd | M145: E6 2DU | N145: TQ 42458 84130 | O145: 542458 | P145: 184130 | Q145: 51.538102 | R145: 0.052690543
A146: Active | B146: F84672 | C146: E7 Health - First 4 Health Group | D146: NH | E146: Newham | F146: NH-PCN6 | G146: North Newham | H146: North Newham | I146: U52641 | J146: EMISweb | K146: 157 Leytonstone Rd | M146: E15 1LH | N146: TQ 39102 85361 | O146: 539102 | P146: 185361 | Q146: 51.55 | R146: 0.0048192101
A147: Active | B147: F84097 | C147: Claremont Clinic | D147: NH | E147: Newham | F147: NH-PCN6 | G147: North Newham | H147: North Newham | I147: U52641 | J147: EMISweb | K147: 459-463 Romford Rd | M147: E7 8AB | N147: TQ 41105 85137 | O147: 541105 | P147: 185137 | Q147: 51.54749 | R147: 0.033598485
A148: Active | B148: F84724 | C148: Woodgrange Medical Practice | D148: NH | E148: Newham | F148: NH-PCN6 | G148: North Newham | H148: North Newham | I148: U52641 | J148: EMISweb | K148: 40 Woodgrange Rd | M148: E7 0QH | N148: TQ 40516 85243 | O148: 540516 | P148: 185243 | Q148: 51.548589 | R148: 0.025152046
A149: Active | B149: F84111 | C149: Abbey Road Medical Practice | D149: NH | E149: Newham | F149: NH-PCN8 | G149: Stratford | H149: Stratford | I149: U76122 | J149: EMISweb | K149: 28a Abbey Rd | M149: E15 3LT | N149: TQ 39225 83671 | O149: 539225 | P149: 183671 | Q149: 51.534783 | R149: 0.0059240574
A150: Active | B150: Y04273 | C150: Liberty Bridge Road | D150: NH | E150: Newham | F150: NH-PCN8 | G150: Stratford | H150: Stratford | I150: U76122 | J150: EMISweb | K150: 40 Liberty Bridge Rd | M150: E20 1AS | N150: TQ 38349 85140 | O150: 538349 | P150: 185140 | Q150: 51.548199 | R150: -0.0061207496
A151: Active | B151: F84730 | C151: The Vicarage Lane Surgery | D151: NH | E151: Newham | F151: NH-PCN8 | G151: Stratford | H151: Stratford | I151: U76122 | J151: EMISweb | K151: 10 Vicarage Ln | M151: E15 4HG | N151: TQ 39553 84332 | O151: 539553 | P151: 184332 | Q151: 51.540642 | R151: 0.010911767
A152: Active | B152: F84121 | C152: First4Health Church Road | D152: NH | E152: Newham | F152: NH-PCN8 | G152: Stratford | H152: Stratford | I152: U76122 | J152: EMISweb | K152: 30 Church Road | M152: E12 6AQ | N152: TQ 42460 85199 | O152: 542460 | P152: 185199 | Q152: 51.547707 | R152: 0.053151713
A153: Active | B153: F84009 | C153: Stratford Village Surgery | D153: NH | E153: Newham | F153: NH-PCN8 | G153: Stratford | H153: Stratford | I153: U76122 | J153: EMISweb | K153: 50C Romford Rd | M153: E15 4BZ | N153: TQ 39233 84486 | O153: 539233 | P153: 184486 | Q153: 51.542105 | R153: 0.0063613933
A154: Active | B154: F84740 | C154: Newham Transitional Team | D154: NH | E154: Newham | F154: NH-PCN8 | G154: Stratford | H154: Stratford | I154: U76122 | J154: EMISweb | K154: 30 Church Rd | M154: E12 6AQ | N154: TQ 42460 85199 | O154: 542460 | P154: 185199 | Q154: 51.547707 | R154: 0.053151713
A155: Active | B155: F84077 | C155: Newham Vicarage Practice | D155: NH | E155: Newham | F155: NH-PCN9 | G155: North West 2 | H155: North West 2 | I155: U94747 | J155: EMISweb | K155: 10 Vicarage Ln | M155: E15 4ES | N155: TQ 39491 84416 | O155: 539491 | P155: 184416 | Q155: 51.541412 | R155: 0.010051602
A156: Active | B156: F84677 | C156: East End Medical Centre | D156: NH | E156: Newham | F156: NH-PCN9 | G156: North West 2 | H156: North West 2 | I156: U94747 | J156: EMISweb | K156: 61 Plashet Rd | M156: E13 0QA | N156: TQ 40567 83994 | O156: 540567 | P156: 183994 | Q156: 51.537353 | R156: 0.025388644
A157: Active | B157: F84022 | C157: Stratford Health Centre | D157: NH | E157: Newham | F157: NH-PCN9 | G157: North West 2 | H157: North West 2 | I157: U94747 | J157: EMISweb | K157: 123 The Grove | M157: E15 1EN | N157: TQ 39112 84766 | O157: 539112 | P157: 184766 | Q157: 51.54465 | R157: 0.0047282946
A158: Active | B158: F84086 | C158: The Forest Practice | D158: NH | E158: Newham | F158: NH-PCN9 | G158: North West 2 | H158: North West 2 | I158: U94747 | J158: EMISweb | K158: 121 Woodgrange Rd | M158: E7 0EP | N158: TQ 40492 85464 | O158: 540492 | P158: 185464 | Q158: 51.550581 | R158: 0.024894327
A159: Active | B159: F84014 | C159: Upton Lane Medical Centre | D159: NH | E159: Newham | F159: NH-PCN9 | G159: North West 2 | H159: North West 2 | I159: U94747 | J159: EMISweb | K159: 75-77 Upton Ln | M159: E7 9PB | N159: TQ 40620 84636 | O159: 540620 | P159: 184636 | Q159: 51.543109 | R159: 0.026408576
A160: Active | B160: F86652 | C160: Drive Surgery | D160: RB | E160: Redbridge | F160: RB-1 | G160: Cranbrook | H160: Cranbrook | I160: U51307 | J160: EMISweb | K160: 68 The Drive | L160: Ilford | M160: IG1 3HZ | N160: TQ 42899 87429 | O160: 542899 | P160: 187429 | Q160: 51.567634 | R160: 0.060384001
A161: Active | B161: F86702 | C161: St Clements Surgery | D161: RB | E161: Redbridge | F161: RB-1 | G161: Cranbrook | H161: Cranbrook | I161: U51307 | J161: EMISweb | K161: 38 Bathhurst Road | L161: Ilford | M161: IG1 4LA | N161: TQ 43751 87002 | O161: 543751 | P161: 187002 | Q161: 51.563581 | R161: 0.072493725
A162: Active | B162: Y00918 | C162: Granville Medical Centre | D162: RB | E162: Redbridge | F162: RB-1 | G162: Cranbrook | H162: Cranbrook | I162: U51307 | J162: EMISweb | K162: 4 Granville Road | L162: Ilford | M162: IG1 4JY | N162: TQ 43646 86952 | O162: 543646 | P162: 186952 | Q162: 51.563158 | R162: 0.070959546
A163: Active | B163: F86042 | C163: Balfour Road Surgery | D163: RB | E163: Redbridge | F163: RB-1 | G163: Cranbrook | H163: Cranbrook | I163: U51307 | J163: EMISweb | K163: 92 Balfour Road | L163: Ilford | M163: IG1 4JE | N163: TQ 43990 86949 | O163: 543990 | P163: 186949 | Q163: 51.563043 | R163: 0.075917641
A164: Active | B164: F86698 | C164: Cranbrook Surgery | D164: RB | E164: Redbridge | F164: RB-1 | G164: Cranbrook | H164: Cranbrook | I164: U51307 | J164: EMISweb | K164: 465 Cranbrook Road | L164: Ilford | M164: IG2 6EW | N164: TQ 43201 88032 | O164: 543201 | P164: 188032 | Q164: 51.572975 | R164: 0.06498382
A165: Active | B165: F86008 | C165: Gants Hill Medical Centre | D165: RB | E165: Redbridge | F165: RB-1 | G165: Cranbrook | H165: Cranbrook | I165: U51307 | J165: EMISweb | K165: 63-65 Ethelbert Gardens | L165: Gants Hill | M165: IG2 6UW | N165: TQ 43151 88496 | O165: 543151 | P165: 188496 | Q165: 51.577157 | R165: 0.064451751
A166: Active | B166: F86703 | C166: Redbridge Surgery | D166: RB | E166: Redbridge | F166: RB-1 | G166: Cranbrook | H166: Cranbrook | I166: U51307 | J166: EMISweb | K166: 49 Windermere Gardens | L166: Gants Hill | M166: IG4 5BZ | N166: TQ 42406 88530 | O166: 542406 | P166: 188530 | Q166: 51.577651 | R166: 0.053721702
A167: Active | B167: F86657 | C167: York Road Surgery | D167: RB | E167: Redbridge | F167: RB-1 | G167: Cranbrook | H167: Cranbrook | I167: U51307 | J167: SystmOne | K167: 55 York Road | L167: Ilford | M167: IG1 3AF | N167: TQ 43305 86498 | O167: 543305 | P167: 186498 | Q167: 51.559165 | R167: 0.065858546
A168: Active | B168: F86081 | C168: Kenwood Medical Centre | D168: RB | E168: Redbridge | F168: RB-2 | G168: Fairlop | H168: Fairlop | I168: U03653 | J168: EMISweb | K168: Kenwood Gardens | L168: Gants Hill | M168: IG2 6YG | N168: TQ 43661 88984 | O168: 543661 | P168: 188984 | Q168: 51.581413 | R168: 0.072005967
A169: Active | B169: F86083 | C169: Eastern Avenue Medical Centre | D169: RB | E169: Redbridge | F169: RB-2 | G169: Fairlop | H169: Fairlop | I169: U03653 | J169: EMISweb | K169: 167 Eastern Avenue | L169: Gants Hill | M169: IG4 5AW | N169: TQ 42226 88390 | O169: 542226 | P169: 188390 | Q169: 51.576439 | R169: 0.051069203
A170: Active | B170: F86612 | C170: Fullwell Avenue Surgery | D170: RB | E170: Redbridge | F170: RB-2 | G170: Fairlop | H170: Fairlop | I170: U03653 | J170: EMISweb | K170: 272 Fullwell Avenue | L170: Fullwell Cross | M170: IG5 0SB | N170: TQ 43621 90647 | O170: 543621 | P170: 190647 | Q170: 51.596366 | R170: 0.072108948
A171: Active | B171: F86624 | C171: Heathcote Primary Care Centre | D171: RB | E171: Redbridge | F171: RB-2 | G171: Fairlop | H171: Fairlop | I171: U03653 | J171: EMISweb | K171: Heathcote Avenue | L171: Barkingside | M171: IG5 0QS | N171: TQ 42982 90347 | O171: 542982 | P171: 190347 | Q171: 51.593832 | R171: 0.062767795
A172: Active | B172: F86707 | C172: Fencepiece Road Medical Practice | D172: RB | E172: Redbridge | F172: RB-2 | G172: Fairlop | H172: Fairlop | I172: U03653 | J172: EMISweb | K172: 83 Fencepiece Road | L172: Fairlop | M172: IG6 2NB | N172: TQ 44453 91094 | O172: 544453 | P172: 191094 | Q172: 51.60017 | R172: 0.084296186
A173: Active | B173: F86057 | C173: The Willows Practice | D173: RB | E173: Redbridge | F173: RB-2 | G173: Fairlop | H173: Fairlop | I173: U03653 | J173: EMISweb | K173: Hainault Health Centre | L173: Chigwell | M173: IG7 4DF | N173: TQ 45822 91978 | O173: 545822 | P173: 191978 | Q173: 51.60776 | R173: 0.10441554
A174: Active | B174: F86007 | C174: Forest Edge Practice | D174: RB | E174: Redbridge | F174: RB-2 | G174: Fairlop | H174: Fairlop | I174: U03653 | J174: EMISweb | K174: Hainault Health Centre | L174: Chigwell | M174: IG7 4DF | N174: TQ 45822 91978 | O174: 545822 | P174: 191978 | Q174: 51.60776 | R174: 0.10441554
A175: Active | B175: F86009 | C175: The Palms Medical Centre | D175: RB | E175: Redbridge | F175: RB-3 | G175: Seven Kings | H175: Seven Kings | I175: U27585 | J175: EMISweb | K175: 97-101 Netley Road | L175: Newbury Park | M175: IG2 7NW | N175: TQ 44820 88524 | O175: 544820 | P175: 188524 | Q175: 51.576983 | R175: 0.088531907
A176: Active | B176: F86087 | C176: Goodmayes Medical Centre | D176: RB | E176: Redbridge | F176: RB-3 | G176: Seven Kings | H176: Seven Kings | I176: U27585 | J176: EMISweb | K176: 4 Eastwood Road | L176: Goodmayes | M176: IG3 8XB | N176: TQ 46331 87526 | O176: 546331 | P176: 187526 | Q176: 51.567626 | R176: 0.10990631
A177: Active | B177: F86637 | C177: Seven Kings Practice | D177: RB | E177: Redbridge | F177: RB-3 | G177: Seven Kings | H177: Seven Kings | I177: U27585 | J177: EMISweb | K177: 1 Salisbury Road | L177: Seven Kings | M177: IG3 8BG | N177: TQ 45438 87037 | O177: 545438 | P177: 187037 | Q177: 51.563463 | R177: 0.096829019
A178: Active | B178: Y00090 | C178: Doctor's House | D178: RB | E178: Redbridge | F178: RB-3 | G178: Seven Kings | H178: Seven Kings | I178: U27585 | J178: EMISweb | K178: 40 Cameron Road | L178: Seven Kings | M178: IG3 8LF | N178: TQ 45249 87246 | O178: 545249 | P178: 187246 | Q178: 51.565389 | R178: 0.094190583
A179: Active | B179: F86034 | C179: Green Lane, Goodmayes Medical practice | D179: RB | E179: Redbridge | F179: RB-3 | G179: Seven Kings | H179: Seven Kings | I179: U27585 | J179: EMISweb | K179: 595 Green Lane | L179: Goodmayes | M179: IG3 9RN | N179: TQ 46598 87054 | O179: 546598 | P179: 187054 | Q179: 51.563316 | R179: 0.11355913
A180: Active | B180: F86642 | C180: Castleton Road Surgery | D180: RB | E180: Redbridge | F180: RB-3 | G180: Seven Kings | H180: Seven Kings | I180: U27585 | J180: EMISweb | K180: 19 Castleton Road | L180: Goodmayes | M180: IG3 9QW | N180: TQ 46532 87121 | O180: 546532 | P180: 187121 | Q180: 51.563935 | R180: 0.11263556
A181: Active | B181: F86028 | C181: Chadwell Heath Surgery | D181: RB | E181: Redbridge | F181: RB-3 | G181: Seven Kings | H181: Seven Kings | I181: U27585 | J181: EMISweb | K181: 72 Chadwell Heath Lane | L181: Chadwell Heath | M181: RM6 4AF | N181: TQ 47352 88216 | O181: 547352 | P181: 188216 | Q181: 51.57356 | R181: 0.12491581
A182: Active | B182: Y00155 | C182: Grove Surgery | D182: RB | E182: Redbridge | F182: RB-3 | G182: Seven Kings | H182: Seven Kings | I182: U27585 | J182: SystmOne | K182: 200-202 Chadwell Heath Lane | L182: Chadwell Heath | M182: RM6 4YU | N182: TQ 47178 88535 | O182: 547178 | P182: 188535 | Q182: 51.576472 | R182: 0.12254036
A183: Active | B183: F86013 | C183: Broadway Surgery | D183: RB | E183: Redbridge | F183: RB-4 | G183: Wanstead & Woodford | H183: Wanstead & Woodford | I183: U78575 | J183: SystmOne | K183: 3 The Broadway | L183: Woodford Green | M183: IG8 0HF | N183: TQ 40897 91927 | O183: 540897 | P183: 191927 | Q183: 51.608555 | R183: 0.033322328
A184: Active | B184: F86023 | C184: The Evergreen Practice | D184: RB | E184: Redbridge | F184: RB-4 | G184: Wanstead & Woodford | H184: Wanstead & Woodford | I184: U78575 | J184: EMISweb | K184: 26 High Street | L184: Wanstead | M184: E11 2AQ | N184: TQ 40453 88526 | O184: 540453 | P184: 188526 | Q184: 51.578105 | R184: 0.025554684
A185: Active | B185: F86032 | C185: Wanstead Place Surgery | D185: RB | E185: Redbridge | F185: RB-4 | G185: Wanstead & Woodford | H185: Wanstead & Woodford | I185: U78575 | J185: EMISweb | K185: 45 Wanstead Place | L185: Wanstead | M185: E11 2SW | N185: TQ 40289 88521 | O185: 540289 | P185: 188521 | Q185: 51.578101 | R185: 0.023187509
A186: Active | B186: F86731 | C186: Aldersbrook Medical Centre | D186: RB | E186: Redbridge | F186: RB-4 | G186: Wanstead & Woodford | H186: Wanstead & Woodford | I186: U78575 | J186: EMISweb | K186: 65 Aldersbrook Road | L186: Manor Park | M186: E12 5DL | N186: TQ 41394 86612 | O186: 541394 | P186: 186612 | Q186: 51.560671 | R186: 0.038356032
A187: Active | B187: F86066 | C187: Southdene Surgery | D187: RB | E187: Redbridge | F187: RB-4 | G187: Wanstead & Woodford | H187: Wanstead & Woodford | I187: U78575 | J187: EMISweb | K187: The Shrubberies, George Ln | L187: South Woodford | M187: E18 1BD | N187: TQ 40404 90279 | O187: 540404 | P187: 190279 | Q187: 51.593869 | R187: 0.02554851
A188: Active | B188: F86641 | C188: Shrubberies Medical Centre | D188: RB | E188: Redbridge | F188: RB-4 | G188: Wanstead & Woodford | H188: Wanstead & Woodford | I188: U78575 | J188: EMISweb | K188: 12 The Shrubberies, | L188: South Woodford | M188: E18 1BD | N188: TQ 40404 90279 | O188: 540404 | P188: 190279 | Q188: 51.593869 | R188: 0.02554851
A189: Active | B189: F86020 | C189: Glebelands Practice | D189: RB | E189: Redbridge | F189: RB-4 | G189: Wanstead & Woodford | H189: Wanstead & Woodford | I189: U78575 | J189: EMISweb | K189: 2 Glebelands Avenue | L189: South Woodford | M189: E18 2AB | N189: TQ 40310 90124 | O189: 540310 | P189: 190124 | Q189: 51.5925 | R189: 0.024130468
A190: Active | B190: F86064 | C190: Elmhurst Practice | D190: RB | E190: Redbridge | F190: RB-4 | G190: Wanstead & Woodford | H190: Wanstead & Woodford | I190: U78575 | J190: EMISweb | K190: 114 High Road | L190: South Woodford | M190: E18 2QS | N190: TQ 40129 90669 | O190: 540129 | P190: 190669 | Q190: 51.597442 | R190: 0.021736757
A191: Active | B191: F86691 | C191: Clayhall Clinic | D191: RB | E191: Redbridge | F191: RB-4 | G191: Wanstead & Woodford | H191: Wanstead & Woodford | I191: U78575 | J191: EMISweb | K191: 14 Clayhall Avenue | L191: Ilford | M191: IG5 0LG | N191: TQ 42206 90038 | O191: 542206 | P191: 190038 | Q191: 51.591252 | R191: 0.051447693
A192: Active | B192: F86012 | C192: Rydal Practice | D192: RB | E192: Redbridge | F192: RB-4 | G192: Wanstead & Woodford | H192: Wanstead & Woodford | I192: U78575 | J192: EMISweb | K192: 375 High Road | L192: Woodford Green | M192: IG8 9QJ | N192: TQ 39982 91888 | O192: 539982 | P192: 191888 | Q192: 51.608432 | R192: 0.020101964
A193: Active | B193: F86658 | C193: Queen Mary Practice | D193: RB | E193: Redbridge | F193: RB-4 | G193: Wanstead & Woodford | H193: Wanstead & Woodford | I193: U78575 | J193: EMISweb | K193: 114 High Road | L193: South Woodford | M193: E18 2QS | N193: TQ 40129 90669 | O193: 540129 | P193: 190669 | Q193: 51.597442 | R193: 0.021736757
A194: Active | B194: F86022 | C194: Ilford Medical Centre | D194: RB | E194: Redbridge | F194: RB-5 | G194: Loxford | H194: Loxford | I194: U20290 | J194: EMISweb | K194: 61 Cleveland Road | L194: Ilford | M194: IG1 1EE | N194: TQ 43897 86254 | O194: 543897 | P194: 186254 | Q194: 51.556822 | R194: 0.074292692
A195: Active | B195: Y02987 | C195: The Practice Loxford | D195: RB | E195: Redbridge | F195: RB-5 | G195: Loxford | H195: Loxford | I195: U20290 | J195: EMISweb | K195: 417 Ilford Lane | L195: Ilford | M195: IG1 2SN | N195: TQ 44106 85110 | O195: 544106 | P195: 185110 | Q195: 51.546489 | R195: 0.076837077
A196: Active | B196: F86692 | C196: Mathukias Surgery | D196: RB | E196: Redbridge | F196: RB-5 | G196: Loxford | H196: Loxford | I196: U20290 | J196: EMISweb | K196: 281 Ilford Lane | L196: Ilford | M196: IG1 2SF | N196: TQ 43991 85477 | O196: 543991 | P196: 185477 | Q196: 51.549816 | R196: 0.075329843
A197: Active | B197: F86082 | C197: Ilford Lane Surgery | D197: RB | E197: Redbridge | F197: RB-5 | G197: Loxford | H197: Loxford | I197: U20290 | J197: SystmOne | K197: 417 Ilford Lane | L197: Ilford | M197: IG1 2SN | N197: TQ 44106 85110 | O197: 544106 | P197: 185110 | Q197: 51.546489 | R197: 0.076837077
A198: Active | B198: F86025 | C198: Oak Tree Medical Practice | D198: RB | E198: Redbridge | F198: RB-5 | G198: Loxford | H198: Loxford | I198: U20290 | J198: SystmOne | K198: 273-275 Green Lane | L198: Seven Kings | M198: IG3 9TJ | N198: TQ 45422 86734 | O198: 545422 | P198: 186734 | Q198: 51.560744 | R198: 0.09647312
A199: Active | B199: F86085 | C199: Hainault Surgery | D199: RB | E199: Redbridge | F199: RB-6 | G199: NewCross Alliance | H199: New Cross Alliance | I199: U08578 | J199: EMISweb | K199: 34 New North Road | L199: Hainault | M199: IG6 2XG | N199: TQ 44572 91321 | O199: 544572 | P199: 191321 | Q199: 51.602179 | R199: 0.086106632
A200: Active | B200: F86010 | C200: Fullwell Cross Medical Centre | D200: RB | E200: Redbridge | F200: RB-6 | G200: NewCross Alliance | H200: New Cross Alliance | I200: U08578 | J200: EMISweb | K200: 1 Tomswood Hill | L200: Fairlop | M200: IG6 2HG | N200: TQ 44435 90476 | O200: 544435 | P200: 190476 | Q200: 51.594621 | R200: 0.083782264
... 73 more rows

Sheet DATA (hidden)
A1: Rel_D | B1: OrgID | C1: 00-00 | D1: 08-CKD | E1: NIS08-CKD01 | F1: NIS08-CKD02 | G1: NIS08-CKD03 | H1: NIS08-CKD04 | I1: Practice | J1: Locality ID | K1: SubLocality ID | L1: SubLocality
A2: 2021-10-01 | B2: F86701 | C2: 3769 | D2: 80 | E2: 80 | F2: 50 | G2: 66 | H2: 35 | I2: Kiyani Medical Practice | J2: WF | K2: WF-5 | L2: South Leytonstone
A3: 2021-10-01 | B3: F86616 | C3: 7799 | D3: 286 | E3: 249 | F3: 190 | G3: 172 | H3: 111 | I3: Old Church Surgery | J3: WF | K3: WF-2 | L3: Chingford E4
A4: 2021-10-01 | B4: F86700 | C4: 3876 | D4: 179 | E4: 179 | F4: 112 | G4: 124 | H4: 65 | I4: Kings Head Medical Practice | J4: WF | K4: WF-1 | L4: Chingford/ Walthamstow
A5: 2021-10-01 | B5: F86650 | C5: 8069 | D5: 146 | E5: 125 | F5: 62 | G5: 92 | H5: 54 | I5: Lime Tree Surgery | J5: WF | K5: WF-4 | L5: Forest Integrated Health
A6: 2021-10-01 | B6: F86062 | C6: 7321 | D6: 161 | E6: 110 | F6: 63 | G6: 122 | H6: 53 | I6: Grove Surgery | J6: WF | K6: WF-7 | L6: Walthamstow West
A7: 2021-10-01 | B7: F86689 | C7: 4368 | D7: 85 | E7: 71 | F7: 58 | G7: 58 | H7: 50 | I7: The Bailey Practice | J7: WF | K7: WF-1 | L7: Chingford/ Walthamstow
A8: 2021-10-01 | B8: F86696 | C8: 6932 | D8: 131 | E8: 125 | F8: 68 | G8: 103 | H8: 52 | I8: Francis Road Medical Centre | J8: WF | K8: WF-4 | L8: Forest Integrated Health
A9: 2021-10-01 | B9: F86030 | C9: 8137 | D9: 168 | E9: 139 | F9: 98 | G9: 132 | H9: 86 | I9: Queens Road Medical Centre | J9: WF | K9: WF-7 | L9: Walthamstow West
A10: 2021-10-01 | B10: F86625 | C10: 5887 | D10: 162 | E10: 140 | F10: 69 | G10: 109 | H10: 58 | I10: LL Medical Care (Agarwal & Agrwal Practice) | J10: WF | K10: WF-5 | L10: South Leytonstone
A11: 2021-10-01 | B11: F86712 | C11: 3329 | D11: 75 | E11: 72 | F11: 32 | G11: 62 | H11: 18 | I11: Hampton Medical Centre | J11: WF | K11: WF-4 | L11: Forest Integrated Health
A12: 2021-10-01 | B12: Y01291 | C12: 9040 | D12: 390 | E12: 356 | F12: 213 | G12: 265 | H12: 174 | I12: Chingford Medical Practice | J12: WF | K12: WF-2 | L12: Chingford E4
A13: 2021-10-01 | B13: F86058 | C13: 16559 | D13: 256 | E13: 208 | F13: 158 | G13: 180 | H13: 117 | I13: St James Medical Practice Ltd | J13: WF | K13: WF-7 | L13: Walthamstow West
A14: 2021-10-01 | B14: F86621 | C14: 6421 | D14: 158 | E14: 145 | F14: 79 | G14: 129 | H14: 50 | I14: Green Man Medical Centre | J14: WF | K14: WF-5 | L14: South Leytonstone
A15: 2021-10-01 | B15: F86001 | C15: 7744 | D15: 212 | E15: 184 | F15: 100 | G15: 129 | H15: 30 | I15: The Firs | J15: WF | K15: WF-6 | L15: Central Walthamstow
A16: 2021-10-01 | B16: F86627 | C16: 13357 | D16: 538 | E16: 477 | F16: 223 | G16: 354 | H16: 113 | I16: Churchill Medical Centre | J16: WF | K16: WF-2 | L16: Chingford E4
A17: 2021-10-01 | B17: Y01839 | C17: 6340 | D17: 160 | E17: 142 | F17: 82 | G17: 127 | H17: 39 | I17: Lime Tree & Sinnott Healthcare Ltd | J17: WF | K17: WF-1 | L17: Chingford/ Walthamstow
A18: 2021-10-01 | B18: F86078 | C18: 6905 | D18: 347 | E18: 109 | F18: 123 | G18: 207 | H18: 58 | I18: The Ridgeway Surgery | J18: WF | K18: WF-2 | L18: Chingford E4
A19: 2021-10-01 | B19: F86045 | C19: 2019 | D19: 53 | E19: 45 | F19: 20 | G19: 41 | H19: 35 | I19: High Road Surgery | J19: WF | K19: WF-5 | L19: South Leytonstone
A20: 2021-10-01 | B20: F86088 | C20: 4904 | D20: 111 | E20: 96 | F20: 33 | G20: 81 | H20: 49 | I20: The Lyndhurst Surgery | J20: WF | K20: WF-4 | L20: Forest Integrated Health
A21: 2021-10-01 | B21: F86644 | C21: 9590 | D21: 224 | E21: 181 | F21: 92 | G21: 146 | H21: 58 | I21: Waltham Forest Community & Family Health Services Ltd | J21: WF | K21: WF-6 | L21: Central Walthamstow
A22: 2021-10-01 | B22: F86705 | C22: 3551 | D22: 63 | E22: 61 | F22: 40 | G22: 44 | H22: 26 | I22: The Langthorne Sharma Family Practice | J22: WF | K22: WF-5 | L22: South Leytonstone
A23: 2021-10-01 | B23: F86036 | C23: 15175 | D23: 321 | E23: 235 | F23: 131 | G23: 212 | H23: 87 | I23: The Allum Medical Centre | J23: WF | K23: WF-4 | L23: Forest Integrated Health
A24: 2021-10-01 | B24: F86679 | C24: 6115 | D24: 85 | E24: 79 | F24: 50 | G24: 70 | H24: 39 | I24: Higham Hill Medical Centre | J24: WF | K24: WF-7 | L24: Walthamstow West
A25: 2021-10-01 | B25: F86708 | C25: 2856 | D25: 62 | E25: 61 | F25: 30 | G25: 50 | H25: 27 | I25: Claremont Medical Centre | J25: WF | K25: WF-6 | L25: Central Walthamstow
A26: 2021-10-01 | B26: F86086 | C26: 6180 | D26: 84 | E26: 63 | F26: 38 | G26: 48 | H26: 19 | I26: Dr Dhital Practice | J26: WF | K26: WF-6 | L26: Central Walthamstow
A27: 2021-10-01 | B27: F86607 | C27: 15127 | D27: 267 | E27: 240 | F27: 142 | G27: 207 | H27: 156 | I27: Addison Road Medical Practice | J27: WF | K27: WF-6 | L27: Central Walthamstow
A28: 2021-10-01 | B28: F86005 | C28: 9384 | D28: 203 | E28: 185 | F28: 92 | G28: 137 | H28: 59 | I28: The Penryhn Surgery | J28: WF | K28: WF-1 | L28: Chingford/ Walthamstow
A29: 2021-10-01 | B29: F86626 | C29: 6852 | D29: 108 | E29: 95 | F29: 49 | G29: 68 | H29: 30 | I29: Dr Shantir Practice | J29: WF | K29: WF-1 | L29: Chingford/ Walthamstow
A30: 2021-10-01 | B30: F86038 | C30: 11379 | D30: 210 | E30: 167 | F30: 129 | G30: 155 | H30: 113 | I30: Sma Medical Centre | J30: WF | K30: WF-3 | L30: Leyton Collaborative
A31: 2021-10-01 | B31: F86664 | C31: 8430 | D31: 202 | E31: 153 | F31: 135 | G31: 138 | H31: 113 | I31: Larkshall Medical Centre | J31: WF | K31: WF-1 | L31: Chingford/ Walthamstow
A32: 2021-10-01 | B32: F86011 | C32: 9593 | D32: 225 | E32: 169 | F32: 139 | G32: 157 | H32: 117 | I32: The Manor Practice | J32: WF | K32: WF-3 | L32: Leyton Collaborative
A33: 2021-10-01 | B33: F86666 | C33: 14764 | D33: 269 | E33: 255 | F33: 154 | G33: 194 | H33: 141 | I33: The Harrow Road Surgery | J33: WF | K33: WF-5 | L33: South Leytonstone
A34: 2021-10-01 | B34: F86044 | C34: 10125 | D34: 106 | E34: 94 | F34: 43 | G34: 71 | H34: 17 | I34: Crawley Road Medical Centre | J34: WF | K34: WF-4 | L34: Forest Integrated Health
A35: 2021-10-01 | B35: F86006 | C35: 6692 | D35: 149 | E35: 111 | F35: 68 | G35: 89 | H35: 39 | I35: Seymour Medical Centre | J35: WF | K35: WF-7 | L35: Walthamstow West
A36: 2021-11-01 | B36: F86679 | C36: 6163 | D36: 86 | E36: 80 | F36: 58 | G36: 71 | H36: 40 | I36: Higham Hill Medical Centre | J36: WF | K36: WF-7 | L36: Walthamstow West
A37: 2021-11-01 | B37: F86088 | C37: 4922 | D37: 109 | E37: 95 | F37: 35 | G37: 82 | H37: 49 | I37: The Lyndhurst Surgery | J37: WF | K37: WF-4 | L37: Forest Integrated Health
A38: 2021-11-01 | B38: F86086 | C38: 6186 | D38: 87 | E38: 65 | F38: 41 | G38: 51 | H38: 21 | I38: Dr Dhital Practice | J38: WF | K38: WF-6 | L38: Central Walthamstow
A39: 2021-11-01 | B39: F86650 | C39: 8059 | D39: 149 | E39: 128 | F39: 62 | G39: 95 | H39: 86 | I39: Lime Tree Surgery | J39: WF | K39: WF-4 | L39: Forest Integrated Health
A40: 2021-11-01 | B40: F86036 | C40: 15128 | D40: 325 | E40: 238 | F40: 144 | G40: 216 | H40: 91 | I40: The Allum Medical Centre | J40: WF | K40: WF-4 | L40: Forest Integrated Health
A41: 2021-11-01 | B41: F86627 | C41: 13367 | D41: 540 | E41: 477 | F41: 235 | G41: 354 | H41: 115 | I41: Churchill Medical Centre | J41: WF | K41: WF-2 | L41: Chingford E4
A42: 2021-11-01 | B42: F86696 | C42: 6915 | D42: 130 | E42: 121 | F42: 67 | G42: 96 | H42: 49 | I42: Francis Road Medical Centre | J42: WF | K42: WF-4 | L42: Forest Integrated Health
A43: 2021-11-01 | B43: F86044 | C43: 10256 | D43: 110 | E43: 96 | F43: 44 | G43: 76 | H43: 20 | I43: Crawley Road Medical Centre | J43: WF | K43: WF-4 | L43: Forest Integrated Health
A44: 2021-11-01 | B44: F86078 | C44: 6965 | D44: 348 | E44: 109 | F44: 125 | G44: 209 | H44: 56 | I44: The Ridgeway Surgery | J44: WF | K44: WF-2 | L44: Chingford E4
A45: 2021-11-01 | B45: F86616 | C45: 7841 | D45: 295 | E45: 253 | F45: 184 | G45: 177 | H45: 107 | I45: Old Church Surgery | J45: WF | K45: WF-2 | L45: Chingford E4
A46: 2021-11-01 | B46: F86011 | C46: 9630 | D46: 228 | E46: 170 | F46: 140 | G46: 159 | H46: 106 | I46: The Manor Practice | J46: WF | K46: WF-3 | L46: Leyton Collaborative
A47: 2021-11-01 | B47: F86038 | C47: 11386 | D47: 208 | E47: 165 | F47: 132 | G47: 154 | H47: 98 | I47: Sma Medical Centre | J47: WF | K47: WF-3 | L47: Leyton Collaborative
A48: 2021-11-01 | B48: F86712 | C48: 3352 | D48: 77 | E48: 73 | F48: 35 | G48: 66 | H48: 16 | I48: Hampton Medical Centre | J48: WF | K48: WF-4 | L48: Forest Integrated Health
A49: 2021-11-01 | B49: F86001 | C49: 7738 | D49: 206 | E49: 175 | F49: 109 | G49: 120 | H49: 31 | I49: The Firs | J49: WF | K49: WF-6 | L49: Central Walthamstow
A50: 2021-11-01 | B50: F86689 | C50: 4383 | D50: 87 | E50: 76 | F50: 50 | G50: 60 | H50: 45 | I50: The Bailey Practice | J50: WF | K50: WF-1 | L50: Chingford/ Walthamstow
A51: 2021-11-01 | B51: F86666 | C51: 14772 | D51: 273 | E51: 262 | F51: 159 | G51: 196 | H51: 137 | I51: The Harrow Road Surgery | J51: WF | K51: WF-5 | L51: South Leytonstone
A52: 2021-11-01 | B52: F86664 | C52: 8409 | D52: 204 | E52: 156 | F52: 116 | G52: 142 | H52: 87 | I52: Larkshall Medical Centre | J52: WF | K52: WF-1 | L52: Chingford/ Walthamstow
A53: 2021-11-01 | B53: F86700 | C53: 3881 | D53: 183 | E53: 180 | F53: 116 | G53: 124 | H53: 62 | I53: Kings Head Medical Practice | J53: WF | K53: WF-1 | L53: Chingford/ Walthamstow
A54: 2021-11-01 | B54: F86701 | C54: 3774 | D54: 80 | E54: 79 | F54: 47 | G54: 67 | H54: 35 | I54: Kiyani Medical Practice | J54: WF | K54: WF-5 | L54: South Leytonstone
A55: 2021-11-01 | B55: F86625 | C55: 5884 | D55: 159 | E55: 139 | F55: 66 | G55: 111 | H55: 56 | I55: LL Medical Care (Agarwal & Agrwal Practice) | J55: WF | K55: WF-5 | L55: South Leytonstone
A56: 2021-11-01 | B56: F86705 | C56: 3535 | D56: 65 | E56: 61 | F56: 39 | G56: 45 | H56: 25 | I56: The Langthorne Sharma Family Practice | J56: WF | K56: WF-5 | L56: South Leytonstone
A57: 2021-11-01 | B57: F86607 | C57: 15178 | D57: 263 | E57: 240 | F57: 144 | G57: 204 | H57: 139 | I57: Addison Road Medical Practice | J57: WF | K57: WF-6 | L57: Central Walthamstow
A58: 2021-11-01 | B58: F86005 | C58: 9412 | D58: 199 | E58: 184 | F58: 96 | G58: 133 | H58: 54 | I58: The Penryhn Surgery | J58: WF | K58: WF-1 | L58: Chingford/ Walthamstow
A59: 2021-11-01 | B59: F86708 | C59: 2860 | D59: 61 | E59: 59 | F59: 32 | G59: 48 | H59: 24 | I59: Claremont Medical Centre | J59: WF | K59: WF-6 | L59: Central Walthamstow
A60: 2021-11-01 | B60: F86006 | C60: 6725 | D60: 151 | E60: 110 | F60: 70 | G60: 89 | H60: 43 | I60: Seymour Medical Centre | J60: WF | K60: WF-7 | L60: Walthamstow West
A61: 2021-11-01 | B61: F86626 | C61: 6898 | D61: 107 | E61: 92 | F61: 43 | G61: 64 | H61: 23 | I61: Dr Shantir Practice | J61: WF | K61: WF-1 | L61: Chingford/ Walthamstow
A62: 2021-11-01 | B62: F86030 | C62: 8118 | D62: 168 | E62: 139 | F62: 102 | G62: 132 | H62: 89 | I62: Queens Road Medical Centre | J62: WF | K62: WF-7 | L62: Walthamstow West
A63: 2021-11-01 | B63: F86062 | C63: 7292 | D63: 161 | E63: 112 | F63: 72 | G63: 122 | H63: 56 | I63: Grove Surgery | J63: WF | K63: WF-7 | L63: Walthamstow West
A64: 2021-11-01 | B64: F86045 | C64: 2031 | D64: 52 | E64: 45 | F64: 17 | G64: 40 | H64: 30 | I64: High Road Surgery | J64: WF | K64: WF-5 | L64: South Leytonstone
A65: 2021-11-01 | B65: Y01839 | C65: 6320 | D65: 159 | E65: 139 | F65: 64 | G65: 123 | H65: 32 | I65: Lime Tree & Sinnott Healthcare Ltd | J65: WF | K65: WF-1 | L65: Chingford/ Walthamstow
A66: 2021-11-01 | B66: F86621 | C66: 6442 | D66: 159 | E66: 145 | F66: 83 | G66: 129 | H66: 51 | I66: Green Man Medical Centre | J66: WF | K66: WF-5 | L66: South Leytonstone
A67: 2021-11-01 | B67: Y01291 | C67: 9061 | D67: 393 | E67: 362 | F67: 220 | G67: 266 | H67: 182 | I67: Chingford Medical Practice | J67: WF | K67: WF-2 | L67: Chingford E4
A68: 2021-11-01 | B68: F86058 | C68: 16780 | D68: 258 | E68: 210 | F68: 163 | G68: 182 | H68: 108 | I68: St James Medical Practice Ltd | J68: WF | K68: WF-7 | L68: Walthamstow West
A69: 2021-11-01 | B69: F86644 | C69: 9517 | D69: 225 | E69: 218 | F69: 85 | G69: 145 | H69: 58 | I69: Waltham Forest Community & Family Health Services Ltd | J69: WF | K69: WF-6 | L69: Central Walthamstow
A70: 2021-12-01 | B70: F86607 | C70: 15284 | D70: 262 | E70: 241 | F70: 147 | G70: 202 | H70: 137 | I70: Addison Road Medical Practice | J70: WF | K70: WF-6 | L70: Central Walthamstow
A71: 2021-12-01 | B71: F86001 | C71: 7751 | D71: 212 | E71: 179 | F71: 112 | G71: 127 | H71: 31 | I71: The Firs | J71: WF | K71: WF-6 | L71: Central Walthamstow
A72: 2021-12-01 | B72: F86030 | C72: 8099 | D72: 169 | E72: 141 | F72: 103 | G72: 132 | H72: 90 | I72: Queens Road Medical Centre | J72: WF | K72: WF-7 | L72: Walthamstow West
A73: 2021-12-01 | B73: F86036 | C73: 14979 | D73: 320 | E73: 234 | F73: 153 | G73: 215 | H73: 88 | I73: The Allum Medical Centre | J73: WF | K73: WF-4 | L73: Forest Integrated Health
A74: 2021-12-01 | B74: F86088 | C74: 4948 | D74: 111 | E74: 96 | F74: 38 | G74: 86 | H74: 51 | I74: The Lyndhurst Surgery | J74: WF | K74: WF-4 | L74: Forest Integrated Health
A75: 2021-12-01 | B75: F86062 | C75: 7280 | D75: 158 | E75: 112 | F75: 71 | G75: 123 | H75: 61 | I75: Grove Surgery | J75: WF | K75: WF-7 | L75: Walthamstow West
A76: 2021-12-01 | B76: F86705 | C76: 3531 | D76: 67 | E76: 61 | F76: 42 | G76: 48 | H76: 21 | I76: The Langthorne Sharma Family Practice | J76: WF | K76: WF-5 | L76: South Leytonstone
A77: 2021-12-01 | B77: F86621 | C77: 6435 | D77: 162 | E77: 145 | F77: 91 | G77: 134 | H77: 50 | I77: Green Man Medical Centre | J77: WF | K77: WF-5 | L77: South Leytonstone
A78: 2021-12-01 | B78: F86701 | C78: 3777 | D78: 84 | E78: 81 | F78: 57 | G78: 70 | H78: 56 | I78: Kiyani Medical Practice | J78: WF | K78: WF-5 | L78: South Leytonstone
A79: 2021-12-01 | B79: F86650 | C79: 8073 | D79: 143 | E79: 128 | F79: 62 | G79: 91 | H79: 91 | I79: Lime Tree Surgery | J79: WF | K79: WF-4 | L79: Forest Integrated Health
A80: 2021-12-01 | B80: F86712 | C80: 3373 | D80: 80 | E80: 73 | F80: 39 | G80: 69 | H80: 17 | I80: Hampton Medical Centre | J80: WF | K80: WF-4 | L80: Forest Integrated Health
A81: 2021-12-01 | B81: F86045 | C81: 2022 | D81: 51 | E81: 46 | F81: 26 | G81: 40 | H81: 34 | I81: High Road Surgery | J81: WF | K81: WF-5 | L81: South Leytonstone
A82: 2021-12-01 | B82: F86696 | C82: 6767 | D82: 128 | E82: 118 | F82: 69 | G82: 96 | H82: 48 | I82: Francis Road Medical Centre | J82: WF | K82: WF-4 | L82: Forest Integrated Health
A83: 2021-12-01 | B83: F86666 | C83: 14845 | D83: 270 | E83: 258 | F83: 151 | G83: 193 | H83: 137 | I83: The Harrow Road Surgery | J83: WF | K83: WF-5 | L83: South Leytonstone
A84: 2021-12-01 | B84: F86044 | C84: 10257 | D84: 109 | E84: 97 | F84: 45 | G84: 74 | H84: 23 | I84: Crawley Road Medical Centre | J84: WF | K84: WF-4 | L84: Forest Integrated Health
A85: 2021-12-01 | B85: F86625 | C85: 5903 | D85: 157 | E85: 137 | F85: 66 | G85: 112 | H85: 46 | I85: LL Medical Care (Agarwal & Agrwal Practice) | J85: WF | K85: WF-5 | L85: South Leytonstone
A86: 2021-12-01 | B86: F86708 | C86: 2882 | D86: 58 | E86: 56 | F86: 30 | G86: 45 | H86: 24 | I86: Claremont Medical Centre | J86: WF | K86: WF-6 | L86: Central Walthamstow
A87: 2021-12-01 | B87: F86616 | C87: 7861 | D87: 301 | E87: 264 | F87: 211 | G87: 183 | H87: 105 | I87: Old Church Surgery | J87: WF | K87: WF-2 | L87: Chingford E4
A88: 2021-12-01 | B88: F86058 | C88: 16622 | D88: 253 | E88: 212 | F88: 164 | G88: 180 | H88: 106 | I88: St James Medical Practice Ltd | J88: WF | K88: WF-7 | L88: Walthamstow West
A89: 2021-12-01 | B89: F86689 | C89: 4382 | D89: 87 | E89: 76 | F89: 54 | G89: 59 | H89: 35 | I89: The Bailey Practice | J89: WF | K89: WF-1 | L89: Chingford/ Walthamstow
A90: 2021-12-01 | B90: F86626 | C90: 6913 | D90: 107 | E90: 93 | F90: 47 | G90: 63 | H90: 18 | I90: Dr Shantir Practice | J90: WF | K90: WF-1 | L90: Chingford/ Walthamstow
A91: 2021-12-01 | B91: F86664 | C91: 8427 | D91: 209 | E91: 163 | F91: 109 | G91: 150 | H91: 64 | I91: Larkshall Medical Centre | J91: WF | K91: WF-1 | L91: Chingford/ Walthamstow
A92: 2021-12-01 | B92: Y01291 | C92: 9086 | D92: 388 | E92: 358 | F92: 220 | G92: 260 | H92: 183 | I92: Chingford Medical Practice | J92: WF | K92: WF-2 | L92: Chingford E4
A93: 2021-12-01 | B93: F86627 | C93: 13317 | D93: 540 | E93: 472 | F93: 239 | G93: 354 | H93: 120 | I93: Churchill Medical Centre | J93: WF | K93: WF-2 | L93: Chingford E4
A94: 2021-12-01 | B94: F86078 | C94: 6916 | D94: 345 | E94: 109 | F94: 121 | G94: 208 | H94: 54 | I94: The Ridgeway Surgery | J94: WF | K94: WF-2 | L94: Chingford E4
A95: 2021-12-01 | B95: F86700 | C95: 3892 | D95: 182 | E95: 181 | F95: 122 | G95: 122 | H95: 61 | I95: Kings Head Medical Practice | J95: WF | K95: WF-1 | L95: Chingford/ Walthamstow
A96: 2021-12-01 | B96: Y01839 | C96: 6291 | D96: 158 | E96: 140 | F96: 62 | G96: 122 | H96: 32 | I96: Lime Tree & Sinnott Healthcare Ltd | J96: WF | K96: WF-1 | L96: Chingford/ Walthamstow
A97: 2021-12-01 | B97: F86679 | C97: 6211 | D97: 82 | E97: 76 | F97: 57 | G97: 68 | H97: 42 | I97: Higham Hill Medical Centre | J97: WF | K97: WF-7 | L97: Walthamstow West
A98: 2021-12-01 | B98: F86006 | C98: 6750 | D98: 149 | E98: 110 | F98: 72 | G98: 88 | H98: 42 | I98: Seymour Medical Centre | J98: WF | K98: WF-7 | L98: Walthamstow West
A99: 2021-12-01 | B99: F86086 | C99: 6193 | D99: 87 | E99: 65 | F99: 41 | G99: 51 | H99: 20 | I99: Dr Dhital Practice | J99: WF | K99: WF-6 | L99: Central Walthamstow
A100: 2021-12-01 | B100: F86038 | C100: 11364 | D100: 205 | E100: 162 | F100: 128 | G100: 150 | H100: 89 | I100: Sma Medical Centre | J100: WF | K100: WF-3 | L100: Leyton Collaborative
A101: 2021-12-01 | B101: F86644 | C101: 9492 | D101: 223 | E101: 216 | F101: 91 | G101: 143 | H101: 57 | I101: Waltham Forest Community & Family Health Services Ltd | J101: WF | K101: WF-6 | L101: Central Walthamstow
A102: 2021-12-01 | B102: F86011 | C102: 9624 | D102: 226 | E102: 167 | F102: 139 | G102: 157 | H102: 94 | I102: The Manor Practice | J102: WF | K102: WF-3 | L102: Leyton Collaborative
A103: 2021-12-01 | B103: F86005 | C103: 9513 | D103: 193 | E103: 179 | F103: 88 | G103: 126 | H103: 55 | I103: The Penryhn Surgery | J103: WF | K103: WF-1 | L103: Chingford/ Walthamstow
A104: 2022-01-01 | B104: F86001 | C104: 7743 | D104: 212 | E104: 179 | F104: 109 | G104: 129 | H104: 33 | I104: The Firs | J104: WF | K104: WF-6 | L104: Central Walthamstow
A105: 2022-01-01 | B105: F86045 | C105: 2020 | D105: 48 | E105: 44 | F105: 33 | G105: 39 | H105: 34 | I105: High Road Surgery | J105: WF | K105: WF-5 | L105: South Leytonstone
A106: 2022-01-01 | B106: Y01839 | C106: 6271 | D106: 156 | E106: 137 | F106: 63 | G106: 118 | H106: 31 | I106: Lime Tree & Sinnott Healthcare Ltd | J106: WF | K106: WF-1 | L106: Chingford/ Walthamstow
A107: 2022-01-01 | B107: F86621 | C107: 6394 | D107: 162 | E107: 144 | F107: 88 | G107: 133 | H107: 51 | I107: Green Man Medical Centre | J107: WF | K107: WF-5 | L107: South Leytonstone
A108: 2022-01-01 | B108: F86058 | C108: 16682 | D108: 249 | E108: 208 | F108: 165 | G108: 181 | H108: 109 | I108: St James Medical Practice Ltd | J108: WF | K108: WF-7 | L108: Walthamstow West
A109: 2022-01-01 | B109: F86626 | C109: 6933 | D109: 108 | E109: 94 | F109: 48 | G109: 64 | H109: 17 | I109: Dr Shantir Practice | J109: WF | K109: WF-1 | L109: Chingford/ Walthamstow
A110: 2022-01-01 | B110: F86036 | C110: 14935 | D110: 312 | E110: 231 | F110: 160 | G110: 209 | H110: 86 | I110: The Allum Medical Centre | J110: WF | K110: WF-4 | L110: Forest Integrated Health
A111: 2022-01-01 | B111: Y01291 | C111: 9075 | D111: 381 | E111: 349 | F111: 219 | G111: 260 | H111: 193 | I111: Chingford Medical Practice | J111: WF | K111: WF-2 | L111: Chingford E4
A112: 2022-01-01 | B112: F86005 | C112: 9491 | D112: 188 | E112: 175 | F112: 81 | G112: 124 | H112: 52 | I112: The Penryhn Surgery | J112: WF | K112: WF-1 | L112: Chingford/ Walthamstow
A113: 2022-01-01 | B113: F86666 | C113: 14888 | D113: 269 | E113: 255 | F113: 158 | G113: 193 | H113: 135 | I113: The Harrow Road Surgery | J113: WF | K113: WF-5 | L113: South Leytonstone
A114: 2022-01-01 | B114: F86689 | C114: 4374 | D114: 85 | E114: 75 | F114: 52 | G114: 58 | H114: 24 | I114: The Bailey Practice | J114: WF | K114: WF-1 | L114: Chingford/ Walthamstow
A115: 2022-01-01 | B115: F86006 | C115: 6771 | D115: 147 | E115: 106 | F115: 71 | G115: 88 | H115: 45 | I115: Seymour Medical Centre | J115: WF | K115: WF-7 | L115: Walthamstow West
A116: 2022-01-01 | B116: F86705 | C116: 3547 | D116: 65 | E116: 60 | F116: 40 | G116: 46 | H116: 21 | I116: The Langthorne Sharma Family Practice | J116: WF | K116: WF-5 | L116: South Leytonstone
A117: 2022-01-01 | B117: F86664 | C117: 8437 | D117: 210 | E117: 164 | F117: 106 | G117: 151 | H117: 44 | I117: Larkshall Medical Centre | J117: WF | K117: WF-1 | L117: Chingford/ Walthamstow
A118: 2022-01-01 | B118: F86625 | C118: 5900 | D118: 157 | E118: 135 | F118: 72 | G118: 113 | H118: 47 | I118: LL Medical Care (Agarwal & Agrwal Practice) | J118: WF | K118: WF-5 | L118: South Leytonstone
A119: 2022-01-01 | B119: F86701 | C119: 3787 | D119: 81 | E119: 79 | F119: 55 | G119: 76 | H119: 56 | I119: Kiyani Medical Practice | J119: WF | K119: WF-5 | L119: South Leytonstone
A120: 2022-01-01 | B120: F86607 | C120: 15376 | D120: 259 | E120: 238 | F120: 145 | G120: 202 | H120: 133 | I120: Addison Road Medical Practice | J120: WF | K120: WF-6 | L120: Central Walthamstow
A121: 2022-01-01 | B121: F86700 | C121: 3887 | D121: 177 | E121: 177 | F121: 121 | G121: 117 | H121: 51 | I121: Kings Head Medical Practice | J121: WF | K121: WF-1 | L121: Chingford/ Walthamstow
A122: 2022-01-01 | B122: F86062 | C122: 7233 | D122: 154 | E122: 108 | F122: 71 | G122: 123 | H122: 58 | I122: Grove Surgery | J122: WF | K122: WF-7 | L122: Walthamstow West
A123: 2022-01-01 | B123: F86708 | C123: 2894 | D123: 56 | E123: 54 | F123: 29 | G123: 44 | H123: 24 | I123: Claremont Medical Centre | J123: WF | K123: WF-6 | L123: Central Walthamstow
A124: 2022-01-01 | B124: F86627 | C124: 13287 | D124: 536 | E124: 461 | F124: 239 | G124: 353 | H124: 119 | I124: Churchill Medical Centre | J124: WF | K124: WF-2 | L124: Chingford E4
A125: 2022-01-01 | B125: F86650 | C125: 8075 | D125: 142 | E125: 134 | F125: 62 | G125: 91 | H125: 98 | I125: Lime Tree Surgery | J125: WF | K125: WF-4 | L125: Forest Integrated Health
A126: 2022-01-01 | B126: F86030 | C126: 8128 | D126: 169 | E126: 141 | F126: 102 | G126: 133 | H126: 89 | I126: Queens Road Medical Centre | J126: WF | K126: WF-7 | L126: Walthamstow West
A127: 2022-01-01 | B127: F86616 | C127: 7911 | D127: 291 | E127: 255 | F127: 205 | G127: 174 | H127: 95 | I127: Old Church Surgery | J127: WF | K127: WF-2 | L127: Chingford E4
A128: 2022-01-01 | B128: F86044 | C128: 10358 | D128: 113 | E128: 100 | F128: 49 | G128: 76 | H128: 24 | I128: Crawley Road Medical Centre | J128: WF | K128: WF-4 | L128: Forest Integrated Health
A129: 2022-01-01 | B129: F86086 | C129: 6191 | D129: 87 | E129: 64 | F129: 44 | G129: 53 | H129: 22 | I129: Dr Dhital Practice | J129: WF | K129: WF-6 | L129: Central Walthamstow
A130: 2022-01-01 | B130: F86679 | C130: 6272 | D130: 76 | E130: 71 | F130: 54 | G130: 62 | H130: 34 | I130: Higham Hill Medical Centre | J130: WF | K130: WF-7 | L130: Walthamstow West
A131: 2022-01-01 | B131: F86011 | C131: 9658 | D131: 220 | E131: 165 | F131: 133 | G131: 151 | H131: 89 | I131: The Manor Practice | J131: WF | K131: WF-3 | L131: Leyton Collaborative
A132: 2022-01-01 | B132: F86696 | C132: 6837 | D132: 126 | E132: 118 | F132: 68 | G132: 95 | H132: 50 | I132: Francis Road Medical Centre | J132: WF | K132: WF-4 | L132: Forest Integrated Health
A133: 2022-01-01 | B133: F86078 | C133: 6927 | D133: 337 | E133: 108 | F133: 111 | G133: 205 | H133: 49 | I133: The Ridgeway Surgery | J133: WF | K133: WF-2 | L133: Chingford E4
A134: 2022-01-01 | B134: F86088 | C134: 4967 | D134: 115 | E134: 97 | F134: 48 | G134: 89 | H134: 56 | I134: The Lyndhurst Surgery | J134: WF | K134: WF-4 | L134: Forest Integrated Health
A135: 2022-01-01 | B135: F86712 | C135: 3370 | D135: 79 | E135: 71 | F135: 41 | G135: 67 | H135: 17 | I135: Hampton Medical Centre | J135: WF | K135: WF-4 | L135: Forest Integrated Health
A136: 2022-01-01 | B136: F86644 | C136: 9406 | D136: 219 | E136: 211 | F136: 89 | G136: 144 | H136: 55 | I136: Waltham Forest Community & Family Health Services Ltd | J136: WF | K136: WF-6 | L136: Central Walthamstow
A137: 2022-01-01 | B137: F86038 | C137: 11371 | D137: 202 | E137: 159 | F137: 134 | G137: 146 | H137: 87 | I137: Sma Medical Centre | J137: WF | K137: WF-3 | L137: Leyton Collaborative
A138: 2022-02-01 | B138: F86058 | C138: 16789 | D138: 248 | E138: 210 | F138: 165 | G138: 185 | H138: 113 | I138: St James Medical Practice Ltd | J138: WF | K138: WF-7 | L138: Walthamstow West
A139: 2022-02-01 | B139: F86708 | C139: 2789 | D139: 56 | E139: 53 | F139: 30 | G139: 44 | H139: 25 | I139: Claremont Medical Centre | J139: WF | K139: WF-6 | L139: Central Walthamstow
A140: 2022-02-01 | B140: F86086 | C140: 6237 | D140: 86 | E140: 63 | F140: 40 | G140: 53 | H140: 21 | I140: Dr Dhital Practice | J140: WF | K140: WF-6 | L140: Central Walthamstow
A141: 2022-02-01 | B141: F86679 | C141: 6309 | D141: 74 | E141: 69 | F141: 52 | G141: 60 | H141: 34 | I141: Higham Hill Medical Centre | J141: WF | K141: WF-7 | L141: Walthamstow West
A142: 2022-02-01 | B142: F86664 | C142: 8450 | D142: 211 | E142: 167 | F142: 110 | G142: 152 | H142: 40 | I142: Larkshall Medical Centre | J142: WF | K142: WF-1 | L142: Chingford/ Walthamstow
A143: 2022-02-01 | B143: F86666 | C143: 14919 | D143: 262 | E143: 250 | F143: 161 | G143: 186 | H143: 136 | I143: The Harrow Road Surgery | J143: WF | K143: WF-5 | L143: South Leytonstone
A144: 2022-02-01 | B144: F86005 | C144: 9507 | D144: 189 | E144: 176 | F144: 81 | G144: 127 | H144: 50 | I144: The Penryhn Surgery | J144: WF | K144: WF-1 | L144: Chingford/ Walthamstow
A145: 2022-02-01 | B145: F86006 | C145: 6788 | D145: 145 | E145: 104 | F145: 74 | G145: 89 | H145: 45 | I145: Seymour Medical Centre | J145: WF | K145: WF-7 | L145: Walthamstow West
A146: 2022-02-01 | B146: F86036 | C146: 14841 | D146: 306 | E146: 226 | F146: 159 | G146: 204 | H146: 87 | I146: The Allum Medical Centre | J146: WF | K146: WF-4 | L146: Forest Integrated Health
A147: 2022-02-01 | B147: F86038 | C147: 11266 | D147: 194 | E147: 153 | F147: 138 | G147: 141 | H147: 100 | I147: Sma Medical Centre | J147: WF | K147: WF-3 | L147: Leyton Collaborative
A148: 2022-02-01 | B148: F86607 | C148: 15420 | D148: 261 | E148: 235 | F148: 140 | G148: 198 | H148: 134 | I148: Addison Road Medical Practice | J148: WF | K148: WF-6 | L148: Central Walthamstow
A149: 2022-02-01 | B149: F86044 | C149: 10506 | D149: 114 | E149: 102 | F149: 51 | G149: 77 | H149: 24 | I149: Crawley Road Medical Centre | J149: WF | K149: WF-4 | L149: Forest Integrated Health
A150: 2022-02-01 | B150: F86626 | C150: 6974 | D150: 104 | E150: 90 | F150: 50 | G150: 63 | H150: 18 | I150: Dr Shantir Practice | J150: WF | K150: WF-1 | L150: Chingford/ Walthamstow
A151: 2022-02-01 | B151: F86011 | C151: 9691 | D151: 218 | E151: 165 | F151: 127 | G151: 147 | H151: 80 | I151: The Manor Practice | J151: WF | K151: WF-3 | L151: Leyton Collaborative
A152: 2022-02-01 | B152: F86030 | C152: 8095 | D152: 167 | E152: 139 | F152: 106 | G152: 131 | H152: 87 | I152: Queens Road Medical Centre | J152: WF | K152: WF-7 | L152: Walthamstow West
A153: 2022-02-01 | B153: F86705 | C153: 3542 | D153: 63 | E153: 58 | F153: 40 | G153: 45 | H153: 21 | I153: The Langthorne Sharma Family Practice | J153: WF | K153: WF-5 | L153: South Leytonstone
A154: 2022-02-01 | B154: F86078 | C154: 6914 | D154: 329 | E154: 115 | F154: 113 | G154: 196 | H154: 50 | I154: The Ridgeway Surgery | J154: WF | K154: WF-2 | L154: Chingford E4
A155: 2022-02-01 | B155: Y01839 | C155: 6266 | D155: 149 | E155: 132 | F155: 63 | G155: 113 | H155: 32 | I155: Lime Tree & Sinnott Healthcare Ltd | J155: WF | K155: WF-1 | L155: Chingford/ Walthamstow
A156: 2022-02-01 | B156: F86644 | C156: 9371 | D156: 216 | E156: 208 | F156: 87 | G156: 140 | H156: 58 | I156: Waltham Forest Community & Family Health Services Ltd | J156: WF | K156: WF-6 | L156: Central Walthamstow
A157: 2022-02-01 | B157: F86700 | C157: 3856 | D157: 174 | E157: 174 | F157: 116 | G157: 117 | H157: 45 | I157: Kings Head Medical Practice | J157: WF | K157: WF-1 | L157: Chingford/ Walthamstow
A158: 2022-02-01 | B158: F86045 | C158: 2025 | D158: 48 | E158: 44 | F158: 33 | G158: 39 | H158: 34 | I158: High Road Surgery | J158: WF | K158: WF-5 | L158: South Leytonstone
A159: 2022-02-01 | B159: F86621 | C159: 6384 | D159: 163 | E159: 144 | F159: 86 | G159: 134 | H159: 45 | I159: Green Man Medical Centre | J159: WF | K159: WF-5 | L159: South Leytonstone
A160: 2022-02-01 | B160: F86627 | C160: 13275 | D160: 535 | E160: 458 | F160: 252 | G160: 351 | H160: 121 | I160: Churchill Medical Centre | J160: WF | K160: WF-2 | L160: Chingford E4
A161: 2022-02-01 | B161: F86088 | C161: 4998 | D161: 112 | E161: 96 | F161: 45 | G161: 86 | H161: 57 | I161: The Lyndhurst Surgery | J161: WF | K161: WF-4 | L161: Forest Integrated Health
A162: 2022-02-01 | B162: Y01291 | C162: 9176 | D162: 377 | E162: 347 | F162: 224 | G162: 255 | H162: 194 | I162: Chingford Medical Practice | J162: WF | K162: WF-2 | L162: Chingford E4
A163: 2022-02-01 | B163: F86650 | C163: 8096 | D163: 144 | E163: 135 | F163: 62 | G163: 93 | H163: 98 | I163: Lime Tree Surgery | J163: WF | K163: WF-4 | L163: Forest Integrated Health
A164: 2022-02-01 | B164: F86062 | C164: 7198 | D164: 152 | E164: 110 | F164: 68 | G164: 123 | H164: 59 | I164: Grove Surgery | J164: WF | K164: WF-7 | L164: Walthamstow West
A165: 2022-02-01 | B165: F86689 | C165: 4371 | D165: 85 | E165: 74 | F165: 53 | G165: 58 | H165: 23 | I165: The Bailey Practice | J165: WF | K165: WF-1 | L165: Chingford/ Walthamstow
A166: 2022-02-01 | B166: F86625 | C166: 5908 | D166: 152 | E166: 131 | F166: 66 | G166: 112 | H166: 48 | I166: LL Medical Care (Agarwal & Agrwal Practice) | J166: WF | K166: WF-5 | L166: South Leytonstone
A167: 2022-02-01 | B167: F86696 | C167: 6864 | D167: 128 | E167: 116 | F167: 71 | G167: 96 | H167: 48 | I167: Francis Road Medical Centre | J167: WF | K167: WF-4 | L167: Forest Integrated Health
A168: 2022-02-01 | B168: F86616 | C168: 7956 | D168: 284 | E168: 249 | F168: 203 | G168: 169 | H168: 91 | I168: Old Church Surgery | J168: WF | K168: WF-2 | L168: Chingford E4
A169: 2022-02-01 | B169: F86701 | C169: 3822 | D169: 83 | E169: 80 | F169: 53 | G169: 77 | H169: 56 | I169: Kiyani Medical Practice | J169: WF | K169: WF-5 | L169: South Leytonstone
A170: 2022-02-01 | B170: F86712 | C170: 3371 | D170: 75 | E170: 68 | F170: 38 | G170: 65 | H170: 16 | I170: Hampton Medical Centre | J170: WF | K170: WF-4 | L170: Forest Integrated Health
A171: 2022-02-01 | B171: F86001 | C171: 7727 | D171: 207 | E171: 182 | F171: 108 | G171: 126 | H171: 31 | I171: The Firs | J171: WF | K171: WF-6 | L171: Central Walthamstow
A172: 2022-03-01 | B172: F86708 | C172: 2788 | D172: 55 | E172: 51 | F172: 29 | G172: 41 | H172: 22 | I172: Claremont Medical Centre | J172: WF | K172: WF-6 | L172: Central Walthamstow
A173: 2022-03-01 | B173: F86644 | C173: 9330 | D173: 217 | E173: 207 | F173: 88 | G173: 142 | H173: 65 | I173: Waltham Forest Community & Family Health Services Ltd | J173: WF | K173: WF-6 | L173: Central Walthamstow
A174: 2022-03-01 | B174: F86001 | C174: 7737 | D174: 203 | E174: 182 | F174: 103 | G174: 125 | H174: 34 | I174: The Firs | J174: WF | K174: WF-6 | L174: Central Walthamstow
A175: 2022-03-01 | B175: F86086 | C175: 6251 | D175: 88 | E175: 66 | F175: 39 | G175: 55 | H175: 21 | I175: Dr Dhital Practice | J175: WF | K175: WF-6 | L175: Central Walthamstow
A176: 2022-03-01 | B176: F86679 | C176: 6359 | D176: 73 | E176: 68 | F176: 50 | G176: 59 | H176: 30 | I176: Higham Hill Medical Centre | J176: WF | K176: WF-7 | L176: Walthamstow West
A177: 2022-03-01 | B177: F86078 | C177: 6875 | D177: 320 | E177: 112 | F177: 124 | G177: 191 | H177: 47 | I177: The Ridgeway Surgery | J177: WF | K177: WF-2 | L177: Chingford E4
A178: 2022-03-01 | B178: F86627 | C178: 13278 | D178: 538 | E178: 458 | F178: 256 | G178: 352 | H178: 120 | I178: Churchill Medical Centre | J178: WF | K178: WF-2 | L178: Chingford E4
A179: 2022-03-01 | B179: F86616 | C179: 7971 | D179: 276 | E179: 240 | F179: 198 | G179: 167 | H179: 86 | I179: Old Church Surgery | J179: WF | K179: WF-2 | L179: Chingford E4
A180: 2022-03-01 | B180: F86036 | C180: 14787 | D180: 305 | E180: 227 | F180: 165 | G180: 206 | H180: 95 | I180: The Allum Medical Centre | J180: WF | K180: WF-4 | L180: Forest Integrated Health
A181: 2022-03-01 | B181: F86038 | C181: 11108 | D181: 192 | E181: 153 | F181: 150 | G181: 144 | H181: 97 | I181: Sma Medical Centre | J181: WF | K181: WF-3 | L181: Leyton Collaborative
A182: 2022-03-01 | B182: F86011 | C182: 9693 | D182: 218 | E182: 167 | F182: 116 | G182: 147 | H182: 59 | I182: The Manor Practice | J182: WF | K182: WF-3 | L182: Leyton Collaborative
A183: 2022-03-01 | B183: Y01291 | C183: 9168 | D183: 367 | E183: 360 | F183: 216 | G183: 247 | H183: 196 | I183: Chingford Medical Practice | J183: WF | K183: WF-2 | L183: Chingford E4
A184: 2022-03-01 | B184: F86058 | C184: 16718 | D184: 243 | E184: 205 | F184: 161 | G184: 181 | H184: 110 | I184: St James Medical Practice Ltd | J184: WF | K184: WF-7 | L184: Walthamstow West
A185: 2022-03-01 | B185: F86626 | C185: 7000 | D185: 105 | E185: 89 | F185: 53 | G185: 64 | H185: 19 | I185: Dr Shantir Practice | J185: WF | K185: WF-1 | L185: Chingford/ Walthamstow
A186: 2022-03-01 | B186: F86005 | C186: 9521 | D186: 188 | E186: 174 | F186: 91 | G186: 125 | H186: 53 | I186: The Penryhn Surgery | J186: WF | K186: WF-1 | L186: Chingford/ Walthamstow
A187: 2022-03-01 | B187: F86664 | C187: 8452 | D187: 207 | E187: 165 | F187: 107 | G187: 150 | H187: 41 | I187: Larkshall Medical Centre | J187: WF | K187: WF-1 | L187: Chingford/ Walthamstow
A188: 2022-03-01 | B188: Y01839 | C188: 6246 | D188: 150 | E188: 128 | F188: 68 | G188: 112 | H188: 37 | I188: Lime Tree & Sinnott Healthcare Ltd | J188: WF | K188: WF-1 | L188: Chingford/ Walthamstow
A189: 2022-03-01 | B189: F86700 | C189: 3846 | D189: 171 | E189: 171 | F189: 120 | G189: 118 | H189: 48 | I189: Kings Head Medical Practice | J189: WF | K189: WF-1 | L189: Chingford/ Walthamstow
A190: 2022-03-01 | B190: F86689 | C190: 4374 | D190: 83 | E190: 71 | F190: 47 | G190: 58 | H190: 20 | I190: The Bailey Practice | J190: WF | K190: WF-1 | L190: Chingford/ Walthamstow
A191: 2022-03-01 | B191: F86044 | C191: 10689 | D191: 115 | E191: 102 | F191: 52 | G191: 79 | H191: 24 | I191: Crawley Road Medical Centre | J191: WF | K191: WF-4 | L191: Forest Integrated Health
A192: 2022-03-01 | B192: F86625 | C192: 5881 | D192: 148 | E192: 130 | F192: 65 | G192: 111 | H192: 47 | I192: LL Medical Care (Agarwal & Agrwal Practice) | J192: WF | K192: WF-5 | L192: South Leytonstone
A193: 2022-03-01 | B193: F86701 | C193: 3829 | D193: 85 | E193: 81 | F193: 55 | G193: 78 | H193: 58 | I193: Kiyani Medical Practice | J193: WF | K193: WF-5 | L193: South Leytonstone
A194: 2022-03-01 | B194: F86045 | C194: 2027 | D194: 49 | E194: 46 | F194: 33 | G194: 40 | H194: 36 | I194: High Road Surgery | J194: WF | K194: WF-5 | L194: South Leytonstone
A195: 2022-03-01 | B195: F86666 | C195: 14948 | D195: 261 | E195: 249 | F195: 166 | G195: 188 | H195: 140 | I195: The Harrow Road Surgery | J195: WF | K195: WF-5 | L195: South Leytonstone
A196: 2022-03-01 | B196: F86607 | C196: 15508 | D196: 261 | E196: 235 | F196: 136 | G196: 199 | H196: 133 | I196: Addison Road Medical Practice | J196: WF | K196: WF-6 | L196: Central Walthamstow
A197: 2022-03-01 | B197: F86705 | C197: 3535 | D197: 61 | E197: 57 | F197: 39 | G197: 45 | H197: 21 | I197: The Langthorne Sharma Family Practice | J197: WF | K197: WF-5 | L197: South Leytonstone
A198: 2022-03-01 | B198: F86030 | C198: 8107 | D198: 161 | E198: 135 | F198: 99 | G198: 126 | H198: 84 | I198: Queens Road Medical Centre | J198: WF | K198: WF-7 | L198: Walthamstow West
A199: 2022-03-01 | B199: F86621 | C199: 6419 | D199: 159 | E199: 140 | F199: 85 | G199: 129 | H199: 42 | I199: Green Man Medical Centre | J199: WF | K199: WF-5 | L199: South Leytonstone
A200: 2022-03-01 | B200: F86006 | C200: 6820 | D200: 142 | E200: 101 | F200: 66 | G200: 88 | H200: 47 | I200: Seymour Medical Centre | J200: WF | K200: WF-7 | L200: Walthamstow West
... 74 more rows

Sheet Sheet6 (hidden)
A1: Systmone.Name | B1: Emis.Name
A2: 1.12_With_BP_below_140_90_(WF_Dashboards_CEG___CKD_KPI) | B2: NIS08-CKD02: evidence of CKD with BP below 140/90
A3: 1.13_On_Statins_(WF_Dashboards_CEG___CKD_KPI) | B3: NIS08-CKD03: evidence of CKD on Statins
A4: 1.14_Has_ACR_(WF_Dashboards_CEG___CKD_KPI) | B4: NIS08-CKD04: evidence of CKD has ACR
A5: 1.0_Listsize_(WF_Dashboards_CEG___CKD_KPI) | B5: [00-00] Listsize
A6: 1.1_Evidence_of_CKD_(WF_Dashboards_CEG___CKD_KPI) | B6: [08-CKD] eGFR evidence of CKD
A7: 1.11_QOF_coded_(WF_Dashboards_CEG___CKD_KPI) | B7: NIS08-CKD01: evidence of CKD coded (QOF v46)

Sheet Sheet7 (hidden)
A1: Rel_D | B1: OrgID | C1: 00-00 | D1: 08-CKD | E1: NIS08-CKD01 | F1: NIS08-CKD02 | G1: NIS08-CKD03 | H1: NIS08-CKD04 | I1: Practice | J1: Locality ID | K1: SubLocality ID | L1: SubLocality
A2: 2021-10-01 | B2: F86004 | C2: 16004 | D2: 835 | E2: 593 | F2: 369 | G2: 470 | H2: 116 | I2: Handsworth Medical Centre | J2: WF | K2: WF-2 | L2: Chingford E4
A3: 2021-10-01 | B3: F86018 | C3: 9961 | D3: 483 | E3: 372 | F3: 227 | G3: 261 | H3: 167 | I3: The Ecclesbourne Practice | J3: WF | K3: WF-4 | L3: Forest Integrated Health
A4: 2021-10-01 | B4: F86026 | C4: 7201 | D4: 278 | E4: 201 | F4: 173 | G4: 159 | H4: 140 | I4: Forest Surgery | J4: WF | K4: WF-1 | L4: Chingford/ Walthamstow
A5: 2021-10-01 | B5: F86074 | C5: 15274 | D5: 353 | E5: 264 | F5: 193 | G5: 234 | H5: 115 | I5: Leyton Healthcare (Oliver Road) | J5: WF | K5: WF-3 | L5: Leyton Collaborative
A6: 2021-10-01 | B6: F86638 | C6: 5297 | D6: 277 | E6: 177 | F6: 137 | G6: 187 | H6: 129 | I6: The Microfaculty | J6: WF | K6: WF-1 | L6: Chingford/ Walthamstow
A7: 2021-11-01 | B7: F86004 | C7: 15999 | D7: 835 | E7: 594 | F7: 384 | G7: 471 | H7: 121 | I7: Handsworth Medical Centre | J7: WF | K7: WF-2 | L7: Chingford E4
A8: 2021-11-01 | B8: F86018 | C8: 9970 | D8: 489 | E8: 373 | F8: 238 | G8: 263 | H8: 161 | I8: The Ecclesbourne Practice | J8: WF | K8: WF-4 | L8: Forest Integrated Health
A9: 2021-11-01 | B9: F86026 | C9: 7207 | D9: 279 | E9: 202 | F9: 175 | G9: 162 | H9: 138 | I9: Forest Surgery | J9: WF | K9: WF-1 | L9: Chingford/ Walthamstow
A10: 2021-11-01 | B10: F86074 | C10: 15282 | D10: 356 | E10: 264 | F10: 180 | G10: 234 | H10: 107 | I10: Leyton Healthcare (Oliver Road) | J10: WF | K10: WF-3 | L10: Leyton Collaborative
A11: 2021-11-01 | B11: F86638 | C11: 5283 | D11: 275 | E11: 174 | F11: 118 | G11: 186 | H11: 97 | I11: The Microfaculty | J11: WF | K11: WF-1 | L11: Chingford/ Walthamstow
A12: 2021-12-01 | B12: F86004 | C12: 15995 | D12: 831 | E12: 590 | F12: 385 | G12: 471 | H12: 119 | I12: Handsworth Medical Centre | J12: WF | K12: WF-2 | L12: Chingford E4
A13: 2021-12-01 | B13: F86018 | C13: 9955 | D13: 494 | E13: 374 | F13: 247 | G13: 270 | H13: 148 | I13: The Ecclesbourne Practice | J13: WF | K13: WF-4 | L13: Forest Integrated Health
A14: 2021-12-01 | B14: F86026 | C14: 7195 | D14: 276 | E14: 198 | F14: 182 | G14: 160 | H14: 138 | I14: Forest Surgery | J14: WF | K14: WF-1 | L14: Chingford/ Walthamstow
A15: 2021-12-01 | B15: F86074 | C15: 15239 | D15: 362 | E15: 266 | F15: 185 | G15: 237 | H15: 105 | I15: Leyton Healthcare (Oliver Road) | J15: WF | K15: WF-3 | L15: Leyton Collaborative
A16: 2021-12-01 | B16: F86638 | C16: 5256 | D16: 275 | E16: 176 | F16: 114 | G16: 186 | H16: 87 | I16: The Microfaculty | J16: WF | K16: WF-1 | L16: Chingford/ Walthamstow
A17: 2022-01-01 | B17: F86004 | C17: 15941 | D17: 821 | E17: 580 | F17: 390 | G17: 462 | H17: 119 | I17: Handsworth Medical Centre | J17: WF | K17: WF-2 | L17: Chingford E4
A18: 2022-01-01 | B18: F86018 | C18: 9934 | D18: 496 | E18: 375 | F18: 250 | G18: 268 | H18: 153 | I18: The Ecclesbourne Practice | J18: WF | K18: WF-4 | L18: Forest Integrated Health
A19: 2022-01-01 | B19: F86026 | C19: 7227 | D19: 277 | E19: 196 | F19: 179 | G19: 159 | H19: 130 | I19: Forest Surgery | J19: WF | K19: WF-1 | L19: Chingford/ Walthamstow
A20: 2022-01-01 | B20: F86074 | C20: 15211 | D20: 369 | E20: 266 | F20: 186 | G20: 239 | H20: 104 | I20: Leyton Healthcare (Oliver Road) | J20: WF | K20: WF-3 | L20: Leyton Collaborative
A21: 2022-01-01 | B21: F86638 | C21: 5263 | D21: 271 | E21: 174 | F21: 115 | G21: 181 | H21: 88 | I21: The Microfaculty | J21: WF | K21: WF-1 | L21: Chingford/ Walthamstow
A22: 2022-02-01 | B22: F86004 | C22: 15887 | D22: 815 | E22: 576 | F22: 393 | G22: 458 | H22: 123 | I22: Handsworth Medical Centre | J22: WF | K22: WF-2 | L22: Chingford E4
A23: 2022-02-01 | B23: F86018 | C23: 9911 | D23: 494 | E23: 376 | F23: 256 | G23: 270 | H23: 139 | I23: The Ecclesbourne Practice | J23: WF | K23: WF-4 | L23: Forest Integrated Health
A24: 2022-02-01 | B24: F86026 | C24: 7185 | D24: 277 | E24: 195 | F24: 181 | G24: 156 | H24: 85 | I24: Forest Surgery | J24: WF | K24: WF-1 | L24: Chingford/ Walthamstow
A25: 2022-02-01 | B25: F86074 | C25: 15191 | D25: 368 | E25: 263 | F25: 189 | G25: 239 | H25: 107 | I25: Leyton Healthcare (Oliver Road) | J25: WF | K25: WF-3 | L25: Leyton Collaborative
A26: 2022-02-01 | B26: F86638 | C26: 5248 | D26: 273 | E26: 176 | F26: 116 | G26: 183 | H26: 89 | I26: The Microfaculty | J26: WF | K26: WF-1 | L26: Chingford/ Walthamstow
A27: 44621 | B27: F86004 | C27: 15917 | D27: 814 | E27: 575 | F27: 400 | G27: 456 | H27: 122 | I27: Handsworth Medical Centre | J27: WF | K27: WF-2 | L27: Chingford E4
A28: 44621 | B28: F86018 | C28: 9913 | D28: 495 | E28: 375 | F28: 258 | G28: 269 | H28: 141 | I28: The Ecclesbourne Practice | J28: WF | K28: WF-4 | L28: Forest Integrated Health
A29: 44621 | B29: F86026 | C29: 7189 | D29: 275 | E29: 194 | F29: 174 | G29: 155 | H29: 72 | I29: Forest Surgery | J29: WF | K29: WF-1 | L29: Chingford/ Walthamstow
A30: 44621 | B30: F86074 | C30: 15100 | D30: 366 | E30: 260 | F30: 189 | G30: 238 | H30: 101 | I30: Leyton Healthcare (Oliver Road) | J30: WF | K30: WF-3 | L30: Leyton Collaborative
A31: 44621 | B31: F86638 | C31: 5220 | D31: 270 | E31: 201 | F31: 116 | G31: 179 | H31: 87 | I31: The Microfaculty | J31: WF | K31: WF-1 | L31: Chingford/ Walthamstow
A32: 44652 | B32: F86004 | C32: 15928 | D32: 809 | E32: 570 | F32: 410 | G32: 456 | I32: Handsworth Medical Centre | J32: WF | K32: WF-2 | L32: Chingford E4
A33: 44652 | B33: F86018 | C33: 9931 | D33: 490 | E33: 369 | F33: 255 | G33: 268 | I33: The Ecclesbourne Practice | J33: WF | K33: WF-4 | L33: Forest Integrated Health
A34: 44652 | B34: F86026 | C34: 7141 | D34: 276 | E34: 194 | F34: 166 | G34: 157 | I34: Forest Surgery | J34: WF | K34: WF-1 | L34: Chingford/ Walthamstow
A35: 44652 | B35: F86074 | C35: 15084 | D35: 372 | E35: 260 | F35: 189 | G35: 242 | I35: Leyton Healthcare (Oliver Road) | J35: WF | K35: WF-3 | L35: Leyton Collaborative
A36: 44652 | B36: F86638 | C36: 5191 | D36: 275 | E36: 204 | F36: 144 | G36: 180 | I36: The Microfaculty | J36: WF | K36: WF-1 | L36: Chingford/ Walthamstow
